Workbook

Sheet RESUMO
A1: PLANILHA ORÇAMENTARIA | D1: UNAEN-FF-002
D3: Folha: 1 de 1 | E3: Revisão: 00 | F3: Data: 10/09/2010
A5: SESI - SERVIÇO SOCIAL DA INDUSTRIA - DR/MT
A6: OBRA: CONTRATAÇÃO DE EMPRESA ESPECIALIZADA EM ENGENHARIA PARA OBRA DE REFORMA E AMPLIAÇÃO DA UNIDADE SESI ESCOLA CUIABÁ
A7: UNIDADE OPERACIONAL: SESI ESCOLA CUIABA
A8: ENDEREÇO: AV. OÁTOMO CANAVARROS, 1079, BAIRRO BELA VISTA CIDADE: CUIABÁ-MT
A9: CONSTRUTORA:
A10: RESPONSÁVEL TÉCNICO:
A12: ITEM | B12: DESCRIÇÃO | E12: % | F12: Valor Total (R$)
A14: 1 | B14: ='[1]1-IMPLANTAÇÃO'!B14 -> IMPLANTAÇÃO GERAL | E14: =F14/$F$26 -> 0.3031064697 | F14: =IMPLANTAÇÃO!F830 -> 4760891.11
A16: 2 | B16: BLOCO A | E16: =F16/$F$26 -> 0.1604836538 | F16: ='BLOCO A'!F283 -> 2520715.58
A18: 3 | B18: BLOCO B | E18: =F18/$F$26 -> 0.3414556891 | F18: ='BLOCO B'!F315 -> 5363242.02
A20: 4 | B20: BLOCO C | E20: =F20/$F$26 -> 0.1539246834 | F20: ='BLOCO C'!F268 -> 2417693.88
A22: 5 | B22: QUADRA | E22: =F22/$F$26 -> 0.0114758594 | F22: =QUADRA!F61 -> 180251.24
A24: 6 | B24: =ANEXOS!A14 -> ANEXOS (SUBESTAÇÃO, CASA DE BOMBA, BASE CX DAGUA) | E24: =F24/$F$26 -> 0.02955364458 | F24: =ANEXOS!F213 -> 464198.88
B26: VALOR TOTAL DO SESI CUIABÁ | E26: =SUBTOTAL(9,E14:E24) -> 1 | F26: =SUBTOTAL(9,F14:F24) -> 15706992.71

Sheet IMPLANTAÇÃO
A1: PLANILHA ORÇAMENTARIA | D1: SPN-FF-003
D3: Folha: 1 de 1 | E3: Revisão: 02 | F3: Data: 07/10/19
A5: =RESUMO!A5 -> SESI - SERVIÇO SOCIAL DA INDUSTRIA - DR/MT
A6: =RESUMO!$A$6 -> OBRA: CONTRATAÇÃO DE EMPRESA ESPECIALIZADA EM ENGENHARIA PARA OBRA DE REFORMA E AMPLIAÇÃO DA UNIDADE SESI ESCOLA CUIABÁ
A7: =RESUMO!A7 -> UNIDADE OPERACIONAL: SESI ESCOLA CUIABA
A8: =RESUMO!A8 -> ENDEREÇO: AV. OÁTOMO CANAVARROS, 1079, BAIRRO BELA VISTA CIDADE: CUIABÁ-MT
A9: CONSTRUTORA:
A10: RESPONSÁVEL TÉCNICO:
A12: ITEM | B12: DESCRIÇÃO | C12: UNID. | D12: QUANT. | E12: Valor UNIT. (R$) | F12: Valor Total (R$)
A14: IMPLANTAÇÃO
A15: 1.1 | B15: DEMOLIÇÕES E RETIRADAS | F15: =SUBTOTAL(9,F16:F36) -> 178445.87
A16: 1.1.1 | B16: DEMOLIÇÃO DE ALVENARIA DE BLOCO FURADO, DE FORMA MANUAL, SEM REAPROVEITAMENTO. AF_12/2017 (BASE DO GRADIL DA FACHADA, CASA DE BONECA, DEP. MAT. ESPORTIVO E DEMAIS SERVIÇOS CONFORME PROJETO ARQUITETONICO) | C16: M3 | D16: 263.787 | E16: 50.69 | F16: =ROUND(D16*E16,2) -> 13371.36
A17: 1.1.2 | B17: RETIRADA GRADE METALICA COM REAPROVEITAMENTO (GRADIL DA FACHADA, CERCADO DAS TENDAS DA FACHADA E DO PLAGROUND, E DEMIAS SEVIÇOS CONFORME PROJETO ARQUITETONICO) | C17: M2 | D17: 398.341 | E17: 10.91 | F17: 4345.9
A18: 1.1.3 | B18: CORTE RASO E RECORTE DE ÁRVORE COM DIÂMETRO DE TRONCO MAIOR OU IGUAL A 0,20 M E MENOR QUE 0,40 M.AF_05/2018 | C18: UN | D18: 110 | E18: 66.26 | F18: 7288.6
A19: 1.1.4 | B19: REMOÇÃO DE RAÍZES REMANESCENTES DE TRONCO DE ÁRVORE COM DIÂMETRO MAIOR OU IGUAL A 0,40 M E MENOR QUE 0,60 M.AF_05/2018 | C19: UN | D19: 110 | E19: 140.08 | F19: 15408.8
A20: 1.1.5 | B20: DEMOLIÇÃO DA PAVIMENTAÇÃO (ESTACIONAMENTO PAIS/ALUNOS) | C20: M2 | D20: 3416.29 | E20: 6.06 | F20: 20702.72
A21: 1.1.6 | B21: REMOÇÃO DE GRAMA E TERRA - CANTEIROS | C21: M2 | D21: 127.928 | E21: 3.07 | F21: 392.74
A22: 1.1.7 | B22: REMOÇÃO E REINSTALAÇÃO DE PÓRTICO COM REAPROVEITAMENTO (DET. 02- IMPLANTAÇÃO) | C22: UD | D22: 1 | E22: 1401.94 | F22: 1401.94
A23: 1.1.8 | B23: RETIRADA DE TOTEM COMUNICAÇÃO VISUAL . (DET. 06 IMPLANTAÇÃO) | C23: UN | D23: 1 | E23: 420.88 | F23: 420.88
A24: 1.1.9 | B24: DEMOLIÇÃO DE PAVIMENTO INTERTRAVADO, DE FORMA MANUAL. (ESTACIONAMENTOS E FACHADA) | C24: M2 | D24: 248 | E24: 14.05 | F24: 3484.4
A25: 1.1.10 | B25: DEMOLIÇÃO MANUAL DE PISO EM CONCRETO SIMPLES INCLUSIVE LASTRO DE CONCRETO (CALÇADAS E PISOS EXTERNOS) | C25: M2 | D25: 2039.709 | E25: 34.04 | F25: 69431.69
A26: 1.1.11 | B26: REMOÇÃO DE MEIO FIO, INCLUSIVE CARGA | C26: M | D26: 1135.86 | E26: 10.95 | F26: 12437.67
A27: 1.1.12 | B27: RETIRADA DE BANCADA (DEPÓSITO MATERIAL ESPORTIVO) | C27: M2 | D27: 1.13 | E27: 43.7 | F27: =ROUND(D27*E27,2) -> 49.38
A28: 1.1.13 | B28: RETIRADA DE ESTRUTURA PARA TELHAS ONDULADAS DE FIBROCIMENTO, ALUMINIO OU PLASTICO (CASA DE BONECAS, ABRIGO VIATURA, DEP. MATERIAL ESPORTIVO) | C28: M2 | D28: 56.74 | E28: 17.72 | F28: 1005.43
A29: 1.1.14 | B29: REMOÇÃO DE TELHAS, DE FIBROCIMENTO, METÁLICA E CERÂMICA, DE FORMA MANUAL, SEM REAPROVEITAMENTO. (CASA DE BONECAS, ABRIGO VIATURA, DEP. MATERIAL ESPORTIVO) | C29: M2 | D29: 56.74 | E29: 3.14 | F29: 178.16
A30: 1.1.15 | B30: REMOÇÃO DE LOUÇAS, DE FORMA MANUAL (DEPÓSITO MATERIAL ESPORTIVO) | C30: UN | D30: 2 | E30: 10.97 | F30: 21.94
A31: 1.1.16 | B31: REMOÇÃO DE PORTAS E PORTÕES (FACHADA, DEPÓSITO MATERIAL ESPORTIVO E ESTACIONAMENTO) | C31: M2 | D31: 72.264 | E31: 8.2 | F31: 592.56
A32: 1.1.17 | B32: REMOÇÃO DE JANELAS, DE FORMA MANUAL (DEPÓSITO MATERIAL ESPORTIVO) | C32: M2 | D32: 7.5665 | E32: 28.07 | F32: 212.39
A33: 1.1.18 | B33: REMOÇÃO DE METAIS SANITÁRIOS, DE FORMA MANUAL. (DEPÓSITO MATERIAL ESPORTIVO) | C33: UN | D33: 2 | E33: 7.99 | F33: 15.98
A34: 1.1.19 | B34: REMOÇÃO DE FORROS SEM REAPROVEITAMENTO. (DEPÓSITO MATERIAL ESPORTIVO) | C34: M2 | D34: 9.67 | E34: 1.42 | F34: 13.73
A35: 1.1.20 | B35: RETIRADA GUARDA-CORPO E CORRIMÃO (ESTACIONAMENTOS E ESCADA/RAMPA ENTRE BLOCOS B E C) | C35: M2 | D35: 46.552 | E35: 8.72 | F35: 405.93
A36: 1.1.21 | B36: BOTA FORA DE MATERIAL DESCARTADO, D.M.T. = 10 km - (CARGA, TRANSPORTE E DESCARGA MECÂNICA) | C36: M3 | D36: 1080.60515 | E36: 25.23 | F36: 27263.67
A37: 1.2 | B37: CANTEIRO DE OBRAS | F37: =SUBTOTAL(9,F38:F97) -> 295848.85
A38: 1.2.1 | B38: LOCACAO DE CONTAINER 2,30 X 6,00 M, ALT. 2,50 M, COM 1 SANITARIO, PARA ESCRITORIO, COMPLETO, SEM DIVISORIAS INTERNAS | C38: MES | D38: 12 | E38: 830.27 | F38: =ROUND(D38*E38,2) -> 9963.24
A39: 1.2.2 | B39: LOCACAO DE CONTAINER 2,30 X 6,00 M, ALT. 2,50 M, PARA ALMOXARIFADO, SEM DIVISORIAS INTERNAS E SEM SANITARIO (LOCAÇÃO) | C39: MES | D39: 12 | E39: 648.64 | F39: 7783.68
A40: 1.2.3 | B40: LOCACAO DE CONTAINER 2,30 X 6,00 M, ALT. 2,50 M, PARA SANITARIO, COM 4 BACIAS, 8 CHUVEIROS,1 LAVATORIO E 1 MICTORIO | C40: MES | D40: 12 | E40: 1037.83 | F40: 12453.96
A41: 1.2.4 | B41: EXECUÇÃO DE REFEITÓRIO EM CANTEIRO DE OBRA EM CHAPA DE MADEIRA COMPENSADA, NÃO INCLUSO MOBILIÁRIO E EQUIPAMENTOS. AF_02/2016 | C41: M2 | D41: 30 | E41: 467.93 | F41: 14037.9
A42: 1.2.5 | B42: TAPUME DE TELHA TRAPEZOIDAL GALVANIZADA ALTURA 2,20m FIXADA EM VIGOTA 6x12, A CADA 2,5m COM 3 LINHAS DE LONGARINAS DE RIPÃO 12,5x15,0 EM TODA EXTENSÃO PARA FIXAÇÃO DAS TELHAS, INCLUSO PORTÃO DE ACESSO PARA CARGA E DESCARGA. | C42: M2 | D42: 1144.374 | E42: 93.85 | F42: 107399.5
A43: 1.2.6 | B43: LOCACAO MENSAL DE ANDAIME METALICO TIPO FACHADEIRO, INCLUSIVE MONTAGEM E DESMONTAGEM | C43: M2/MES | D43: 648 | E43: 6.41 | F43: 4153.68
A44: 1.2.7 | B44: MONTAGEM E DESMONTAGEM DE ANDAIME MODULAR FACHADEIRO, COM PISO METÁLICO, PARA EDIFICAÇÕES COM MÚLTIPLOS PAVIMENTOS (EXCLUSIVE ANDAIME E LIMPEZA). AF_11/2017 | C44: M2 | D44: 388.8 | E44: 8.25 | F44: 3207.6
A45: 1.2.8 | B45: LOCACAO MENSAL DE ANDAIME METALICO TIPO TORRE, INCLUSIVE MONTAGEM E DESMONTAGEM | C45: M/MES | D45: 192 | E45: 19.27 | F45: 3699.84
A46: 1.2.9 | B46: MONTAGEM E DESMONTAGEM DE ANDAIME TUBULAR TIPO TORRE (EXCLUSIVE ANDAIME E LIMPEZA). AF_11/2017 | C46: M | D46: 384 | E46: 15.43 | F46: 5925.12
A47: 1.2.10 | B47: PLACA DE OBRA (PARA CONSTRUCAO CIVIL) EM CHAPA GALVANIZADA *N. 22*, ADESIVADA, DE *2,0 X 1,125* M | C47: M2 | D47: 3 | E47: 477.17 | F47: 1431.51
A48: 1.2.11 | B48: TAXAS DO CREA- REGISTRO DE ARTS DE EXECUÇÃO | C48: CONJ | D48: 2 | E48: 259.59 | F48: 519.18
A49: 1.2.12 | B49: PLOTAGENS DE PLANTAS E IMPRESSÕES | C49: M2 | D49: 211 | E49: 21.11 | F49: 4454.21
A50: 1.2.13 | B50: EXTINTOR INCENDIO TP PO QUIMICO 4KG FORNECIMENTO E COLOCACAO | C50: UN | D50: 1 | E50: 178.04 | F50: 178.04
A51: 1.2.14 | B51: EXTINTOR DE CO2 6KG - FORNECIMENTO E INSTALACAO | C51: UN | D51: 1 | E51: 567.5 | F51: 567.5
A52: 1.2.15 | B52: EXTINTOR INCENDIO AGUA-PRESSURIZADA 10L INCL SUPORTE PAREDE CARGA COMPLETA FORNECIMENTO E COLOCACAO | C52: UN | D52: 1 | E52: 183.37 | F52: 183.37
A53: 1.2.16 | B53: CONSUMO MENSAL DE ENERGIA | C53: MES | D53: 12 | E53: 1694.05 | F53: 20328.6
A54: 1.2.17 | B54: CONSUMO MENSAL DE ÁGUA POTÁVEL DA OBRA | C54: MES | D54: 12 | E54: 570.05 | F54: 6840.6
A55: 1.2.18 | B55: DESPESAS MENSAL COM TELEFONIA, INTERNET | C55: MES | D55: 12 | E55: 80.32 | F55: 963.84
A56: 1.2.19 | B56: CONSUMO MENSAL DE MATERIAL DE ESCRITÓRIO | C56: MÊS | D56: 12 | E56: 375.93 | F56: 4511.16
A57: 1.2.20 | B57: LOCAÇÃO DE BEBEDOURO PARA ÁGUA POTÁVEL 100 LITROS | C57: MÊS | D57: 12 | E57: 101.89 | F57: =ROUND(D57*E57,2) -> 1222.68
A58: 1.2.21 | B58: ENSAIO DE RESISTENCIA A COMPRESSAO SIMPLES - CONCRETO | C58: UN | D58: 89 | E58: 18.35 | F58: =ROUND(D58*E58,2) -> 1633.15
A59: 1.2.22 | B59: FORNECIMENTO DE LIVRO DIÁRIOS DE OBRAS, COM CARBONO PARA PREENCHIMENTO MANUAL EM 3 VIAS | C59: CONJ | D59: 12 | E59: 42.02 | F59: 504.24
A60: 1.2.23 | B60: GUINDASTE HIDRÁULICO AUTOPROPELIDO, COM LANÇA TELESCÓPICA 28,80 M, CAPACIDADE MÁXIMA 30 T, POTÊNCIA 97 KW, TRAÇÃO 4 X 4 - CHP DIURNO. AF_11/2014 | C60: H | D60: 103.34 | E60: 131.54 | F60: 13593.34
A61: 1.2.24 | B61: CARGA E DESCARGA DE TESOURA, OPERAÇÃO MANUAL DE APOIO À ELEVAÇÃO COM AJUDANTES | C61: T | D61: 124.51 | E61: 87.85 | F61: 10938.2
A62: 1.2.25 | B62: ALUGUEL BETONEIRA CAPACIDADE NOMINAL DE 400 L, CAPACIDADE DE MISTURA 310 L TRIFÁSICA (03 BETONEIRA / MÊS) | C62: MES | D62: 12 | E62: 1356.62 | F62: =ROUND(D62*E62,2) -> 16279.44
A63: 1.2.26 | B63: LONA PLASTICA PRETA, E= 150 MICRA (PROTEÇÃO DE PISO E MOBILIÁRIO) | C63: M2 | D63: 132.74 | E63: 1.46 | F63: 193.8
A64: 1.2.27 | B64: INSTALAÇÃO PROVISÓRIA DE ESGOTO | F64: =SUBTOTAL(9,F65:F68) -> 13696.15
A65: 1.2.27.1 | B65: TANQUE SÉPTICO CIRCULAR, EM CONCRETO PRÉ-MOLDADO, DIÂMETRO INTERNO = 1,40 M, ALTURA INTERNA = 2,50 M, VOLUME ÚTIL: 3463,6 L (PARA 13 CONTRIBUINTES). AF_05/2018 | C65: UN | D65: 1 | E65: 2293.87 | F65: =ROUND(D65*E65,2) -> 2293.87
A66: 1.2.27.2 | B66: FILTRO ANAERÓBIO RETANGULAR, EM ALVENARIA COM BLOCOS DE CONCRETO, DIMENSÕES INTERNAS: 1,2 X 1,8 X 1,67 M, VOLUME ÚTIL: 2592 L (PARA 13 CONTRIBUINTES). AF_05/2018 | C66: UN | D66: 1 | E66: 4930.93 | F66: 4930.93
A67: 1.2.27.3 | B67: SUMIDOURO RETANGULAR, EM ALVENARIA COM BLOCOS DE CONCRETO, DIMENSÕES INTERNAS: 1,6 X 3,4 X 3,0 M, ÁREA DE INFILTRAÇÃO: 32,9 M² (PARA 13 CONTRIBUINTES). AF_05/2018 | C67: UN | D67: 1 | E67: 5813.03 | F67: 5813.03
A68: 1.2.27.4 | B68: TUBO PVC, SERIE NORMAL, ESGOTO PREDIAL, DN 100 MM, FORNECIDO E INSTALADO EM RAMAL DE DESCARGA OU RAMAL DE ESGOTO SANITÁRIO. AF_12/2014 | C68: M | D68: 12 | E68: 54.86 | F68: 658.32
A69: 1.2.28 | B69: INSTALAÇÃO PROVISÓRIA DE ENERGIA | F69: =SUBTOTAL(9,F70:F86) -> 22264.08
A70: 1.2.28.1 | B70: POSTE DE MADEIRA 6m INCLUSIVE REFORÇO | C70: UND | D70: 7 | E70: 76.37 | F70: =ROUND(D70*E70,2) -> 534.59
A71: 1.2.28.2 | B71: RELE FOTOELETRICO P/ COMANDO DE ILUMINACAO EXTERNA 220V/1000W - FORNECIMENTO E INSTALACAO | C71: UN | D71: 2 | E71: 25.66 | F71: 51.32
A72: 1.2.28.3 | B72: REFLETOR EM ALUMÍNIO, DE SUPORTE E ALÇA, COM 1 LÂMPADA VAPOR DE MERCÚRIO DE 125 W, COM REATOR ALTO FATOR DE POTÊNCIA - FORNECIMENTO E INSTALAÇÃO. AF_02/2020 | C72: UN | D72: 7 | E72: 250.55 | F72: 1753.85
A73: 1.2.28.4 | B73: TERMINAL OU CONECTOR DE PRESSAO - PARA CABO 50MM2 - FORNECIMENTO E INSTALACAO | C73: UND | D73: 20 | E73: 25.91 | F73: 518.2
A74: 1.2.28.5 | B74: CABO DE COBRE FLEXÍVEL ISOLADO, 10 MM², ANTI-CHAMA 0,6/1,0 KV, PARA CIRCUITOS TERMINAIS - FORNECIMENTO E INSTALAÇÃO. AF_12/2015 | C74: M | D74: 33 | E74: 13.64 | F74: 450.12
A75: 1.2.28.6 | B75: ENTRADA PROVISORIA DE ENERGIA ELETRICA AEREA TRIFASICA 40A EM POSTE METALICO | C75: M | D75: 1 | E75: 2121.89 | F75: 2121.89
A76: 1.2.28.7 | B76: CABO PP DE COBRE 3X10,0 MM2 - FLEXIVEL (ALIMENTAÇÃO DOS QUADROS) | C76: M | D76: 60 | E76: 10.28 | F76: 616.8
A77: 1.2.28.8 | B77: CABO DE ALUMÍNIO QUADRIPLEX SECAO 3#35(35) MM2 - 0,6/1KV - 70°C - FLEXIVEL | C77: M | D77: 60 | E77: 18.47 | F77: 1108.2
A78: 1.2.28.9 | B78: TOMADA INDUSTRIAL FEMEA 3P+T 16A/250V - FORNECIMENTO E INSTALACAO | C78: UN | D78: 7 | E78: 33.07 | F78: 231.49
A79: 1.2.28.10 | B79: TOMADA INDUSTRIAL MACHO 3P+T 16A/250V - FORNECIMENTO E INSTALACAO | C79: UND | D79: 7 | E79: 33.07 | F79: 231.49
A80: 1.2.28.11 | B80: TOMADA BAIXA DE EMBUTIR (1 MÓDULO), 2P+T 20 A, INCLUINDO SUPORTE E PLACA - FORNECIMENTO E INSTALAÇÃO. AF_12/2015 | C80: UN | D80: 188 | E80: 24.09 | F80: 4528.92
A81: 1.2.28.12 | B81: CABO DE COBRE FLEXÍVEL ISOLADO, 4 MM², ANTI-CHAMA 450/750 V, PARA CIRCUITOS TERMINAIS - FORNECIMENTO E INSTALAÇÃO. AF_12/2015 | C81: M | D81: 900 | E81: 5.7 | F81: 5130
A82: 1.2.28.13 | B82: QUADRO DE DISTRIBUICAO DE ENERGIA EM CHAPA DE ACO GALVANIZADO, PARA 12 DISJUNTORES TERMOMAGNETICOS MONOPOLARES, COM BARRAMENTO TRIFASICO E NEUTRO - FORNECIMENTO E INSTALACAO | C82: UN | D82: 2 | E82: 451.53 | F82: 903.06
A83: 1.2.28.14 | B83: DISJUNTOR TRIPOLAR TIPO DIN, CORRENTE NOMINAL DE 16A - FORNECIMENTO E INSTALAÇÃO. AF_04/2016 | C83: UN | D83: 7 | E83: 73.7 | F83: 515.9
A84: 1.2.28.15 | B84: DISJUNTOR TRIPOLAR TIPO DIN, CORRENTE NOMINAL DE 32A - FORNECIMENTO E INSTALAÇÃO. AF_04/2016 | C84: UN | D84: 8 | E84: 80.92 | F84: 647.36
A85: 1.2.28.16 | B85: FORNECIMENTO E INSTALAÇÃO DE DISJUNTOR TRIPOLAR TERMOMAGNÉTICO - PADRÃO DIN - 80 A | C85: UN | D85: 3 | E85: 130.83 | F85: 392.49
A86: 1.2.28.17 | B86: DISJUNTOR BIPOLAR TIPO DIN, CORRENTE NOMINAL DE 16A - FORNECIMENTO E INSTALAÇÃO. AF_04/2016 | C86: UN | D86: 43 | E86: 58.8 | F86: 2528.4
A87: 1.2.29 | B87: INSTALAÇÃO PROVISÓRIA DE ÁGUA | F87: =SUBTOTAL(9,F88:F95) -> 3008.37
A88: 1.2.29.1 | B88: MANGUEIRA CRISTAL PARA NIVEL, LISA, PVC TRANSPARENTE, 3/8" X1,5 MM | C88: M | D88: 20 | E88: 3.45 | F88: =ROUND(D88*E88,2) -> 69
A89: 1.2.29.2 | B89: TUBO, PVC, SOLDÁVEL, DN 25MM, INSTALADO EM RAMAL DE DISTRIBUIÇÃO DE ÁGUA - FORNECIMENTO E INSTALAÇÃO. AF_12/2014 | C89: M | D89: 59 | E89: 8.61 | F89: =ROUND(D89*E89,2) -> 507.99
A90: 1.2.29.3 | B90: JOELHO 90 GRAUS, PVC, SOLDÁVEL, DN 25MM, INSTALADO EM RAMAL OU SUB-RAMAL DE ÁGUA - FORNECIMENTO E INSTALAÇÃO. AF_12/2014 | C90: UN | D90: 7 | E90: 8.66 | F90: 60.62
A91: 1.2.29.4 | B91: TE, PVC, SOLDÁVEL, DN 25MM, INSTALADO EM PRUMADA DE ÁGUA - FORNECIMENTO E INSTALAÇÃO. AF_12/2014 | C91: UN | D91: 3 | E91: 6.79 | F91: 20.37
A92: 1.2.29.5 | B92: TORNEIRA CROMADA 1/2 OU 3/4 PARA TANQUE, PADRÃO POPULAR - FORNECIMENTO E INSTALAÇÃO. AF_01/2020 | C92: UN | D92: 2 | E92: 23.31 | F92: 46.62
A93: 1.2.29.6 | B93: CAIXA D´AGUA EM POLIETILENO, 500 LITROS, COM ACESSÓRIOS | C93: UN | D93: 3 | E93: 678.76 | F93: 2036.28
A94: 1.2.29.7 | B94: KIT CAVALETE PARA MEDIÇÃO DE ÁGUA - ENTRADA PRINCIPAL, EM PVC SOLDÁVEL DN 20 (½") FORNECIMENTO E INSTALAÇÃO (EXCLUSIVE HIDRÔMETRO). AF_11/2016 | C94: UN | D94: 1 | E94: 149.7 | F94: 149.7
A95: 1.2.29.8 | B95: HIDRÔMETRO DN 20 (½), 1,5 M³/H  FORNECIMENTO E INSTALAÇÃO. AF_11/2016 | C95: UN | D95: 1 | E95: 117.79 | F95: 117.79
A96: 1.2.30 | B96: ABRIGOS PROVISÓRIOS | F96: =SUBTOTAL(9,F97:F97) -> 3912.87
A97: 1.2.30.1 | B97: EXECUÇÃO DE ABRIGO PROVISORIO PARA CARPINTARIA/ARMAÇÃO/BETONEIRA | C97: M2 | D97: 39 | E97: 100.33 | F97: =ROUND(D97*E97,2) -> 3912.87
A98: 1.3 | B98: ADMINISTRAÇÃO | F98: =SUBTOTAL(9,F99:F109) -> 770009.35
A99: 1.3.1 | B99: ENGENHEIRO CIVIL DE OBRA JUNIOR COM ENCARGOS COMPLEMENTARES (44 HORAS SEMANAIS) | C99: MES | D99: 12 | E99: 18454.92 | F99: 221459.04
A100: 1.3.2 | B100: ELETRICISTA COM ENCARGOS COMPLEMENTARES (20 HORAS SEMANAIS) | C100: H | D100: 1200 | E100: 25.11 | F100: =ROUND(D100*E100,2) -> 30132
A101: 1.3.3 | B101: MESTRE DE OBRAS COM ENCARGOS COMPLEMENTARES | C101: MES | D101: 12 | E101: 6940.35 | F101: 83284.2
A102: 1.3.4 | B102: ENCARREGADO DE ELÉTRICA COM ENCARGOS COMPLEMENTARES | C102: MES | D102: 12 | E102: 4686.62 | F102: 56239.44
A103: 1.3.5 | B103: ENCARREGADO DE HIDRÁULICA COM ENCARGOS COMPLEMENTARES | C103: MES | D103: 12 | E103: 4686.62 | F103: 56239.44
A104: 1.3.6 | B104: TÉCNICO EM SEGURANÇA DO TRABALHO COM ENCARGOS COMPLEMENTARES | C104: MES | D104: 12 | E104: 5164 | F104: 61968
A105: 1.3.7 | B105: VIGIA DIURNO COM ENCARGOS COMPLEMENTARES (02 VIGIAS NO TURNO DE 12X36 HORAS) | C105: MES | D105: 12 | E105: 6804.01 | F105: 81648.12
A106: 1.3.8 | B106: VIGIA NOTURNO COM ENCARGOS COMPLEMENTARES (02 VIGIAS NO TURNO DE 12X36 HORAS) | C106: MES | D106: 12 | E106: 7800.89 | F106: 93610.68
A107: 1.3.9 | B107: APONTADOR OU APROPRIADOR COM ENCARGOS COMPLEMENTARES | C107: MES | D107: 12 | E107: 3371.89 | F107: 40462.68
A108: 1.3.10 | B108: ALMOXARIFE COM ENCARGOS COMPLEMENTARES | C108: MES | D108: 12 | E108: 3467.52 | F108: 41610.24
A109: 1.3.11 | B109: TOPOGRAFO COM ENCARGOS COMPLEMENTARES | C109: MES | D109: 1 | E109: 3355.51 | F109: 3355.51
A110: 1.4 | B110: TERRAPLENAGEM | F110: =SUBTOTAL(9,F111:F113) -> 30190.81
A111: 1.4.1 | B111: ATERRO COMPACTADO MECANICAMENTE AO NIVEL DO BALDRAME - C/ AQUISIÇÃO DE MATERIAL + 25% DE EMPOLAMENTO, EM CAMADAS DE 20cm - AQUI INCLUSO CARGA, DESCARGA, TRANSPORTE DMT ATÉ 10KM, ESPALHAMENTO COM PATROL, NIVELAMENTO E COMPACTAÇÃO MECÂNICA (95%) CONTROLADO LABORATORIALMENTE. | C111: M3 | D111: 301.154201 | E111: 62.03 | F111: =ROUND(D111*E111,2) -> 18680.6
A112: 1.4.2 | B112: ESCAVACAO MECANICA CAMPO ABERTO EM SOLO EXCETO ROCHA ATE 2,00M PROFUNDIDADE | C112: M3 | D112: 337.073205 | E112: 2.61 | F112: =ROUND(D112*E112,2) -> 879.76
A113: 1.4.3 | B113: BOTA FORA DE MATERIAL DESCARTADO, D.M.T. = 10 km - (CARGA, TRANSPORTE E DESCARGA MECÂNICA) | C113: M3 | D113: 421.3415063 | E113: 25.23 | F113: =ROUND(D113*E113,2) -> 10630.45
A114: 1.5 | B114: FUNDAÇÃO | F114: =SUBTOTAL(9,F115:F215) -> 178308.17
A115: 1.5.1 | B115: PASSARELA METÁLICA- ITENS GERAIS | F115: =SUBTOTAL(9,F116:F123) -> 1158.39
A116: 1.5.1.1 | B116: ESCAVAÇÃO MECANIZADA PARA BLOCO DE COROAMENTO OU SAPATA, COM PREVISÃO DE FÔRMA, COM RETROESCAVADEIRA. AF_06/2017 | C116: M3 | D116: 3.67 | E116: 33.82 | F116: =ROUND(D116*E116,2) -> 124.12
A117: 1.5.1.2 | B117: ESCAVAÇÃO MANUAL DE VALA PARA VIGA BALDRAME, COM PREVISÃO DE FÔRMA. AF_06/2017 | C117: M3 | D117: 2.09 | E117: 115.9 | F117: 242.23
A118: 1.5.1.3 | B118: REATERRO MANUAL DE VALAS COM COMPACTAÇÃO MECANIZADA. AF_04/2016 | C118: M3 | D118: 3.65 | E118: 26 | F118: 94.9
A119: 1.5.1.4 | B119: CARGA E DESCARGA MECANIZADAS DE ENTULHO EM CAMINHAO BASCULANTE 6 M3 | C119: M3 | D119: 2.94 | E119: 6.14 | F119: 18.05
A120: 1.5.1.5 | B120: TRANSPORTE COM CAMINHÃO BASCULANTE DE 6 M3, EM VIA URBANA PAVIMENTADA, DMT ATÉ 30 KM (UNIDADE: M3XKM). AF_01/2018 | C120: M3XKM | D120: 29.4 | E120: 1.91 | F120: 56.15
A121: 1.5.1.6 | B121: PREPARO DE FUNDO DE VALA COM LARGURA MENOR QUE 1,5 M, EM LOCAL COM NÍVEL BAIXO DE INTERFERÊNCIA. AF_06/2016 | C121: M2 | D121: 11.28 | E121: 5.59 | F121: 63.06
A122: 1.5.1.7 | B122: LASTRO DE CONCRETO MAGRO, APLICADO EM BLOCOS DE COROAMENTO OU SAPATAS. AF_08/2017 | C122: M3 | D122: 0.55 | E122: 550.88 | F122: 302.98
A123: 1.5.1.8 | B123: IMPERMEABILIZAÇÃO DE SUPERFÍCIE COM EMULSÃO ASFÁLTICA, 2 DEMÃOS AF_06/2018 | C123: M2 | D123: 7.2 | E123: 35.68 | F123: 256.9
A124: 1.5.2 | B124: PASSARELA METÁLICA- SAPATAS | F124: =SUBTOTAL(9,F125:F128) -> 4735.89
A125: 1.5.2.1 | B125: FABRICAÇÃO, MONTAGEM E DESMONTAGEM DE FÔRMA PARA SAPATA, EM MADEIRA SERRADA, E=25 MM, 1 UTILIZAÇÃO. AF_06/2017 | C125: M2 | D125: 8.64 | E125: 240.28 | F125: =ROUND(D125*E125,2) -> 2076.02
A126: 1.5.2.2 | B126: CONCRETAGEM DE SAPATAS, FCK 25 MPA, COM USO DE BOMBA - LANÇAMENTO, ADENSAMENTO E ACABAMENTO | C126: M3 | D126: 1.3 | E126: 594.23 | F126: =ROUND(D126*E126,2) -> 772.5
A127: 1.5.2.3 | B127: ARMAÇÃO DE BLOCO, VIGA BALDRAME E SAPATA UTILIZANDO AÇO CA-60 DE 5 MM - MONTAGEM. AF_06/2017 | C127: KG | D127: 5.28 | E127: 16.7 | F127: =ROUND(D127*E127,2) -> 88.18
A128: 1.5.2.4 | B128: ARMAÇÃO DE BLOCO, VIGA BALDRAME OU SAPATA UTILIZANDO AÇO CA-50 DE 10 MM - MONTAGEM. AF_06/2017 | C128: KG | D128: 145.92 | E128: 12.33 | F128: =ROUND(D128*E128,2) -> 1799.19
A129: 1.5.3 | B129: PASSARELA METÁLICA- VIGAS BALDRAMES | F129: =SUBTOTAL(9,F130:F133) -> 1635.77
A130: 1.5.3.1 | B130: FABRICAÇÃO, MONTAGEM E DESMONTAGEM DE FÔRMA PARA VIGA BALDRAME, EM MADEIRA SERRADA, E=25 MM, 1 UTILIZAÇÃO. AF_06/2017 | C130: M2 | D130: 7.2 | E130: 114.4 | F130: =ROUND(D130*E130,2) -> 823.68
A131: 1.5.3.2 | B131: CONCRETAGEM DE BLOCOS DE COROAMENTO E VIGAS BALDRAME, FCK 25 MPA, COM USO DE BOMBA  LANÇAMENTO, ADENSAMENTO E ACABAMENTO | C131: M3 | D131: 0.57 | E131: 587.19 | F131: =ROUND(D131*E131,2) -> 334.7
A132: 1.5.3.3 | B132: ARMAÇÃO DE BLOCO, VIGA BALDRAME E SAPATA UTILIZANDO AÇO CA-60 DE 5 MM - MONTAGEM. AF_06/2017 | C132: KG | D132: 6 | E132: 16.7 | F132: =ROUND(D132*E132,2) -> 100.2
A133: 1.5.3.4 | B133: ARMAÇÃO DE BLOCO, VIGA BALDRAME OU SAPATA UTILIZANDO AÇO CA-50 DE 8 MM - MONTAGEM. AF_06/2017 | C133: KG | D133: 27 | E133: 13.97 | F133: =ROUND(D133*E133,2) -> 377.19
A134: 1.5.4 | B134: ARRIMOS DE BLOCO DE CONCRETO ESTRUTURAL- ITENS GERAIS | F134: =SUBTOTAL(9,F135:F137) -> 537.83
A135: 1.5.4.1 | B135: ESCAVAÇÃO MANUAL DE VALA PARA VIGA BALDRAME, COM PREVISÃO DE FÔRMA. AF_06/2017 | C135: M3 | D135: 2.92 | E135: 115.9 | F135: =ROUND(D135*E135,2) -> 338.43
A136: 1.5.4.2 | B136: CARGA E DESCARGA MECANIZADAS DE ENTULHO EM CAMINHAO BASCULANTE 6 M3 | C136: M3 | D136: 7.9 | E136: 6.14 | F136: =ROUND(D136*E136,2) -> 48.51
A137: 1.5.4.3 | B137: TRANSPORTE COM CAMINHÃO BASCULANTE DE 6 M3, EM VIA URBANA PAVIMENTADA, DMT ATÉ 30 KM (UNIDADE: M3XKM). AF_01/2018 | C137: M3XKM | D137: 79 | E137: 1.91 | F137: =ROUND(D137*E137,2) -> 150.89
A138: 1.5.5 | B138: ARRIMOS DE BLOCO DE CONCRETO ESTRUTURAL- MURO 1(ENTRADA DE VEÍCULOS) | F138: =SUBTOTAL(9,F139:F152) -> 8324.41
A139: 1.5.5.1 | B139: FABRICAÇÃO, MONTAGEM E DESMONTAGEM DE FÔRMA PARA VIGA BALDRAME, EM MADEIRA SERRADA, E=25 MM, 1 UTILIZAÇÃO. AF_06/2017 | C139: M2 | D139: 12.46 | E139: 114.4 | F139: =ROUND(D139*E139,2) -> 1425.42
A140: 1.5.5.2 | B140: CONCRETAGEM DE PILARES, FCK = 25 MPA, COM USO DE BALDES EM EDIFICAÇÃO COM SEÇÃO MÉDIA DE PILARES MENOR OU IGUAL A 0,25 M² - LANÇAMENTO, ADENSAMENTO E ACABAMENTO. AF_12/2015 | C140: M3 | D140: 0.38 | E140: 701.15 | F140: 266.44
A141: 1.5.5.3 | B141: CONCRETAGEM DE BLOCOS DE COROAMENTO E VIGAS BALDRAME, FCK 25 MPA, COM USO DE BOMBA  LANÇAMENTO, ADENSAMENTO E ACABAMENTO | C141: M3 | D141: 0.93 | E141: 587.19 | F141: 546.09
A142: 1.5.5.4 | B142: ARMAÇÃO DE BLOCO, VIGA BALDRAME E SAPATA UTILIZANDO AÇO CA-60 DE 5 MM - MONTAGEM. AF_06/2017 | C142: KG | D142: 15.37 | E142: 16.7 | F142: 256.68
A143: 1.5.5.5 | B143: ARMAÇÃO DE BLOCO, VIGA BALDRAME OU SAPATA UTILIZANDO AÇO CA-50 DE 10 MM - MONTAGEM. AF_06/2017 | C143: KG | D143: 41.7 | E143: 12.33 | F143: 514.16
A144: 1.5.5.6 | B144: ARMAÇÃO DE CINTA DE ALVENARIA ESTRUTURAL; DIÂMETRO DE 8,0 MM | C144: KG | D144: 13.35 | E144: 10.33 | F144: 137.91
A145: 1.5.5.7 | B145: ARMAÇÃO VERTICAL DE ALVENARIA ESTRUTURAL; DIÂMETRO DE 10,0 MM. AF_01/2015 | C145: KG | D145: 44.37 | E145: 10.35 | F145: 459.23
A146: 1.5.5.8 | B146: (COMPOSIÇÃO REPRESENTATIVA) DE ALVENARIA DE BLOCOS DE CONCRETO ESTRUTURAL 14X19X39 CM, (ESPESSURA 14 CM), FBK = 4,5 MPA, UTILIZANDO PALHETA, PARA EDIFICAÇÃO HABITACIONAL. AF_10/2015 | C146: M2 | D146: 17.51 | E146: 73.39 | F146: 1285.06
A147: 1.5.5.9 | B147: ESCAVAÇÃO MANUAL ESTACA BROCA DE CONCRETO, DIÃMETRO DE 25 CM, PROFUNDIDADE DE ATÉ 3 M, COM TRADO CONCHA, NÃO ARMADA | C147: KG | D147: 18 | E147: 44.8 | F147: 806.4
A148: 1.5.5.10 | B148: CONCRETO FCK = 25MPA, TRAÇO 1:2,3:2,7 (CIMENTO/ AREIA MÉDIA/ BRITA 1) - PREPARO MECÂNICO COM BETONEIRA 400 L. AF_07/2016 | C148: M3 | D148: 0.88 | E148: 416.14 | F148: 366.2
A149: 1.5.5.11 | B149: CORTE E DOBRA DE AÇO CA-60, DIÂMETRO DE 5,0 MM, UTILIZADO EM ESTRUTURAS DIVERSAS, EXCETO LAJES. AF_12/2015 | C149: KG | D149: 20.79 | E149: 10.12 | F149: 210.39
A150: 1.5.5.12 | B150: CORTE E DOBRA DE AÇO CA-50, DIÂMETRO DE 10,0 MM, UTILIZADO EM ESTRUTURAS DIVERSAS, EXCETO LAJES. AF_12/2015 | C150: KG | D150: 58.93 | E150: 9.16 | F150: 539.8
A151: 1.5.5.13 | B151: CONCRETAGEM DE BLOCOS DE COROAMENTO E VIGAS BALDRAME, FCK 25 MPA, COM USO DE BOMBA  LANÇAMENTO, ADENSAMENTO E ACABAMENTO | C151: M3 | D151: 0.43 | E151: 587.19 | F151: 252.49
A152: 1.5.5.14 | B152: ARMAÇÃO DE BLOCO, VIGA BALDRAME OU SAPATA UTILIZANDO AÇO CA-50 DE 8 MM - MONTAGEM. AF_06/2017 | C152: KG | D152: 90.06 | E152: 13.97 | F152: 1258.14
A153: 1.5.6 | B153: ARRIMOS DE BLOCO DE CONCRETO ESTRUTURAL- MURO 2(ENTRADA DE VEÍCULOS) | F153: =SUBTOTAL(9,F154:F167) -> 8324.41
A154: 1.5.6.1 | B154: FABRICAÇÃO, MONTAGEM E DESMONTAGEM DE FÔRMA PARA VIGA BALDRAME, EM MADEIRA SERRADA, E=25 MM, 1 UTILIZAÇÃO. AF_06/2017 | C154: M2 | D154: 12.46 | E154: 114.4 | F154: =ROUND(D154*E154,2) -> 1425.42
A155: 1.5.6.2 | B155: CONCRETAGEM DE PILARES, FCK = 25 MPA, COM USO DE BALDES EM EDIFICAÇÃO COM SEÇÃO MÉDIA DE PILARES MENOR OU IGUAL A 0,25 M² - LANÇAMENTO, ADENSAMENTO E ACABAMENTO. AF_12/2015 | C155: M3 | D155: 0.38 | E155: 701.15 | F155: 266.44
A156: 1.5.6.3 | B156: CONCRETAGEM DE BLOCOS DE COROAMENTO E VIGAS BALDRAME, FCK 25 MPA, COM USO DE BOMBA  LANÇAMENTO, ADENSAMENTO E ACABAMENTO | C156: M3 | D156: 0.93 | E156: 587.19 | F156: 546.09
A157: 1.5.6.4 | B157: ARMAÇÃO DE BLOCO, VIGA BALDRAME E SAPATA UTILIZANDO AÇO CA-60 DE 5 MM - MONTAGEM. AF_06/2017 | C157: KG | D157: 15.37 | E157: 16.7 | F157: 256.68
A158: 1.5.6.5 | B158: ARMAÇÃO DE BLOCO, VIGA BALDRAME OU SAPATA UTILIZANDO AÇO CA-50 DE 10 MM - MONTAGEM. AF_06/2017 | C158: KG | D158: 41.7 | E158: 12.33 | F158: 514.16
A159: 1.5.6.6 | B159: ARMAÇÃO DE CINTA DE ALVENARIA ESTRUTURAL; DIÂMETRO DE 8,0 MM | C159: KG | D159: 13.35 | E159: 10.33 | F159: 137.91
A160: 1.5.6.7 | B160: ARMAÇÃO VERTICAL DE ALVENARIA ESTRUTURAL; DIÂMETRO DE 10,0 MM. AF_01/2015 | C160: KG | D160: 44.37 | E160: 10.35 | F160: 459.23
A161: 1.5.6.8 | B161: (COMPOSIÇÃO REPRESENTATIVA) DE ALVENARIA DE BLOCOS DE CONCRETO ESTRUTURAL 14X19X39 CM, (ESPESSURA 14 CM), FBK = 4,5 MPA, UTILIZANDO PALHETA, PARA EDIFICAÇÃO HABITACIONAL. AF_10/2015 | C161: M2 | D161: 17.51 | E161: 73.39 | F161: 1285.06
A162: 1.5.6.9 | B162: ESCAVAÇÃO MANUAL ESTACA BROCA DE CONCRETO, DIÃMETRO DE 25 CM, PROFUNDIDADE DE ATÉ 3 M, COM TRADO CONCHA, NÃO ARMADA | C162: KG | D162: 18 | E162: 44.8 | F162: 806.4
A163: 1.5.6.10 | B163: CONCRETO FCK = 25MPA, TRAÇO 1:2,3:2,7 (CIMENTO/ AREIA MÉDIA/ BRITA 1) - PREPARO MECÂNICO COM BETONEIRA 400 L. AF_07/2016 | C163: M3 | D163: 0.88 | E163: 416.14 | F163: 366.2
A164: 1.5.6.11 | B164: CORTE E DOBRA DE AÇO CA-60, DIÂMETRO DE 5,0 MM, UTILIZADO EM ESTRUTURAS DIVERSAS, EXCETO LAJES. AF_12/2015 | C164: KG | D164: 20.79 | E164: 10.12 | F164: 210.39
A165: 1.5.6.12 | B165: CORTE E DOBRA DE AÇO CA-50, DIÂMETRO DE 10,0 MM, UTILIZADO EM ESTRUTURAS DIVERSAS, EXCETO LAJES. AF_12/2015 | C165: KG | D165: 58.93 | E165: 9.16 | F165: 539.8
A166: 1.5.6.13 | B166: CONCRETAGEM DE BLOCOS DE COROAMENTO E VIGAS BALDRAME, FCK 25 MPA, COM USO DE BOMBA  LANÇAMENTO, ADENSAMENTO E ACABAMENTO | C166: M3 | D166: 0.43 | E166: 587.19 | F166: 252.49
A167: 1.5.6.14 | B167: ARMAÇÃO DE BLOCO, VIGA BALDRAME OU SAPATA UTILIZANDO AÇO CA-50 DE 8 MM - MONTAGEM. AF_06/2017 | C167: KG | D167: 90.06 | E167: 13.97 | F167: 1258.14
A168: 1.5.7 | B168: ARRIMOS DE BLOCO DE CONCRETO ESTRUTURAL- MURO 3 (ENTRADA DE ALUNOS) | F168: =SUBTOTAL(9,F169:F182) -> 8055.25
A169: 1.5.7.1 | B169: FABRICAÇÃO, MONTAGEM E DESMONTAGEM DE FÔRMA PARA VIGA BALDRAME, EM MADEIRA SERRADA, E=25 MM, 1 UTILIZAÇÃO. AF_06/2017 | C169: M2 | D169: 10.55 | E169: 114.4 | F169: =ROUND(D169*E169,2) -> 1206.92
A170: 1.5.7.2 | B170: CONCRETAGEM DE PILARES, FCK = 25 MPA, COM USO DE BALDES EM EDIFICAÇÃO COM SEÇÃO MÉDIA DE PILARES MENOR OU IGUAL A 0,25 M² - LANÇAMENTO, ADENSAMENTO E ACABAMENTO. AF_12/2015 | C170: M3 | D170: 0.42 | E170: 701.15 | F170: 294.48
A171: 1.5.7.3 | B171: CONCRETAGEM DE BLOCOS DE COROAMENTO E VIGAS BALDRAME, FCK 25 MPA, COM USO DE BOMBA  LANÇAMENTO, ADENSAMENTO E ACABAMENTO | C171: M3 | D171: 0.79 | E171: 587.19 | F171: 463.88
A172: 1.5.7.4 | B172: ARMAÇÃO DE BLOCO, VIGA BALDRAME E SAPATA UTILIZANDO AÇO CA-60 DE 5 MM - MONTAGEM. AF_06/2017 | C172: KG | D172: 13 | E172: 16.7 | F172: 217.1
A173: 1.5.7.5 | B173: ARMAÇÃO DE BLOCO, VIGA BALDRAME OU SAPATA UTILIZANDO AÇO CA-50 DE 10 MM - MONTAGEM. AF_06/2017 | C173: KG | D173: 35.81 | E173: 12.33 | F173: 441.54
A174: 1.5.7.6 | B174: ARMAÇÃO DE CINTA DE ALVENARIA ESTRUTURAL; DIÂMETRO DE 8,0 MM | C174: KG | D174: 11.46 | E174: 10.33 | F174: 118.38
A175: 1.5.7.7 | B175: ARMAÇÃO VERTICAL DE ALVENARIA ESTRUTURAL; DIÂMETRO DE 10,0 MM. AF_01/2015 | C175: KG | D175: 55.97 | E175: 10.35 | F175: 579.29
A176: 1.5.7.8 | B176: (COMPOSIÇÃO REPRESENTATIVA) DE ALVENARIA DE BLOCOS DE CONCRETO ESTRUTURAL 14X19X39 CM, (ESPESSURA 14 CM), FBK = 4,5 MPA, UTILIZANDO PALHETA, PARA EDIFICAÇÃO HABITACIONAL. AF_10/2015 | C176: M2 | D176: 25.52 | E176: 73.39 | F176: 1872.91
A177: 1.5.7.9 | B177: ESCAVAÇÃO MANUAL ESTACA BROCA DE CONCRETO, DIÃMETRO DE 25 CM, PROFUNDIDADE DE ATÉ 3 M, COM TRADO CONCHA, NÃO ARMADA | C177: KG | D177: 15 | E177: 44.8 | F177: 672
A178: 1.5.7.10 | B178: CONCRETO FCK = 25MPA, TRAÇO 1:2,3:2,7 (CIMENTO/ AREIA MÉDIA/ BRITA 1) - PREPARO MECÂNICO COM BETONEIRA 400 L. AF_07/2016 | C178: M3 | D178: 0.73 | E178: 416.14 | F178: 303.78
A179: 1.5.7.11 | B179: CORTE E DOBRA DE AÇO CA-60, DIÂMETRO DE 5,0 MM, UTILIZADO EM ESTRUTURAS DIVERSAS, EXCETO LAJES. AF_12/2015 | C179: KG | D179: 17.32 | E179: 10.12 | F179: 175.28
A180: 1.5.7.12 | B180: CORTE E DOBRA DE AÇO CA-50, DIÂMETRO DE 10,0 MM, UTILIZADO EM ESTRUTURAS DIVERSAS, EXCETO LAJES. AF_12/2015 | C180: KG | D180: 49.11 | E180: 9.16 | F180: 449.85
A181: 1.5.7.13 | B181: CONCRETAGEM DE BLOCOS DE COROAMENTO E VIGAS BALDRAME, FCK 25 MPA, COM USO DE BOMBA  LANÇAMENTO, ADENSAMENTO E ACABAMENTO | C181: M3 | D181: 0.36 | E181: 587.19 | F181: 211.39
A182: 1.5.7.14 | B182: ARMAÇÃO DE BLOCO, VIGA BALDRAME OU SAPATA UTILIZANDO AÇO CA-50 DE 8 MM - MONTAGEM. AF_06/2017 | C182: KG | D182: 75.05 | E182: 13.97 | F182: 1048.45
A183: 1.5.8 | B183: ARRIMOS DE BLOCO DE CONCRETO ESTRUTURAL- MURO 4 (ENTRADA DE ALUNOS) | F183: =SUBTOTAL(9,F184:F197) -> 2413.08
A184: 1.5.8.1 | B184: FABRICAÇÃO, MONTAGEM E DESMONTAGEM DE FÔRMA PARA VIGA BALDRAME, EM MADEIRA SERRADA, E=25 MM, 1 UTILIZAÇÃO. AF_06/2017 | C184: M2 | D184: 3.52 | E184: 114.4 | F184: =ROUND(D184*E184,2) -> 402.69
A185: 1.5.8.2 | B185: CONCRETAGEM DE PILARES, FCK = 25 MPA, COM USO DE BALDES EM EDIFICAÇÃO COM SEÇÃO MÉDIA DE PILARES MENOR OU IGUAL A 0,25 M² - LANÇAMENTO, ADENSAMENTO E ACABAMENTO. AF_12/2015 | C185: M3 | D185: 0.11 | E185: 701.15 | F185: 77.13
A186: 1.5.8.3 | B186: CONCRETAGEM DE BLOCOS DE COROAMENTO E VIGAS BALDRAME, FCK 25 MPA, COM USO DE BOMBA  LANÇAMENTO, ADENSAMENTO E ACABAMENTO | C186: M3 | D186: 0.26 | E186: 587.19 | F186: 152.67
A187: 1.5.8.4 | B187: ARMAÇÃO DE BLOCO, VIGA BALDRAME E SAPATA UTILIZANDO AÇO CA-60 DE 5 MM - MONTAGEM. AF_06/2017 | C187: KG | D187: 4.43 | E187: 16.7 | F187: 73.98
A188: 1.5.8.5 | B188: ARMAÇÃO DE BLOCO, VIGA BALDRAME OU SAPATA UTILIZANDO AÇO CA-50 DE 10 MM - MONTAGEM. AF_06/2017 | C188: KG | D188: 11.79 | E188: 12.33 | F188: 145.37
A189: 1.5.8.6 | B189: ARMAÇÃO DE CINTA DE ALVENARIA ESTRUTURAL; DIÂMETRO DE 8,0 MM | C189: KG | D189: 3.79 | E189: 10.33 | F189: 39.15
A190: 1.5.8.7 | B190: ARMAÇÃO VERTICAL DE ALVENARIA ESTRUTURAL; DIÂMETRO DE 10,0 MM. AF_01/2015 | C190: KG | D190: 13.99 | E190: 10.35 | F190: 144.8
A191: 1.5.8.8 | B191: (COMPOSIÇÃO REPRESENTATIVA) DE ALVENARIA DE BLOCOS DE CONCRETO ESTRUTURAL 14X19X39 CM, (ESPESSURA 14 CM), FBK = 4,5 MPA, UTILIZANDO PALHETA, PARA EDIFICAÇÃO HABITACIONAL. AF_10/2015 | C191: M2 | D191: 7.05 | E191: 73.39 | F191: 517.4
A192: 1.5.8.9 | B192: ESCAVAÇÃO MANUAL ESTACA BROCA DE CONCRETO, DIÃMETRO DE 25 CM, PROFUNDIDADE DE ATÉ 3 M, COM TRADO CONCHA, NÃO ARMADA | C192: KG | D192: 4.5 | E192: 44.8 | F192: 201.6
A193: 1.5.8.10 | B193: CONCRETO FCK = 25MPA, TRAÇO 1:2,3:2,7 (CIMENTO/ AREIA MÉDIA/ BRITA 1) - PREPARO MECÂNICO COM BETONEIRA 400 L. AF_07/2016 | C193: M3 | D193: 0.22 | E193: 416.14 | F193: 91.55
A194: 1.5.8.11 | B194: CORTE E DOBRA DE AÇO CA-60, DIÂMETRO DE 5,0 MM, UTILIZADO EM ESTRUTURAS DIVERSAS, EXCETO LAJES. AF_12/2015 | C194: KG | D194: 5.2 | E194: 10.12 | F194: 52.62
A195: 1.5.8.12 | B195: CORTE E DOBRA DE AÇO CA-50, DIÂMETRO DE 10,0 MM, UTILIZADO EM ESTRUTURAS DIVERSAS, EXCETO LAJES. AF_12/2015 | C195: KG | D195: 14.73 | E195: 9.16 | F195: 134.93
A196: 1.5.8.13 | B196: CONCRETAGEM DE BLOCOS DE COROAMENTO E VIGAS BALDRAME, FCK 25 MPA, COM USO DE BOMBA  LANÇAMENTO, ADENSAMENTO E ACABAMENTO | C196: M3 | D196: 0.11 | E196: 587.19 | F196: 64.59
A197: 1.5.8.14 | B197: ARMAÇÃO DE BLOCO, VIGA BALDRAME OU SAPATA UTILIZANDO AÇO CA-50 DE 8 MM - MONTAGEM. AF_06/2017 | C197: KG | D197: 22.52 | E197: 13.97 | F197: 314.6
A198: 1.5.9 | B198: ARRIMOS DE CONCRETO ARMADO- ITENS GERAIS | F198: =SUBTOTAL(9,F199:F201) -> 77756.98
A199: 1.5.9.1 | B199: ESCAVAÇÃO MECANIZADA PARA BLOCO DE COROAMENTO OU SAPATA, COM PREVISÃO DE FÔRMA, COM RETROESCAVADEIRA. AF_06/2017 | C199: M3 | D199: 1124.37 | E199: 33.82 | F199: =ROUND(D199*E199,2) -> 38026.19
A200: 1.5.9.2 | B200: CARGA E DESCARGA MECANIZADAS DE ENTULHO EM CAMINHAO BASCULANTE 6 M3 | C200: M3 | D200: 1574.12 | E200: 6.14 | F200: =ROUND(D200*E200,2) -> 9665.1
A201: 1.5.9.3 | B201: TRANSPORTE COM CAMINHÃO BASCULANTE DE 6 M3, EM VIA URBANA PAVIMENTADA, DMT ATÉ 30 KM (UNIDADE: M3XKM). AF_01/2018 | C201: M3XKM | D201: 15741.2 | E201: 1.91 | F201: =ROUND(D201*E201,2) -> 30065.69
A202: 1.5.10 | B202: ARRIMOS DE CONCRETO ARMADO- MURO 1 (SAIDA DE VEÍCULOS) | F202: =SUBTOTAL(9,F203:F208) -> 33873.78
A203: 1.5.10.1 | B203: FABRICAÇÃO, MONTAGEM E DESMONTAGEM DE FÔRMA PARA CORTINA DE CONTENÇÃO, EM CHAPA DE MADEIRA COMPENSADA PLASTIFICADA, E = 18 MM, 10 UTILIZAÇÕES. AF_07/2019 | C203: M2 | D203: 194.3 | E203: 30.53 | F203: =ROUND(D203*E203,2) -> 5931.98
A204: 1.5.10.2 | B204: CONCRETO FCK = 25MPA, TRAÇO 1:2,3:2,7 (CIMENTO/ AREIA MÉDIA/ BRITA 1) - PREPARO MECÂNICO COM BETONEIRA 400 L. AF_07/2016 | C204: M3 | D204: 20.94 | E204: 416.14 | F204: 8713.97
... 626 more rows

Sheet BLOCO A
A1: PLANILHA ORÇAMENTARIA | D1: SPN-FF-003
D3: Folha: 1 de 1 | E3: Revisão: 02 | F3: Data: 07/10/19
A5: =RESUMO!A5 -> SESI - SERVIÇO SOCIAL DA INDUSTRIA - DR/MT
A6: =RESUMO!A6 -> OBRA: CONTRATAÇÃO DE EMPRESA ESPECIALIZADA EM ENGENHARIA PARA OBRA DE REFORMA E AMPLIAÇÃO DA UNIDADE SESI ESCOLA CUIABÁ
A7: =RESUMO!A7 -> UNIDADE OPERACIONAL: SESI ESCOLA CUIABA
A8: =RESUMO!A8 -> ENDEREÇO: AV. OÁTOMO CANAVARROS, 1079, BAIRRO BELA VISTA CIDADE: CUIABÁ-MT
A9: CONSTRUTORA:
A10: RESPONSÁVEL TÉCNICO:
A12: ITEM | B12: DESCRIÇÃO | C12: UNID. | D12: QUANT. | E12: Valor UNIT. (R$) | F12: Valor Total (R$)
A14: BLOCO A
A15: 2.1 | B15: DEMOLIÇÕES E RETIRADAS | F15: =SUBTOTAL(9,F16:F35) -> 49460.85
A16: 2.1.1 | B16: DEMOLIÇÃO DE ALVENARIA DE BLOCO FURADO, DE FORMA MANUAL, SEM REAPROVEITAMENTO. AF_12/2017 | C16: M3 | D16: 60.061325 | E16: 50.69 | F16: =ROUND(D16*E16,2) -> 3044.51
A17: 2.1.2 | B17: RETIRADA GRADE METALICA | C17: M2 | D17: 50.8482 | E17: 10.91 | F17: =ROUND(D17*E17,2) -> 554.75
A18: 2.1.3 | B18: DEMOLIÇÃO DE LAJES, DE FORMA MECANIZADA COM MARTELETE, SEM REAPROVEITAMENTO. AF_12/2017 | C18: M3 | D18: 16.857512 | E18: 107.62 | F18: 1814.21
A19: 2.1.4 | B19: DEMOLIÇÃO DE PISO REVESTIDO COM GRANILITE | C19: M2 | D19: 561.38 | E19: 24.23 | F19: 13602.24
A20: 2.1.5 | B20: DEMOLIÇÃO DE REVESTIMENTO CERÂMICO, DE FORMA MECANIZADA COM MARTELETE, SEM REAPROVEITAMENTO. AF_12/2017 | C20: M2 | D20: 235.316 | E20: 10.56 | F20: 2484.94
A21: 2.1.6 | B21: RETIRADA DE BANCADA COM REAPROVEITAMENTO | C21: M2 | D21: 3.3616 | E21: 43.7 | F21: 146.9
A22: 2.1.7 | B22: REMOÇÃO DE TESOURAS METÁLICAS, COM VÃO MENOR QUE 8M, DE FORMA MANUAL, SEM REAPROVEITAMENTO. (MEMORIAL DE ARQUITETURA- COBERTURA 2 ) | C22: UN | D22: 6 | E22: 212.34 | F22: 1274.04
A23: 2.1.8 | B23: REMOÇÃO DE TRAMA DE MADEIRA PARA COBERTURA, DE FORMA MANUAL, SEM REAPROVEITAMENTO. (MEMORIAL DE ARQUITETURA- COBERTURA 2, 3 E 4) | C23: M2 | D23: 832.57 | E23: 6.78 | F23: 5644.82
A24: 2.1.9 | B24: REMOÇÃO DE TELHAS, DE FIBROCIMENTO, METÁLICA E CERÂMICA, DE FORMA MANUAL, SEM REAPROVEITAMENTO. (MEMORIAL DE ARQUITETURA- COBERTURA 2, 3 E 4) | C24: M2 | D24: 832.57 | E24: 3.14 | F24: 2614.27
A25: 2.1.10 | B25: REMOÇÃO DE PLATIBANDA EM CHAPA METÁLICA COM REAPROVEITAMENTO. | C25: M2 | D25: 66.204 | E25: 21.62 | F25: 1431.33
A26: 2.1.11 | B26: REMOÇÃO DE LOUÇAS, DE FORMA MANUAL | C26: UN | D26: 22 | E26: 10.97 | F26: 241.34
A27: 2.1.12 | B27: REMOÇÃO DE PORTAS, DE FORMA MANUAL, COM REAPROVEITAMENTO. | C27: M2 | D27: 36.75 | E27: 31.59 | F27: 1160.93
A28: 2.1.13 | B28: REMOÇÃO DE PORTAS , GUICHÊ E BOX DE VIDRO TEMPERADO, DE FORMA MANUAL, COM REAPROVEITAMENTO. | C28: M2 | D28: 33.191 | E28: 31.59 | F28: 1048.5
A29: 2.1.14 | B29: REMOÇÃO DE JANELAS, DE FORMA MANUAL, COM REAPROVEITAMENTO. | C29: M2 | D29: 64.24 | E29: 75.29 | F29: 4836.63
A30: 2.1.15 | B30: REMOÇÃO DE METAIS SANITÁRIOS, DE FORMA MANUAL, SEM REAPROVEITAMENTO. AF_12/2017 | C30: UN | D30: 27 | E30: 7.99 | F30: 215.73
A31: 2.1.16 | B31: REMOÇÃO DE FORROS DE DRYWALL, PVC E FIBROMINERAL, DE FORMA MANUAL, SEM REAPROVEITAMENTO. AF_12/2017 | C31: M2 | D31: 657.65 | E31: 1.42 | F31: 933.86
A32: 2.1.17 | B32: REMOÇÃO DE TRAMA METÁLICA OU DE MADEIRA PARA FORRO, DE FORMA MANUAL, SEM REAPROVEITAMENTO. AF_12/2017 | C32: M2 | D32: 657.65 | E32: 2.54 | F32: 1670.43
A33: 2.1.18 | B33: DEMOLIÇÃO DE PISO REVESTIDO DE GRANITO | C33: M2 | D33: 57.09 | E33: 21.06 | F33: 1202.32
A34: 2.1.19 | B34: RETIRADA DE GUARDA-CORPO E CORRIMÃO | C34: M2 | D34: 20.9408 | E34: 10.91 | F34: 228.46
A35: 2.1.20 | B35: BOTA FORA DE MATERIAL DESCARTADO, D.M.T. = 10 km - (CARGA, TRANSPORTE E DESCARGA MECÂNICA) | C35: M3 | D35: 210.489117 | E35: 25.23 | F35: 5310.64
A36: 2.2 | B36: CANTEIRO DE OBRAS | F36: 0
A37: 2.3 | B37: ADMINISTRAÇÃO | F37: 0
A38: 2.4 | B38: TERRAPLENAGEM | F38: 0
A39: 2.5 | B39: FUNDAÇÃO | F39: =SUBTOTAL(9,F40:F55) -> 157727.85
A40: 2.5.1 | B40: ESCAVAÇÃO MECANIZADA PARA BLOCO DE COROAMENTO OU SAPATA, COM PREVISÃO DE FÔRMA, COM RETROESCAVADEIRA. AF_06/2017 | C40: M³ | D40: 277.2 | E40: 33.82 | F40: =ROUND(D40*E40,2) -> 9374.9
A41: 2.5.2 | B41: ESCAVAÇÃO MANUAL DE VALA PARA VIGA BALDRAME, COM PREVISÃO DE FÔRMA. AF_06/2017 | C41: M³ | D41: 27.76 | E41: 115.9 | F41: 3217.38
A42: 2.5.3 | B42: REATERRO MANUAL DE VALAS COM COMPACTAÇÃO MECANIZADA. AF_04/2016 | C42: M³ | D42: 242.5 | E42: 26 | F42: 6305
A43: 2.5.4 | B43: CARGA E DESCARGA MECANIZADAS DE ENTULHO EM CAMINHAO BASCULANTE 6 M3 | C43: M³ | D43: 87.44 | E43: 6.14 | F43: 536.88
A44: 2.5.5 | B44: TRANSPORTE COM CAMINHÃO BASCULANTE DE 6 M3, EM VIA URBANA PAVIMENTADA, DMT ATÉ 30 KM (UNIDADE: M3XKM). AF_01/2018 | C44: M3XKM | D44: 874.4 | E44: 1.91 | F44: 1670.1
A45: 2.5.6 | B45: FUNDAÇÃO (SAPATAS E VIGAS DE EQUILÍBRIO) E ESTRUTURA - CONCRETO 1:4:8, CONCRETO MAGRO, C/ BRITA 1 E 2, C/BETONEIRA (e=5cm) | C45: M³ | D45: 6.9 | E45: 195.7 | F45: 1350.33
A46: 2.5.7 | B46: FUNDAÇÃO (SAPATAS E VIGAS DE EQUILÍBRIO) - FORMA PINHO 3A P/CONCRETO EM FUNDAÇÃO REAPROVEITAMENTO 2X - CORTE/MONTAGEM /ESCORAMENTO/DESFORMA | C46: M² | D46: 179.3 | E46: 87.39 | F46: 15669.03
A47: 2.5.8 | B47: FUNDAÇÃO (SAPATAS, BLOCOS E VIGAS DE EQUILIBRIO) - ARMAÇÃO DE FUNDAÇÕES E ESTRUTURAS DE CONCRETO ARMADO, UTILIZANDO AÇO DE 6,30 MM- ARMAÇÃO E MONTAGEM | C47: KG | D47: 42.1 | E47: 15.24 | F47: =ROUND(D47*E47,2) -> 641.6
A48: 2.5.9 | B48: FUNDAÇÃO (SAPATAS, BLOCOS E VIGAS DE EQUILIBRIO) - ARMAÇÃO DE FUNDAÇÕES E ESTRUTURAS DE CONCRETO ARMADO, UTILIZANDO AÇO DE 8.00 MM- ARMAÇÃO E MONTAGEM | C48: KG | D48: 39.2 | E48: 13.97 | F48: 547.62
A49: 2.5.10 | B49: FUNDAÇÃO (SAPATAS, BLOCOS E VIGAS DE EQUILIBRIO) - ARMAÇÃO DE FUNDAÇÕES E ESTRUTURAS DE CONCRETO ARMADO, UTILIZANDO AÇO DE 10.00 MM- ARMAÇÃO E MONTAGEM | C49: KG | D49: 818.6 | E49: 12.33 | F49: 10093.34
A50: 2.5.11 | B50: FUNDAÇÃO (SAPATAS, BLOCOS E VIGAS DE EQUILIBRIO) - ARMAÇÃO DE FUNDAÇÕES E ESTRUTURAS DE CONCRETO ARMADO, UTILIZANDO AÇO DE 12.50 MM- ARMAÇÃO E MONTAGEM | C50: KG | D50: 1039.5 | E50: 10.34 | F50: 10748.43
A51: 2.5.12 | B51: FUNDAÇÃO (SAPATAS, BLOCOS E VIGAS DE EQUILIBRIO) - ARMAÇÃO DE FUNDAÇÕES E ESTRUTURAS DE CONCRETO ARMADO, UTILIZANDO AÇO DE 16 MM- ARMAÇÃO E MONTAGEM | C51: KG | D51: 2996.1 | E51: 9.68 | F51: 29002.25
A52: 2.5.13 | B52: FUNDAÇÃO (SAPATAS, BLOCOS E VIGAS DE EQUILIBRIO) - ARMAÇÃO DE FUNDAÇÕES E ESTRUTURAS DE CONCRETO ARMADO, UTILIZANDO AÇO DE 20 MM- ARMAÇÃO E MONTAGEM | C52: KG | D52: 394.1 | E52: 10.63 | F52: 4189.28
A53: 2.5.14 | B53: FUNDAÇÃO (SAPATAS, BLOCOS E VIGAS DE EQUILIBRIO) - ARMAÇÃO DE FUNDAÇÕES E ESTRUTURAS DE CONCRETO ARMADO, UTILIZANDO AÇO DE 25 MM- ARMAÇÃO E MONTAGEM | C53: KG | D53: 132.2 | E53: 10.3 | F53: 1361.66
A54: 2.5.15 | B54: FUNDAÇÃO (SAPATAS, BLOCOS E VIGAS DE EQUILIBRIO) - CONCRETO USINADO BOMBEAVEL, CLASSE DE RESISTENCIA C25, COM BRITA 0 E 1, SLUMP = 100 +/- 20 MM, INCLUI SERVICO DE BOMBEAMENTO (NBR 8953) | C54: M³ | D54: 100.48 | E54: 594.23 | F54: 59708.23
A55: 2.5.16 | B55: FUNDAÇÃO (SAPATAS, BLOCOS E VIGAS DE EQUILIBRIO) - LANÇAMENTO COM USO DE BOMBA, ADENSAMENTO E ACABAMENTO DE CONCRETO EM ESTRUTURAS. | C55: M³ | D55: 100.48 | E55: 32.96 | F55: 3311.82
A56: 2.6 | B56: IMPERMEABILIZAÇÃO | F56: =SUBTOTAL(9,F57:F57) -> 5129
A57: 2.6.1 | B57: IMPERMEABILIZAÇÃO DE SUPERFÍCIE COM EMULSÃO ASFÁLTICA, 2 DEMÃOS AF_06/2018 | C57: M² | D57: 143.75 | E57: 35.68 | F57: =ROUND(D57*E57,2) -> 5129
A58: 2.7 | B58: ESTRUTURA DE CONCRETO ARMADO | F58: =SUBTOTAL(9,F59:F69) -> 180336.85
A59: 2.7.1 | B59: ESTRUTURA (PILARES) - FORMA PARA CONCRETO EM PILARES 2XREAPROVEITAMENTO - CORTE/MONTAGEM /ESCORAMENTO/DESFORMA | C59: M2 | D59: 288.3 | E59: 130.4 | F59: =ROUND(D59*E59,2) -> 37594.32
A60: 2.7.2 | B60: ESTRUTURA (VIGAS) - FORMA PARA CONCRETO EM VIGAS 2X REAPROVEITAMENTO - CORTE/MONTAGEM /ESCORAMENTO/DESFORMA | C60: M2 | D60: 346 | E60: 137.24 | F60: 47485.04
A61: 2.7.3 | B61: ESTRUTURA (VIGAS E PILARES, VIGAS BALDRAMES) - ARMAÇÃO DE FUNDAÇÕES E ESTRUTURAS DE CONCRETO ARMADO, UTILIZANDO AÇO DE 5.00 MM - MONTAGEM | C61: KG | D61: 267.4 | E61: 16.8 | F61: 4492.32
A62: 2.7.4 | B62: ESTRUTURA (VIGAS E PILARES, VIGAS BALDRAMES) - ARMAÇÃO DE FUNDAÇÕES E ESTRUTURAS DE CONCRETO ARMADO, UTILIZANDO AÇO DE 6,30 MM - ARMAÇÃO E MONTAGEM | C62: KG | D62: 761 | E62: 15.31 | F62: 11650.91
A63: 2.7.5 | B63: ESTRUTURA (VIGAS E PILARES, VIGAS BALDRAMES) - ARMAÇÃO DE FUNDAÇÕES E ESTRUTURAS DE CONCRETO ARMADO, UTILIZANDO AÇO DE 8.00 MM- ARMAÇÃO E MONTAGEM | C63: KG | D63: 13.5 | E63: 13.96 | F63: 188.46
A64: 2.7.6 | B64: ESTRUTURA (VIGAS E PILARES, VIGAS BALDRAMES) - ARMAÇÃO DE FUNDAÇÕES E ESTRUTURAS DE CONCRETO ARMADO, UTILIZANDO AÇO DE 10.00 MM- ARMAÇÃO E MONTAGEM | C64: KG | D64: 116.5 | E64: 12.25 | F64: 1427.13
A65: 2.7.7 | B65: ESTRUTURA (VIGAS E PILARES, VIGAS BALDRAMES) - ARMAÇÃO DE FUNDAÇÕES E ESTRUTURAS DE CONCRETO ARMADO, UTILIZANDO AÇO DE 12.50 MM- ARMAÇÃO E MONTAGEM | C65: KG | D65: 2599.3 | E65: 10.19 | F65: 26486.87
A66: 2.7.8 | B66: ESTRUTURA (VIGAS E PILARES, VIGAS BALDRAMES) - ARMAÇÃO DE FUNDAÇÕES E ESTRUTURAS DE CONCRETO ARMADO, UTILIZANDO AÇO DE 16 MM- ARMAÇÃO E MONTAGEM | C66: KG | D66: 2242.4 | E66: 9.47 | F66: 21235.53
A67: 2.7.9 | B67: ESTRUTURA (VIGAS E PILARES, VIGAS BALDRAMES) - ARMAÇÃO DE FUNDAÇÕES E ESTRUTURAS DE CONCRETO ARMADO, UTILIZANDO AÇO DE 20 MM- ARMAÇÃO E MONTAGEM | C67: KG | D67: 156 | E67: 10.38 | F67: 1619.28
A68: 2.7.10 | B68: ESTRUTURA (VIGAS E PILARES, VIGAS BALDRAMES) - CONCRETO USINADO BOMBEAVEL, CLASSE DE RESISTENCIA C25, COM BRITA 0 E 1, SLUMP = 100 +/- 20 MM, INCLUI SERVICO DE BOMBEAMENTO (NBR 8953) | C68: M³ | D68: 48.2 | E68: 551.21 | F68: 26568.32
A69: 2.7.11 | B69: ESTRUTURAS (VIGAS E PILARES, VIGAS BALDRAMES) - LANÇAMENTO COM USO DE BOMBA, ADENSAMENTO E ACABAMENTO DE CONCRETO EM ESTRUTURAS. | C69: M³ | D69: 48.2 | E69: 32.96 | F69: 1588.67
A70: 2.8 | B70: ALVENARIA E PAINÉIS | F70: =SUBTOTAL(9,F71:F78) -> 69272.01
A71: 2.8.1 | B71: ALVENARIA DE VEDAÇÃO DE BLOCOS CERÂMICOS FURADOS NA HORIZONTAL DE 9X19X19CM (ESPESSURA 9CM) DE PAREDES COM ÁREA LÍQUIDA MAIOR OU IGUAL A 6M² COM VÃOS E ARGAMASSA DE ASSENTAMENTO COM PREPARO EM BETONEIRA. AF_06/2014 | C71: M2 | D71: 512.835 | E71: 83.75 | F71: =ROUND(D71*E71,2) -> 42949.93
A72: 2.8.2 | B72: PAREDE COM PLACAS DE GESSO ACARTONADO (DRYWALL), PARA USO INTERNO, COM DUAS FACES SIMPLES E ESTRUTURA METÁLICA COM GUIAS SIMPLES, COM VÃOS AF_06/2017_P | C72: M2 | D72: 134.3075 | E72: 104.87 | F72: 14084.83
A73: 2.8.3 | B73: INSTALAÇÃO DE ISOLAMENTO COM LÃ DE ROCHA EM PAREDES DRYWALL. AF_06/2017 | C73: M2 | D73: 134.3075 | E73: 27.43 | F73: 3684.05
A74: 2.8.4 | B74: VERGA PRÉ-MOLDADA PARA JANELAS COM ATÉ 1,5 M DE VÃO. AF_03/2016 | C74: M | D74: 13.16 | E74: 32.8 | F74: 431.65
A75: 2.8.5 | B75: CONTRAVERGA PRÉ-MOLDADA PARA VÃOS DE ATÉ 1,5 M DE COMPRIMENTO. AF_03/2016 | C75: M | D75: 13.16 | E75: 32.26 | F75: 424.54
A76: 2.8.6 | B76: VERGA PRÉ-MOLDADA PARA JANELAS COM MAIS DE 1,5 M DE VÃO. AF_03/2016 | C76: M | D76: 94.22 | E76: 41.68 | F76: 3927.09
A77: 2.8.7 | B77: CONTRAVERGA PRÉ-MOLDADA PARA VÃOS DE MAIS DE 1,5 M DE COMPRIMENTO. AF_03/2016 | C77: M | D77: 81.62 | E77: 38.39 | F77: 3133.39
A78: 2.8.8 | B78: VERGA PRÉ-MOLDADA PARA PORTAS COM ATÉ 1,5 M DE VÃO. AF_03/2016 | C78: M | D78: 25.76 | E78: 24.71 | F78: 636.53
A79: 2.9 | B79: ESTRUTURA METÁLICA | F79: =SUBTOTAL(9,F80:F84) -> 520689.75
A80: 2.9.1 | B80: ESTRUTURA METALICA DA COBERTURA E FACHADA CONFORME PROJETO EM AÇO ESTRUTURAL | C80: KG | D80: 24632.01 | E80: 15.16 | F80: =ROUND(D80*E80,2) -> 373421.27
A81: 2.9.2 | B81: RETIRADA DE ESTRUTURA PLATIBANDA, SECCIONAMENTO DE TESOURAS METALICAS EXISTENTES E RECOLOCAÇÃO DAS ESTRUTURA DA PLATIBANDA COM APROVEITAMENTO DO MATERIAL EXISTENTE, ELEVAÇÃO FRONTAL.(MEMORIAL ARQUITETURA- COBERTURA 04) | C81: M2 | D81: 26.44 | E81: 27.97 | F81: =ROUND(D81*E81,2) -> 739.53
A82: 2.9.3 | B82: SUBSTIUIÇÃO DA TRAMA DE MADEIRAS POR TERÇA METALICA .(MEMORIAL ARQUITETURA- COBERTURA 02) | C82: KG | D82: 4118.4 | E82: 15.16 | F82: =ROUND(D82*E82,2) -> 62434.94
A83: 2.9.4 | B83: PINTURA COM TINTA PROTETORA ACABAMENTO CINZA PLATINA ESMALTE SOBRE SUPERFICIE METALICA, 2 DEMAOS (TODA ESTRUTURA DA COBERTURA ,FACHADA E PLATIBANDA) | C83: M2 | D83: 1490.5 | E83: 41.6 | F83: =ROUND(D83*E83,2) -> 62004.8
A84: 2.9.5 | B84: FUNDO PREPARADOR PRIMER A BASE DE EPOXI, UMA DEMAO, ESPESSURA DE 25 MICRA.(TODA ESTRUTURA DA COBERTURA ,FACHADA E PLATIBANDA) | C84: M2 | D84: 1490.5 | E84: 14.82 | F84: =ROUND(D84*E84,2) -> 22089.21
A85: 2.10 | B85: COBERTURA | F85: =SUBTOTAL(9,F86:F89) -> 239649.82
A86: 2.10.1 | B86: TELHAMENTO COM TELHA METÁLICA TERMOACÚSTICA E = 30 MM, COM ATÉ 2 ÁGUAS , INCLUSO IÇAMENTO. AF_07/2019, conforme projeto e memorial descritivo REVESTIMENTO SUPERIOR: • AÇO GALVALUME AZM150 PRÉ-PINTADO TRAPEZOIDAL TP30, ESPESSURA TÉCNICA DE 0,43 MM, CROMATIZADA COM PRIMER EPÓXI (4 A 6 MICRONS) E PINTURA DE ACABAMENTO EM POLIÉSTER (18 A 22 MICRONS) COR BRANCO GELO (PADRÃO RAL 9003), CONJUNTO MONOLÍTICO TELHA/EPS/FILME, PRODUZIDO PELO PROCESSO DE COLAGEM CONTÍNUA, CONFORME FABRICANTE NÚCLEO: • NÚCLEO ISOLANTE EM E.P.S. (POLIESTIRENO EXPANDIDO), ESPESSURA 30 MM, LIVRE DE CFC REVESTIMENTO INFERIOR: • FILME DE ALUMÍNIO ESTUCO FOSCO, ESP. TÉC. MÍNIMA 40 U.M. Referência comercial: ISOESTE OU SIMILAR | C86: M2 | D86: 1007.49 | E86: 207.03 | F86: =ROUND(D86*E86,2) -> 208580.65
A87: 2.10.2 | B87: CUMEEIRA TRAPEZOIDAL TP -30 RAL 9003 PRÉ PINTADA NA COR BRANCA #0,43 DE AÇO GALVANIZADO, ISOESTE OU SIMILAR | C87: M | D87: 47 | E87: 68.68 | F87: =ROUND(D87*E87,2) -> 3227.96
A88: 2.10.3 | B88: PLATIBANDA EM CHAPA DE AÇO COM REAPROVEITANDO DO MATERIAL EXISTENTE | C88: M2 | D88: 88.416 | E88: 264.61 | F88: =ROUND(D88*E88,2) -> 23395.76
A89: 2.10.4 | B89: PLATIBANDA EM CHAPA DE AÇO ESPESSURA 2,00mm, H=1600mm, DOBRA CARTOLA: 30X20X970mm, COM METALON DIM. 50X20X0,97mm NA FACE INFERIOR PARA ARREMATE COM O FORRO, FUNDO ANTICORROSIVO EM PRIMER EPÓXI NAS DUAS FACES (MATERIAL NOVO) | C89: M2 | D89: 16.8 | E89: 264.61 | F89: =ROUND(D89*E89,2) -> 4445.45
A90: 2.11 | B90: ESQUADRIAS | F90: =SUBTOTAL(9,F91:F110) -> 255137.08
A91: 2.11.1 | B91: P1 – PORTA DE ABRIR DUAS FOLHAS, EM PAINEL DE VIDRO LAMINADO NA COR BLUE STAR 8MM (4MM+4MM), DIM. 2,10X2,45M, REQUADRO DE ALUMÍNIO NA COR: NATURAL, INCLUINDO DOBRADIÇAS, FECHADURAS, PUXADORES TUBULAR RETO 40CM ALUMINIO POLIDO, MOLA HIDRÁULICA DE PISO NAS DUAS FOLHAS E TODAS AS FERRAGENS DE INSTALAÇÃO PARA PERFEITO USO E FUNCIONAMENTO. (PELE DE VIDRO DA FACHADA) | C91: CONJ | D91: 2 | E91: 9019.94 | F91: =ROUND(D91*E91,2) -> 18039.88
A92: 1.11.2 | B92: P2 - PORTA DE ABRIR EM LAMBRIL COM ALISAR E PORTAL EM ALUMÍNIO, COM PINTURA ELETROSTÁTICA MICROTEXTURADA, DIM. 0,70 X 2,10M, COR AZUL NEON NA FOLHA; PORTAL, ALISAR, DOBRADIÇA NA COR CINZA PLATINA, FECHADURA MODELO STAM 803/10 ESPELHO INOX EXT., INCLUSIVE FERRAGENS DE INSTALAÇÃO PARA PERFEITO USO E FUNCIONAMENTO. (1 UNIDADE: LAVABO GERÊNCIA) | C92: M2 | D92: 1.47 | E92: 1280.44 | F92: 1882.25
A93: 1.11.3 | B93: P3 - PORTA DE VIDRO TEMPERADO DE DUAS FOLHAS DE ABRIR 1,80X2,10 FUMÊ ESP.10MM, COM MOLA HIDRÁULICA DE PISO NAS DUAS FOLHAS,PUXADOR TUBULAR RETO 40CM ALUMINIO POLIDO, FERRAGENS CROMADAS E FIXAÇÕES EM PAREDES, PISOS E FORROS CONFORME NORMAS DO FABRICANTE, SEGUINDO AS INDICAÇÕES DO PROJETO ARQUITETÔNICO, INCLUSIVE FERRAGENS DE INSTALAÇÃO PARA PERFEITO USO E FUNCIONAMENTO. (HALL DE ENTRADA) | C93: CONJ | D93: 4 | E93: 5529.38 | F93: 22117.52
A94: 1.11.4 | B94: P3 REAPROVEITADA - PORTA DE VIDRO TEMPERADO DE DUAS FOLHAS DE ABRIR 1,80X2,10, COM REAPROVEITAMENTO DO VIDRO, INCLUSO NOVAS MOLAS HIDRÁULICA DE PISO NAS DUAS FOLHAS, NOVOS PUXADORES TUBULAR RETO 40CM ALUMINIO POLIDO, E NOVAS FERRAGENS CROMADAS E FIXAÇÕES EM PAREDES, PISOS E FORROS CONFORME NORMAS DO FABRICANTE, SEGUINDO AS INDICAÇÕES DO PROJETO ARQUITETÔNICO, INCLUSIVE FERRAGENS DE INSTALAÇÃO PARA PERFEITO USO E FUNCIONAMENTO. (CIRCULAÇÃO SECRETARIA, ÁREA TÉCNICA E SALA DE TREINAMENTO) | C94: CONJ | D94: 4 | E94: 5529.38 | F94: 22117.52
A95: 1.11.5 | B95: P4 - PORTA DE ABRIR EM LAMBRIL COM ALISAR E PORTAL EM ALUMÍNIO, COM PINTURA ELETROSTÁTICA MICROTEXTURADA, DIM. 0,80 X 2,10M, COR AZUL NEON NA FOLHA; PORTAL, ALISAR, DOBRADIÇA NA COR CINZA PLATINA, FECHADURA MODELO STAM 803/10 ESPELHO INOX EXT., INCLUSIVE FERRAGENS DE INSTALAÇÃO PARA PERFEITO USO E FUNCIONAMENTO. (3 UNIDADES: SANITÁRIOS MASCULINO, FEMININO E DEPOSITO MATERIAIS ESPORTIVOS). | C95: M2 | D95: 5.04 | E95: 1280.44 | F95: 6453.42
A96: 1.11.6 | B96: P5 - PORTA DE ABRIR EM LAMBRIL COM ALISAR E PORTAL EM ALUMÍNIO, COM PINTURA ELETROSTÁTICA MICROTEXTURADA, DIM. 0,90 X 2,10M, COR AZUL NEON NA FOLHA; PORTAL, ALISAR, DOBRADIÇA NA COR CINZA PLATINA, FECHADURA MODELO STAM 803/10 ESPELHO INOX EXT., INCLUSIVE FERRAGENS DE INSTALAÇÃO PARA PERFEITO USO E FUNCIONAMENTO. (23 UNIDADES: SALAS ADMINISTRATIVAS EM GERAL) | C96: M2 | D96: 43.47 | E96: 1280.44 | F96: 55660.73
A97: 1.11.7 | B97: P5 REAPROVEITADA- PORTA DE ABRIR COM ALISAR E PORTAL EM ALUMÍNIO, COM NOVAS MOLDURAS/GUARNIÇÃO DE ACABAMENTO E NOVAS FERRAGENS DE INSTALAÇÃO PARA PERFEITO USO E FUNCIONAMENTO. (4 UNIDADES: DEP. DE MATERIAIS DE MAN. E PAT, DEP. GARR. ÁGUA, DML, DEP. EQUIP. SONORIZAÇÃO) | C97: M2 | D97: 7.56 | E97: 126.18 | F97: 953.92
A98: 1.11.8 | B98: P11 - PORTA DE ABRIR EM VENEZIANA, DIM 0,60X1,90M INSTALADA 0,20M ACIMA DO PISO, ALUMÍNIO FOSCO, FECHADURA, INCLUSIVE FERRAGENS DE INSTALAÇÃO PARA PERFEITO USO E FUNCIONAMENTO. (13 UNIDADES: TODOS OS BOXES DOS SANITÁRIOS.) | C98: M2 | D98: 14.82 | E98: 925.66 | F98: 13718.28
A99: 1.11.9 | B99: P18 –PORTA DE VIDRO TEMPERADO, UMA FOLHA DE ABRIR 0,90X2,10M FUMÊ ESP.10MM, COM MOLA HIDRÁULICA DE PISO NA FOLHA, PUXADOR TUBULAR RETO 40CM ALUMINIO POLIDO, FERRAGENS CROMADAS E FIXAÇÕES EM PAREDES, PISOS E FORROS CONFORME NORMAS DO FABRICANTE, SEGUINDO AS INDICAÇÕES DO PROJETO ARQUITETÔNICO, INCLUSIVE FERRAGENS DE INSTALAÇÃO PARA PERFEITO USO E FUNCIONAMENTO. (LOCAL: BRINQUEDOTECA) | C99: CONJ | D99: 1 | E99: 2764.68 | F99: 2764.68
A100: 1.11.10 | B100: P18 REAPROVEITADA- PORTA DE VIDRO TEMPERADO, UMA FOLHA DE ABRIR 0,90X2,10M , COM REAPROVEITAMENTO DO VIDRO, INCLUSO NOVA MOLA HIDRÁULICA DE PISO NA FOLHA, NOVO PUXADOR TUBULAR RETO 40CM ALUMINIO POLIDO, NOVAS FERRAGENS CROMADAS E FIXAÇÕES EM PAREDES, PISOS E FORROS CONFORME NORMAS DO FABRICANTE, SEGUINDO AS INDICAÇÕES DO PROJETO ARQUITETÔNICO, INCLUSIVE FERRAGENS DE INSTALAÇÃO PARA PERFEITO USO E FUNCIONAMENTO. (BRINQUEDOTECA E ESPERA) | C100: CONJ | D100: 1 | E100: 2764.68 | F100: 2764.68
A101: 1.11.11 | B101: J1 - JANELA DE VIDRO TEMPERADO, 6MM , INCOLOR, DIM. 0,70X1,45X1,18, ESTRUTURA EM ALUMÍNIO ANODIZADO FOSCO, JANELA CONTENDO UMA SUBDIVISÃO, SENDO A PARTE SUPERIOR MÓVEL TIPO MÁXIMO-AR E A PARTE INFERIOR FIXA, INCLUSIVE FERRAGENS DE INSTALAÇÃO PARA PERFEITO USO E FUNCIONAMENTO; (3 UNIDADES: INSPETORIA, ENFERMAGEM E GERÊNCIA) | C101: M2 | D101: 3.045 | E101: 648.33 | F101: =ROUND(D101*E101,2) -> 1974.16
A102: 1.11.12 | B102: J3 - JANELA DE VIDRO TEMPERADO, 6MM , INCOLOR, DIM. 2,10X1,45X1,18, ESTRUTURA EM ALUMÍNIO ANODIZADO FOSCO, JANELA DIVIDIDO EM 03 PARTES IGUAIS, E EM CADA UMA DESSAS PARTES DEVERÁ CONTER UMA SUBDIVISÃO, SENDO A PARTE SUPERIOR MÓVEL TIPO MÁXIMO-AR E A PARTE INFERIOR FIXA, INCLUSIVE FERRAGENS DE INSTALAÇÃO PARA PERFEITO USO E FUNCIONAMENTO. (15 UNIDADES- SALAS ADMINISTRATIVAS NO GERAL) | C102: M2 | D102: 45.675 | E102: 648.33 | F102: 29612.47
A103: 1.11.13 | B103: J6- JANELA DE VIDRO TEMPERADO, 6MM , INCOLOR, DIM. 0,70X0,60X2,30, ESTRUTURA EM ALUMÍNIO ANODIZADO FOSCO, JANELA MÓVEL TIPO MÁXIMO-AR, INCLUSIVE FERRAGENS DE INSTALAÇÃO PARA PERFEITO USO E FUNCIONAMENTO; (4 UNIDADES: LAVABO GERÊNCIA, SANITÁRIOS PCD, DEPOSITO GARRAFÕES DE AGUA) | C103: M2 | D103: 1.68 | E103: 648.33 | F103: 1089.19
A104: 1.11.14 | B104: J8- JANELA DE VIDRO TEMPERADO, 6MM , INCOLOR, DIM. 2,10X0,60X2,30, ESTRUTURA EM ALUMÍNIO ANODIZADO FOSCO, JANELA DIVIDIDO EM 03 PARTES IGUAIS, MÓVEL TIPO MÁXIMO-AR, INCLUSIVE FERRAGENS DE INSTALAÇÃO PARA PERFEITO USO E FUNCIONAMENTO. (8 UNIDADES: (8 UNIDADES: SANITÁRIOS, TI, ARQUIVO ESCOLAR E DEPÓSITO MATERIAL ESPORTIVO) | C104: M2 | D104: 10.08 | E104: 648.33 | F104: 6535.17
A105: 1.11.15 | B105: V1 - VISOR EM VIDRO TEMPERADO ESPESSURA 6MM, FUMÊ, DIM. 1,50X1,00X1,10, REQUADRO DE ALUMÍNIO NA COR NATURAL, INCLUSIVE FERRAGENS DE INSTALAÇÃO PARA PERFEITO USO E FUNCIONAMENTO. (5 UNIDAES: ÁREA TÉCNICA) | C105: M2 | D105: 7.5 | E105: 338.81 | F105: 2541.08
A106: 1.11.16 | B106: V2 - VISOR EM VIDRO TEMPERADO ESPESSURA 6MM, FUMÊ, DIM. 1,00X1,30X0,80, REQUADRO DE ALUMÍNIO NA COR NATURAL, COM BOQUETA, INCLUSIVE FERRAGENS DE INSTALAÇÃO PARA PERFEITO USO E FUNCIONAMENTO. (2 UNIDADES: TESOURARIA) | C106: M2 | D106: 2.6 | E106: 338.81 | F106: 880.91
A107: 1.11.17 | B107: V3 - VISOR EM VIDRO TEMPERADO ESPESSURA 6MM, FUMÊ, DIM. 2,00X1,00X1,10, REQUADRO DE ALUMÍNIO NA COR NATURAL, INCLUSIVE FERRAGENS DE INSTALAÇÃO PARA PERFEITO USO E FUNCIONAMENTO. (6 UNIDAES: ÁREA TÉCNICA) | C107: M2 | D107: 12 | E107: 338.81 | F107: 4065.72
A108: 1.11.18 | B108: VIDRO TEMPERADO INCOLOR, ESPESSURA 10MM, FORNECIMENTO E INSTALACAO. ( SALAS DOS PAIS E HALL DE ENTRADA) | C108: M2 | D108: 64.9211 | E108: 427.01 | F108: 27721.96
A109: 1.11.19 | B109: ESPELHO CRISTAL E=4MM, FORNECIMENTO E INSTALAÇÃO ( SANITÁRIOS) | C109: M2 | D109: 16.236 | E109: 471.22 | F109: 7650.73
A110: 1.11.20 | B110: FORNECIMENTO E INSTALAÇÃO DE PELE DE VIDRO COR A DEFINIR PELO ARQUITETO FISCAL - 8MM (4MM + 4MM), INCLUSIVE FERRAGENS DE INSTALAÇÃO - PARA PERFEITO USO E FUNCIONAMENTO. NESTE QUANTITATIVO ESTÃO INCLUSOS OS PAINÉIS FIXOS EM ESTRUTURA DE ALUMÍNIO. (FACHADA PRINCIPAL) | C110: M2 | D110: 19.72 | E110: 1348.52 | F110: 26592.81
A111: 2.12 | B111: PISOS | F111: =SUBTOTAL(9,F112:F117) -> 208753.6
A112: 2.12.1 | B112: CONTRAPISO DE CONCRETO 20 MPA PREPARO MECANICO, ESPESSURA 7CM. | C112: M2 | D112: 904.2918 | E112: 70.07 | F112: =ROUND(D112*E112,2) -> 63363.73
A113: 2.12.2 | B113: REGULARIZAÇÃO EM ARGAMASSA TRAÇO 1:4 (CIMENTO E AREIA), PREPARO MECÂNICOCOM BETONEIRA 400 L, APLICADO EM ÁREAS SECAS SOBRE LAJE, ADERIDO, ESPESSURA 3CM | C113: M2 | D113: 904.2918 | E113: 37.79 | F113: 34173.19
A114: 2.12.3 | B114: PISO PORCELANATO POLIDO ADHARA PO, 80X80CM, ELIANE OU SIMILR TÉCNICO. | C114: M2 | D114: 884.4033 | E114: 107.52 | F114: 95091.04
A115: 2.12.4 | B115: RODAPÉ EM PISO PORCELANATO POLIDO ADHARA PO, 80X80CM, ELIANE OU SIMILR TÉCNICO. | C115: M | D115: 533.6944 | E115: 11.48 | F115: 6126.81
A116: 2.12.5 | B116: PISO EM GRANITO CINZA ANDORINHA COM FRISO ANTIDERRAPANTE (RAMPAS DE ACESSO) | C116: M2 | D116: 19.8885 | E116: 447.96 | F116: 8909.25
A117: 2.12.6 | B117: RODAPÉ EM GRANITO, ALTURA 10 CM. | C117: M | D117: 13.44 | E117: 81.07 | F117: 1089.58
A118: 2.13 | B118: REVESTIMENTO | F118: =SUBTOTAL(9,F119:F126) -> 318561.15
A119: 2.13.1 | B119: CHAPISCO APLICADO EM ALVENARIAS E ESTRUTURAS DE CONCRETO INTERNAS, COM ROLO PARA TEXTURA ACRÍLICA. ARGAMASSA TRAÇO 1:4 E EMULSÃO POLIMÉRICA (ADESIVO) COM PREPARO EM BETONEIRA 400L. AF_06/2014 | C119: M2 | D119: 1025.67 | E119: 5.09 | F119: =ROUND(D119*E119,2) -> 5220.66
A120: 2.13.2 | B120: O SERVIÇO DE EMBOÇO/MASSA ÚNICA, APLICADO MANUALMENTE, TRAÇO 1:2:8, EM BETONEIRA DE 400L, PAREDES INTERNAS, COM EXECUÇÃO DE TALISCAS, EDIFICAÇÃO HABITACIONAL UNIFAMILIAR (CASAS) E EDIFICAÇÃO PÚBLICA PADRÃO. AF_12/2014 | C120: M2 | D120: 1025.67 | E120: 31.51 | F120: 32318.86
A121: 2.13.3 | B121: REVESTIMENTO CERAMICO PORTOBELLO GLACIE WHITE 30X60CM, INCLUSO E REJUNTE - FORNECIMENTO E INSTALAÇÃO | C121: M2 | D121: 267.8136 | E121: 156.44 | F121: 41896.76
A122: 2.13.4 | B122: REVESTIMENTO CERÂMICO PARA PAREDES EXTERNAS EM PASTILHAS DE PORCELANA 5 X 5 CM (PLACAS DE 30 X 30 CM), ALINHADAS A PRUMO, APLICADO EM PANOS COM VÃOS. AF_06/2014 | C122: M2 | D122: 40.1706 | E122: 246.69 | F122: 9909.69
A123: 2.13.5 | B123: REVESTIMENTO CERAMICO PORTOBELLO 7x26, BASALTO OFF WHITE, REFERENCIA 24995E, INCLUSO E REJUNTE - FORNECIMENTO E INSTALAÇÃO | C123: M2 | D123: 97.4108 | E123: 182.46 | F123: 17773.57
A124: 2.13.6 | B124: FORNECIMENTO E INSTALAÇÃO DE TELA EXPANDIDA EM AÇO GALVANIZADO, MALHA 20x50MM, PINTADO NA COR GRAFITE ESCURO. CONFORME INDICAÇÃO EM PROJETO E ESPECIFICAÇÃO DO FABRICANTE.; INCLUSIVE ESTRUTURA DE SUSTENTAÇÃO EM METALON 50X20X1,5 FIXAÇÃO EM CANTONEIRA METÁLICA, INCLUSIVE CHUMBAMENTOS EM ALVENARIAS, E DEMAIS ANCORAGENS DO CONJUNTO, CONFORME NORMAS DO FABRICANTE - FORNECIMENTO E INSTALAÇÃO | C124: M2 | D124: 102 | E124: 676.52 | F124: 69005.04
A125: 2.13.7 | B125: REVESTIMENTO DE ACM, REFERÊNCIA: PRO 107 SILVER WHITE METALLIC, PROJETO ALUMINIO OU SIMILAR- ALUMÍNIO COMPOSTO, TUBOS DE AUMÍNIO, ACESSÓRIOS, FRETES - CHAPAS DE ACM COM PINTURA KAYNNAR (PVDF) COM 4,0 DE ESPESSURA, COM GARANTIA DE PINTURA DE FABRICA DE 10 A 15 ANOS - CONFORME INDICAÇÃO EM PROJETO E ESPECIFICAÇÃO DO FABRICANTE; INCLUSIVE ESTRUTURA DE SUSTENTAÇÃO EM ALUMINIO ANODIZADO RETANGULAR PERFIL 25,50X3,18MM E FIXAÇÃO EM CANTONEIRA DE ALUMINIO 25,4X3,17MM E=1/8" , INCLUSIVE CHUMBAMENTOS EM ALVENARIAS/CONCRETO, E DEMAIS ANCORAGENS DO CONJUNTO, CONFORME NORMAS DO FABRICANTE. | C125: M2 | D125: 177.057 | E125: 596.77 | F125: =ROUND(D125*E125,2) -> 105662.31
A126: 2.13.8 | B126: REVESTIMENTO DE ACM, REFERÊNCIA: PRO 114 JADE SILVER METALLIC, PROJETO ALUMINIO OU SIMILAR - ALUMÍNIO COMPOSTO, TUBOS DE AUMÍNIO, ACESSÓRIOS, FRETES - CHAPAS DE ACM COM PINTURA KAYNNAR (PVDF) COM 4,0 DE ESPESSURA, COM GARANTIA DE PINTURA DE FABRICA DE 10 A 15 ANOS - CONFORME INDICAÇÃO EM PROJETO E ESPECIFICAÇÃO DO FABRICANTE; INCLUSIVE ESTRUTURA DE SUSTENTAÇÃO EM ALUMINIO ANODIZADO RETANGULAR PERFIL 25,50X3,18MM E FIXAÇÃO EM CANTONEIRA DE ALUMINIO 25,4X3,17MM E=1/8" , INCLUSIVE CHUMBAMENTOS EM ALVENARIAS/CONCRETO, E DEMAIS ANCORAGENS DO CONJUNTO, CONFORME NORMAS DO FABRICANTE. | C126: M2 | D126: 41.405 | E126: 888.16 | F126: =ROUND(D126*E126,2) -> 36774.26
A127: 2.14 | B127: GRANITO | F127: =SUBTOTAL(9,F128:F131) -> 65886.9
A128: 2.14.1 | B128: BANCADA DE GRANITO CINZA ANDORINHA, SOBRE MÃOS-FRANCESAS METÁLICAS, ESP=2cm COM FRONTÃO 20cm, SAIA COM ACAB. DE MEIA ESQUADRIA 30CM E REFORÇO INFERIOR DE BORDA E CORTE PARA INST. DE CUBAS DE LOUÇA OVAL DE EMBUTIR LOCAL -BANCADAS DOS SANITÁRIOS E LAVATÓRIOS- FRONTÃO 20CM E SAIA DE 30CM | C128: M2 | D128: 14.213 | E128: 884.39 | F128: =ROUND(D128*E128,2) -> 12569.84
A129: 2.14.2 | B129: DIVISORIA EM GRANITO BRANCO POLIDO, ESP = 3CM, ASSENTADO COM ARGAMASSA TRACO 1:4, ARREMATE EM CIMENTO BRANCO, EXCLUSIVE FERRAGENS | C129: M2 | D129: 43.905 | E129: 903.77 | F129: =ROUND(D129*E129,2) -> 39680.02
A130: 2.14.3 | B130: SOLEIRA EM GRANITO, LARGURA 15 CM, ESPESSURA 2,0 CM. AF_06/2018 | C130: M | D130: 56.32 | E130: 114.65 | F130: =ROUND(D130*E130,2) -> 6457.09
A131: 2.14.4 | B131: FORNECIMENTO E INSTALAÇÃO DE PEITORIL / PINGADEIRA EM GRANITO ANDORINHA 16,5 CM, ESPESSURA 2,0 CM, ASSENTADO COM ARGAMASSA TRACO 1:3 (CIMENTO E AREIA MEDIA), PREPARO MANUAL DA ARGAMASSA | C131: M2 | D131: 16.0281 | E131: 447.96 | F131: =ROUND(D131*E131,2) -> 7179.95
A132: 2.15 | B132: FORROS | F132: =SUBTOTAL(9,F133:F136) -> 128122.23
A133: 2.15.1 | B133: FORRO ACÚSTICO EM FIBRA MINERAL: REF: OWA DO BRASIL, MODELO COSMOS TEGULAR, MODULAÇÃO 625X625MM COM ABSORÇÃO ACÚSTICA NRC=0,65 E RESISTÊNCIA A UMIDADE RH 95% (COMPOSIÇÃO: FIBRA MINERAL BIOSOLÚVEL COMPOSTA POR MINERAIS INERTES, ARGILA E AMIDO NATURAL - MAT. INCOMBUSTÍVEL). | C133: M2 | D133: 793.8561 | E133: 142.13 | F133: =ROUND(D133*E133,2) -> 112830.77
A134: 2.15.2 | B134: FORRO DE PVC: FORRO DE PVC MODULAR BRANCO ESPSESSURA 10MM, MODULAÇÃO 625X625MM, INSTALADOS EM PERFIL "T", SUPENSO POR PENDURAIS EM ARRAME GALVANIZADO A CADA 1250X1250MM | C134: M2 | D134: 110.4357 | E134: 91.95 | F134: =ROUND(D134*E134,2) -> 10154.56
A135: 2.15.3 | B135: REVESTIMENTO DE ACM Tecbond Cinza Metálico Kynar OU SIMILAR - ALUMÍNIO COMPOSTO, FERRO, TUBOS DE AUMÍNIO, ACESSÓRIOS, ANDAIMES, FRETES - CHAPAS DE ACM COM PINTURA KAYNNAR (PVDF) COM 4,0 DE ESPESSURA, COM GARANTIA DE PINTURA DE FABRICA DE 10 A 15 ANOS - C (EMBAIXO MARQUISE DE ENTRADA) | C135: M2 | D135: 25 | E135: 28.15 | F135: =ROUND(D135*E135,2) -> 703.75
A136: 2.15.4 | B136: BEIRAIS-FORRO DE PVC, LISO, REGUA DE 20CM, INCLUSIVE ESTRUTURA DE FIXAÇÃO. AF_05/2017_P | C136: M2 | D136: 75.1 | E136: 59.03 | F136: =ROUND(D136*E136,2) -> 4433.15
A137: 2.16 | B137: PINTURA | F137: =SUBTOTAL(9,F138:F144) -> 73659.75
A138: 2.16.1 | B138: APLICAÇÃO DE FUNDO SELADOR LÁTEX PVA EM PAREDES DE ALVENARIA | C138: M2 | D138: 2174.43 | E138: 2.31 | F138: =ROUND(D138*E138,2) -> 5022.93
A139: 2.16.2 | B139: EMASSAMENTO COM MASSA LATEX PVA PARA AMBIENTES INTERNOS | C139: M2 | D139: 1629.4135 | E139: 14.74 | F139: 24017.55
A140: 2.16.3 | B140: PINTURA C/ APLICAÇÃO DE TINTA LATÉX ACRÍLICO, DUAS DEMÃOS- AMBIENTES INTERNOS | C140: M2 | D140: 1698.3735 | E140: 14.41 | F140: 24473.56
A141: 2.16.4 | B141: TEXTURA ACRÍLICA, APLICAÇÃO MANUAL EM PAREDE, UMA DEMÃO.PLATIBANDAS E PAREDES EXTERNAS | C141: M2 | D141: 664.9325 | E141: 14.96 | F141: 9947.39
A142: 2.16.5 | B142: APLICAÇÃO MANUAL DE PINTURA COM TINTA LÁTEX ACRÍLICA EM PAREDES, DUAS DEMÃOS. PLATIBANDAS E PAREDES EXTERNAS | C142: M2 | D142: 664.9325 | E142: 14.41 | F142: 9581.68
A143: 2.16.6 | B143: PINTURA ACRILICA EM PISO CIMENTADO DUAS DEMAOS - CIRCULAÇÃO AO REDOR DO JARDIM | C143: M2 | D143: 27.828 | E143: 16.66 | F143: 463.61
A144: 2.16.7 | B144: PINTURA COM TINTA ALQUÍDICA DE ACABAMENTO (ESMALTE SINTÉTICO ACETINADO CINZ PLATINA) APLICADA A ROLO OU PINCEL SOBRE PERFIL METÁLICO. (CORRIMÃOS E GUARDA-CORPO) | C144: M2 | D144: 16.42 | E144: 9.32 | F144: 153.03
A145: 2.17 | B145: CALÇAMENTO, PÁTIO E PASSARELAS | F145: =SUBTOTAL(9,F146:F146) -> 2612.49
A146: 2.17.1 | B146: EXECUÇÃO DE PASSEIO (CALÇADA) OU PISO DE CONCRETO COM CONCRETO MOLDADO IN LOCO, USINADO, ACABAMENTO CONVENCIONAL, ESPESSURA 8 CM, ARMADO. (ACESSO AOS DEPÓSITOS) | C146: M2 | D146: 27.828 | E146: 93.88 | F146: =ROUND(D146*E146,2) -> 2612.49
A147: 2.18 | B147: SERVIÇOS COMPLEMENTARES | F147: =SUBTOTAL(9,F148:F152) -> 8904.99
A148: 2.18.1 | B148: PLANTIO DE GRAMA EM PLACAS. (ACESSO AOS DEPÓSITOS) | C148: M2 | D148: 24.1628 | E148: 10.93 | F148: =ROUND(D148*E148,2) -> 264.1
A149: 2.18.2 | B149: FORNECIMENTO E INSTALAÇÃO CORRIMÃO , DIÂMETRO EXTERNO = 1 1/2", EM AÇO GALVANIZADO. (CONFORME DETALHE PSCIP- RAMPA DE ACESSO SALA DOS PAIS, CIRCULAÇÃO SECRETARIA) | C149: M | D149: 13.5 | E149: 131.91 | F149: =ROUND(D149*E149,2) -> 1780.79
A150: 2.18.3 | B150: FORNECIMENTO E INSTALAÇÃO GUARDA CORPO E CORRIMÃO EM TUBO FERRO GALVANIZADO, ALT=1,10M, COM BARRAS VERTICAIS A CADA 11CM (3/4") E BARRAS HORIZONTAIS (SUPERIOR, INTERMEDIÁRIAS (DUAS) E INFERIOR) DE 1.1/2", INCLUSIVE CURVA DE AÇO (CONFORME DETALHE PSCIP- RAMPA DE ACESSO SALA DOS PAIS) | C150: M | D150: 6.85 | E150: 372.7 | F150: =ROUND(D150*E150,2) -> 2553
A151: 2.18.4 | B151: GRADIL DE INOX H=1,10M | C151: M | D151: 3.4622 | E151: 825.86 | F151: =ROUND(D151*E151,2) -> 2859.29
A152: 2.18.5 | B152: PORTINHOLA H=0,90M | C152: UN | D152: 1 | E152: 1447.81 | F152: =ROUND(D152*E152,2) -> 1447.81
A153: 2.19 | B153: INSTALAÇÕES SPDA | F153: =SUBTOTAL(9,F154:F172) -> 39234.26
A154: 2.19.1 | B154: HASTE DE ATERRAMENTO 5/8 PARA SPDA - FORNECIMENTO E INSTALAÇÃO. AF_12/2017 | C154: UN | D154: 47 | E154: 56.5 | F154: =ROUND(D154*E154,2) -> 2655.5
A155: 2.19.2 | B155: CAIXA DE INSPEÇÃO PARA ATERRAMENTO, CIRCULAR, EM POLIETILENO, DIÂMETRO INTERNO = 0,3 M. AF_05/2018 | C155: UN | D155: 13 | E155: 25.23 | F155: =ROUND(D155*E155,2) -> 327.99
A156: 2.19.3 | B156: ESCAVAÇÃO MANUAL DE VALA COM PROFUNDIDADE MENOR OU IGUAL A 1,30 M. AF_03/2016 | C156: M3 | D156: 23.7 | E156: 76.99 | F156: 1824.66
A157: 2.19.4 | B157: REATERRO MANUAL DE VALAS COM COMPACTAÇÃO MECANIZADA. AF_04/2016 | C157: M3 | D157: 23.7 | E157: 26 | F157: 616.2
A158: 2.19.5 | B158: FORNECIMENTO E INSTALAÇÃO DE CONECTOR DE MEDIÇÃO C/ 2 PARAFUSOS | C158: UN | D158: 13 | E158: 29.36 | F158: 381.68
A159: 2.19.6 | B159: FORNECIMENTO E INSTALAÇÃO DE SOLDA EXOTÉRMICA CABO-HASTE COM CARTUCHO Nº 90 E MOLDE CABO 35mm²- HASTE 5/8" | C159: UN | D159: 13 | E159: 19.96 | F159: 259.48
A160: 2.19.7 | B160: FORNECIMENTO E INSTALAÇÃO DE SOLDA EXOTÉRMICA CABO-HASTE COM CARTUCHO Nº115 E MOLDE CABO 50mm²- HASTE 5/8" | C160: UN | D160: 49 | E160: 25.08 | F160: 1228.92
A161: 2.19.8 | B161: FORNECIMENTO E INSTALAÇÃO DE SOLDA EXOTÉRMICA CABO-CABO COM CARTUCHO Nº 32 E MOLDE TIPO "T" CABO 35mm²- CABO 35mm² | C161: UN | D161: 25 | E161: 12.71 | F161: 317.75
A162: 2.19.9 | B162: FORNECIMENTO E INSTALAÇÃO DE BARRA CHATA DE ALUMÍNIO 3/4" X 1/4" | C162: M | D162: 88 | E162: 91.33 | F162: 8037.04
A163: 2.19.10 | B163: FORNECIMENTO E INSTALAÇÃO DE SOLDA EXOTÉRMICA CABO-CABO, CABO DE 35mm² TIPO "X"(COM MOLDE) | C163: M | D163: 3 | E163: 19.93 | F163: 59.79
A164: 2.19.11 | B164: FORNECIMENTO E INSTALAÇÃO DE REBITE POP EM ALUMÍNIO 4 X 16MM | C164: UN | D164: 364 | E164: 1.38 | F164: 502.32
A165: 2.19.12 | B165: FORNECIMENTO E INSTALAÇÃO DE PARAFUSO ZINCADO, SEXTAVADO, COM ROSCA INTEIRA, DIAMETRO 1/4", COMPRIMENTO 1/2" | C165: UN | D165: 49 | E165: 7.72 | F165: 378.28
A166: 2.19.13 | B166: FORNECIMENTO E INSTALAÇÃO DE TERMINAL AEREO EM ACO GALVANIZADO DN 5/16", COMPRIMENTO DE 350MM, COM BASE DE FIXACAO HORIZONTAL | C166: UN | D166: 69 | E166: 21.69 | F166: 1496.61
A167: 2.19.14 | B167: FORNECIMENTO E INSTALAÇÃO DE CONECTOR METALICO TIPO PARAFUSO FENDIDO (SPLIT BOLT), PARA CABOS ATE 35 MM2 | C167: UN | D167: 11 | E167: 17.57 | F167: 193.27
A168: 2.19.15 | B168: FORNECIMENTO E INSTALAÇÃO DE PRESILHA DE LATÃO 35MM² | C168: UN | D168: 226 | E168: 4.34 | F168: 980.84
A169: 2.19.16 | B169: TERMINAL OU CONECTOR DE PRESSAO - PARA CABO 35MM2 - FORNECIMENTO E INSTALACAO | C169: UN | D169: 13 | E169: 19.27 | F169: 250.51
A170: 2.19.17 | B170: TERMINAL OU CONECTOR DE PRESSAO - PARA CABO 50MM2 - FORNECIMENTO E INSTALACAO | C170: UN | D170: 15 | E170: 25.91 | F170: 388.65
A171: 2.19.18 | B171: CABO DE COBRE NU 35MM2 - FORNECIMENTO E INSTALACAO | C171: M | D171: 335 | E171: 34.61 | F171: 11594.35
A172: 2.19.19 | B172: CABO DE COBRE NU 50MM2 - FORNECIMENTO E INSTALACAO | C172: M | D172: 158 | E172: 48.99 | F172: 7740.42
A173: 2.20 | B173: INSTALAÇÕES DE COMBATE A INCÊNDIO | F173: 0
A174: 2.21 | B174: INSTALAÇÕES ELÉTRICAS | F174: =SUBTOTAL(9,F175:F227) -> 138737.35
A175: 2.21.1 | B175: ACESSÓRIOS PARA ELETRODUTOS E USO GERAL | F175: =SUBTOTAL(9,F176:F178) -> 4437.68
A176: 2.21.1.1 | B176: FORNECIMENTO E INSTALAÇÃO DE CAIXA OCTOGONAL 3" X 3", PVC, INSTALADA EM TETO - AF_12/2015 | C176: PÇ | D176: 143 | E176: 9.96 | F176: =ROUND(D176*E176,2) -> 1424.28
A177: 2.21.1.2 | B177: FORNECIMENTO E INSTALAÇÃO DE CAIXA RETANGULAR 4" X 2" MÉDIA (1,30 M DO PISO), PVC, INSTALADA EM PAREDE - AF_12/2015 | C177: PÇ | D177: 217 | E177: 13.48 | F177: 2925.16
A178: 2.21.1.3 | B178: FORNECIMENTO E INSTALAÇÃO DE ARAME AÇO GALVANIZADO 18 BWG, 1,24MM (0,009 KG/M) | C178: M | D178: 34.2 | E178: 2.58 | F178: 88.24
A179: 2.21.2 | B179: CABO UNIPOLAR | F179: =SUBTOTAL(9,F180:F182) -> 48800
A180: 2.21.2.1 | B180: FORNECIMENTO E INSTALAÇÃO DE CABO DE COBRE FLEXÍVEL ISOLADO, 2,5 MM², ANTI-CHAMA 450/750 V, PARA CIRCUITOS TERMINAIS - AF_12/2015 | C180: M | D180: 8800 | E180: 3.54 | F180: =ROUND(D180*E180,2) -> 31152
A181: 2.21.2.2 | B181: FORNECIMENTO E INSTALAÇÃO DE CABO DE COBRE FLEXÍVEL ISOLADO, 4,0 MM², ANTI-CHAMA 450/750 V, PARA CIRCUITOS TERMINAIS - AF_12/2015 | C181: M | D181: 2000 | E181: 5.7 | F181: 11400
A182: 2.21.2.3 | B182: FORNECIMENTO E INSTALAÇÃO DE CABO DE COBRE FLEXÍVEL ISOLADO, 6,0 MM², ANTI-CHAMA 450/750 V, PARA CIRCUITOS TERMINAIS - AF_12/2015 | C182: M | D182: 800 | E182: 7.81 | F182: 6248
A183: 2.21.3 | B183: DISPOSITIVO ELÉTRICO - EMBUTIDO | F183: =SUBTOTAL(9,F184:F191) -> 7220.44
A184: 2.21.3.1 | B184: INTERRUPTOR SIMPLES (1 MÓDULO), 10A/250V, INCLUINDO SUPORTE E PLACA - FORNECIMENTO E INSTALAÇÃO. AF_12/2015 | C184: PÇ | D184: 20 | E184: 21.35 | F184: =ROUND(D184*E184,2) -> 427
A185: 2.21.3.2 | B185: INTERRUPTOR SIMPLES (2 MÓDULOS), 10A/250V, INCLUINDO SUPORTE E PLACA - FORNECIMENTO E INSTALAÇÃO. AF_12/2015 | C185: PÇ | D185: 10 | E185: 33.71 | F185: 337.1
A186: 2.21.3.3 | B186: INTERRUPTOR SIMPLES (3 MÓDULOS), 10A/250V, INCLUINDO SUPORTE E PLACA - FORNECIMENTO E INSTALAÇÃO. AF_12/2015 | C186: PÇ | D186: 1 | E186: 46.06 | F186: 46.06
A187: 2.21.3.4 | B187: INTERRUPTOR SIMPLES (1 MÓDULO) COM 1 TOMADA DE EMBUTIR 2P+T 10 A, INCLUINDO SUPORTE E PLACA - FORNECIMENTO E INSTALAÇÃO. AF_12/2015 | C187: PÇ | D187: 6 | E187: 38.05 | F187: 228.3
A188: 2.21.3.5 | B188: INTERRUPTOR SIMPLES (1 MÓDULO) COM 2 TOMADAS DE EMBUTIR 2P+T 10 A, INCLUINDO SUPORTE E PLACA - FORNECIMENTO E INSTALAÇÃO. AF_12/2015 | C188: PÇ | D188: 2 | E188: 54.8 | F188: 109.6
A189: 2.21.3.6 | B189: TOMADA BAIXA DE EMBUTIR (2 MÓDULOS), 2P+T 10 A, INCLUINDO SUPORTE E PLACA - FORNECIMENTO E INSTALAÇÃO. AF_12/2015 | C189: PÇ | D189: 44 | E189: 35.95 | F189: 1581.8
A190: 2.21.3.7 | B190: TOMADA ALTA DE EMBUTIR (1 MÓDULO), 2P+T 10 A, INCLUINDO SUPORTE E PLACA - FORNECIMENTO E INSTALAÇÃO. AF_12/2015 | C190: PÇ | D190: 4 | E190: 34.1 | F190: 136.4
A191: 2.21.3.8 | B191: TOMADA ALTA DE EMBUTIR (1 MÓDULO), 2P+T 20 A, INCLUINDO SUPORTE E PLACA - FORNECIMENTO E INSTALAÇÃO. AF_12/2015 | C191: PÇ | D191: 122 | E191: 35.69 | F191: 4354.18
A192: 2.21.4 | B192: DISPOSITIVO DE PROTEÇÃO | F192: =SUBTOTAL(9,F193:F205) -> 7348.68
A193: 2.21.4.1 | B193: DISJUNTOR TRIPOLAR TIPO DIN, CORRENTE NOMINAL DE 25A - FORNECIMENTO E INSTALAÇÃO. AF_04/2016 | C193: PÇ | D193: 5 | E193: 76.97 | F193: =ROUND(D193*E193,2) -> 384.85
A194: 2.21.4.2 | B194: DISJUNTOR TRIPOLAR TIPO DIN, CORRENTE NOMINAL DE 32A - FORNECIMENTO E INSTALAÇÃO. AF_04/2016 | C194: PÇ | D194: 6 | E194: 80.92 | F194: 485.52
A195: 2.21.4.3 | B195: FORNECIMENTO E INSTALAÇÃO DE DISJUNTOR TIPO DIN/IEC, TRIPOLAR 63 A | C195: UND | D195: 1 | E195: 107.74 | F195: 107.74
A196: 2.21.4.4 | B196: FORNECIMENTO E INSTALAÇÃO DE DISJUNTOR TIPO DIN/IEC, TRIPOLAR 80 A | C196: UND | D196: 1 | E196: 159.43 | F196: 159.43
A197: 2.21.4.5 | B197: FORNECIMENTO E INSTALAÇÃO DE DISJUNTOR TIPO DIN/IEC, TRIPOLAR 90 A | C197: UND | D197: 1 | E197: 159.43 | F197: 159.43
A198: 2.21.4.6 | B198: FORNECIMENTO E INSTALAÇÃO DE DISJUNTOR TERMOMAGNETICO TRIPOLAR 125A | C198: UND | D198: 2 | E198: 393.59 | F198: 787.18
A199: 2.21.4.7 | B199: FORNECIMENTO E INSTALAÇÃO DE DISJUNTOR TERMOMAGNETICO TRIPOLAR 150 A / 600 V, TIPO FXD / ICC - 35 KA | C199: UND | D199: 1 | E199: 441.13 | F199: 441.13
A200: 2.21.4.8 | B200: FORNECIMENTO E INSTALAÇÃO DE DISJUNTOR BIPOLAR TIPO DIN, CORRENTE NOMINAL DE 10A - AF_04/2016 | C200: PÇ | D200: 32 | E200: 57.69 | F200: 1846.08
A201: 2.21.4.9 | B201: FORNECIMENTO E INSTALAÇÃO DE DISJUNTOR BIPOLAR TIPO DIN, CORRENTE NOMINAL DE 16A - AF_04/2016 | C201: PÇ | D201: 5 | E201: 58.8 | F201: 294
A202: 2.21.4.10 | B202: FORNECIMENTO E INSTALAÇÃO DE DISJUNTOR BIPOLAR TIPO DIN, CORRENTE NOMINAL DE 25A - AF_04/2016 | C202: PÇ | D202: 2 | E202: 61 | F202: 122
A203: 2.21.4.11 | B203: FORNECIMENTO E INSTALAÇÃO DE DISJUNTOR BIPOLAR TIPO DIN, CORRENTE NOMINAL DE 32A - AF_04/2016 | C203: PÇ | D203: 4 | E203: 63.63 | F203: 254.52
A204: 2.21.4.12 | B204: FORNECIMENTO E INSTALAÇÃO DE DISJUNTOR MONOPOLAR TIPO DIN, CORRENTE NOMINAL DE 16A - AF_04/2016 | C204: PÇ | D204: 54 | E204: 12.2 | F204: 658.8
... 79 more rows

Sheet BLOCO B
A1: PLANILHA ORÇAMENTARIA | D1: SPN-FF-003
D3: Folha: 1 de 1 | E3: Revisão: 02 | F3: Data: 07/10/19
A5: =RESUMO!A5 -> SESI - SERVIÇO SOCIAL DA INDUSTRIA - DR/MT
A6: =RESUMO!A6 -> OBRA: CONTRATAÇÃO DE EMPRESA ESPECIALIZADA EM ENGENHARIA PARA OBRA DE REFORMA E AMPLIAÇÃO DA UNIDADE SESI ESCOLA CUIABÁ
A7: =RESUMO!A7 -> UNIDADE OPERACIONAL: SESI ESCOLA CUIABA
A8: =RESUMO!A8 -> ENDEREÇO: AV. OÁTOMO CANAVARROS, 1079, BAIRRO BELA VISTA CIDADE: CUIABÁ-MT
A9: CONSTRUTORA:
A10: RESPONSÁVEL TÉCNICO:
A12: ITEM | B12: DESCRIÇÃO | C12: UNID. | D12: QUANT. | E12: Valor UNIT. (R$) | F12: Valor Total (R$)
A14: BLOCO B
A15: 3.1 | B15: DEMOLIÇÕES E RETIRADAS | F15: =SUBTOTAL(9,F16:F34) -> 89219.92
A16: 3.1.1 | B16: DEMOLIÇÃO DE ALVENARIA DE BLOCO FURADO, DE FORMA MANUAL, SEM REAPROVEITAMENTO. AF_12/2017 | C16: M3 | D16: 29.96655 | E16: 50.69 | F16: =ROUND(D16*E16,2) -> 1519
A17: 3.1.2 | B17: REMOÇÃO DE CHAPAS E PERFIS DE DRYWALL, DE FORMA MANUAL, SEM REAPROVEITAMENTO. AF_12/2017 | C17: M2 | D17: 53.46 | E17: 6.58 | F17: =ROUND(D17*E17,2) -> 351.77
A18: 3.1.3 | B18: RETIRADA GRADE , COM REAPROVEITAMENTO | C18: M2 | D18: 74.6924 | E18: 10.91 | F18: 814.89
A19: 3.1.4 | B19: DEMOLIÇÃO DE LAJES, DE FORMA MECANIZADA COM MARTELETE, SEM REAPROVEITAMENTO. AF_12/2017 | C19: M3 | D19: 25.35 | E19: 107.62 | F19: 2728.17
A20: 3.1.5 | B20: DEMOLIÇÃO DE PISO REVESTIDO COM GRANILITE | C20: M2 | D20: 1173.2995 | E20: 24.23 | F20: 28429.05
A21: 3.1.6 | B21: DEMOLIÇÃO DE REVESTIMENTO CERÂMICO, DE FORMA MECANIZADA COM MARTELETE, SEM REAPROVEITAMENTO. AF_12/2017 | C21: M2 | D21: 32.9892 | E21: 10.56 | F21: 348.37
A22: 3.1.7 | B22: RETIRADA DE BANCADA COM REAPROVEITAMENTO | C22: M2 | D22: 12.8169 | E22: 43.7 | F22: 560.1
A23: 3.1.8 | B23: RETIRADA DE ESTRUTURA DE MADEIRA COM TESOURAS, PARA TELHAS ONDULADAS DE FIBROCIMENTO, ALUMINIO OU PLASTICO | C23: M2 | D23: 1280 | E23: 22.15 | F23: 28352
A24: 3.1.9 | B24: REMOÇÃO DE TELHAS, DE FIBROCIMENTO, METÁLICA E CERÂMICA, DE FORMA MANUAL, SEM REAPROVEITAMENTO. AF_12/2017 | C24: M2 | D24: 1280 | E24: 3.14 | F24: 4019.2
A25: 3.1.10 | B25: REMOÇÃO DE PLATIBANDA CHAPA METALICA COM REAPROVEITAMENTO . BLOCO A- 6,20M2; BLOCO B- 72,18M2; BLOCO C 76,25M2- TOTAL 154,63M² | C25: M2 | D25: 170.64 | E25: 21.62 | F25: 3689.24
A26: 3.1.11 | B26: REMOÇÃO DE PLATIBANDA CHAPA METALICA SEM REAPROVEITAMENTO BOTA FORA | C26: M2 | D26: 1.56 | E26: 21.62 | F26: 33.73
A27: 3.1.12 | B27: REMOÇÃO DE LOUÇAS, DE FORMA MANUAL, COM REAPROVEITAMENTO. | C27: UN | D27: 21 | E27: 10.97 | F27: 230.37
A28: 3.1.13 | B28: REMOÇÃO DE PORTAS, DE FORMA MANUAL, COM REAPROVEITAMENTO. | C28: M2 | D28: 52.878 | E28: 31.59 | F28: 1670.42
A29: 3.1.14 | B29: REMOÇÃO DE JANELAS, DE FORMA MANUAL, COM REAPROVEITAMENTO. | C29: M2 | D29: 50.1594 | E29: 75.29 | F29: 3776.5
A30: 3.1.15 | B30: REMOÇÃO DE PORTAS, GUICHÊ E BOX DE VIDRO TEMPERADO, DE FORMA MANUAL, COM REAPROVEITAMENTO. | C30: M2 | D30: 12.87 | E30: 31.59 | F30: 406.56
A31: 3.1.16 | B31: REMOÇÃO DE METAIS SANITÁRIOS | C31: UN | D31: 24 | E31: 7.99 | F31: 191.76
A32: 3.1.17 | B32: REMOÇÃO DE TRAMA METÁLICA OU DE MADEIRA PARA FORRO, DE FORMA MANUAL, SEM REAPROVEITAMENTO. AF_12/2017 | C32: M2 | D32: 1145.882 | E32: 2.54 | F32: 2910.54
A33: 3.1.17 | B33: REMOÇÃO DE FORROS DE DRYWALL, PVC E FIBROMINERAL, DE FORMA MANUAL, SEM REAPROVEITAMENTO. AF_12/2017 | C33: M2 | D33: 1145.882 | E33: 1.42 | F33: 1627.15
A34: 3.1.18 | B34: BOTA FORA DE MATERIAL DESCARTADO, D.M.T. = 10 km - (CARGA, TRANSPORTE E DESCARGA MECÂNICA) | C34: M3 | D34: 299.687056 | E34: 25.23 | F34: 7561.1
A35: 3.2 | B35: CANTEIRO DE OBRAS | F35: 0
A36: 3.3 | B36: ADMINISTRAÇÃO | F36: 0
A37: 3.4 | B37: TERRAPLENAGEM | F37: 0
A38: 3.5 | B38: FUNDAÇÃO | F38: =SUBTOTAL(9,F39:F57) -> 195519.39
A39: 3.5.1 | B39: ESCAVAÇÃO MECANIZADA PARA BLOCO DE COROAMENTO OU SAPATA, COM PREVISÃO DE FÔRMA, COM RETROESCAVADEIRA. AF_06/2017 | C39: M³ | D39: 414.83 | E39: 33.82 | F39: =ROUND(D39*E39,2) -> 14029.55
A40: 3.5.2 | B40: ESCAVAÇÃO MANUAL DE VALA PARA VIGA BALDRAME, COM PREVISÃO DE FÔRMA. AF_06/2017 | C40: M³ | D40: 69.1 | E40: 115.9 | F40: 8008.69
A41: 3.5.3 | B41: REATERRO MANUAL DE VALAS COM COMPACTAÇÃO MECANIZADA. AF_04/2016 | C41: M³ | D41: 308.94 | E41: 26 | F41: 8032.44
A42: 3.5.4 | B42: CARGA E DESCARGA MECANIZADAS DE ENTULHO EM CAMINHAO BASCULANTE 6 M3 | C42: M³ | D42: 244.9 | E42: 6.14 | F42: 1503.69
A43: 3.5.5 | B43: TRANSPORTE COM CAMINHÃO BASCULANTE DE 6 M3, EM VIA URBANA PAVIMENTADA, DMT ATÉ 30 KM (UNIDADE: M3XKM). AF_01/2018 | C43: M3XKM | D43: 2449 | E43: 1.91 | F43: 4677.59
A44: 3.5.6 | B44: FUNDAÇÃO (SAPATAS, BLOCOS E VIGAS DE EQUILÍBRIO) E ESTRUTURA - CONCRETO 1:4:8, CONCRETO MAGRO, C/ BRITA 1 E 2, C/BETONEIRA (e=5cm) | C44: M³ | D44: 8.7 | E44: 195.7 | F44: 1702.59
A45: 3.5.7 | B45: FUNDAÇÃO (SAPATAS, BLOCOS E VIGAS DE EQUILÍBRIO) - FORMA PINHO 3A P/CONCRETO EM FUNDAÇÃO REAPROVEITAMENTO 2X- CORTE/MONTAGEM /ESCORAMENTO/DESFORMA | C45: M² | D45: 268.7 | E45: 87.39 | F45: 23481.69
A46: 3.5.8 | B46: FUNDAÇÃO (SAPATAS, BLOCOS E VIGAS DE EQUILIBRIO) - ARMAÇÃO DE FUNDAÇÕES E ESTRUTURAS DE CONCRETO ARMADO, UTILIZANDO AÇO DE 6,30 MM - MONTAGEM | C46: KG | D46: 140.9 | E46: 15.24 | F46: 2147.32
A47: 3.5.9 | B47: FUNDAÇÃO (SAPATAS, BLOCOS E VIGAS DE EQUILIBRIO) - ARMAÇÃO DE FUNDAÇÕES E ESTRUTURAS DE CONCRETO ARMADO, UTILIZANDO AÇO DE 8.00 MM - MONTAGEM | C47: KG | D47: 191.6 | E47: 13.97 | F47: 2676.65
A48: 3.5.10 | B48: FUNDAÇÃO (SAPATAS, BLOCOS E VIGAS DE EQUILIBRIO, ESTACAS) - ARMAÇÃO DE FUNDAÇÕES E ESTRUTURAS DE CONCRETO ARMADO, UTILIZANDO AÇO DE 10.00 MM - MONTAGEM | C48: KG | D48: 292.4 | E48: 12.33 | F48: 3605.29
A49: 3.5.11 | B49: FUNDAÇÃO (SAPATAS, BLOCOS E VIGAS DE EQUILIBRIO) - ARMAÇÃO DE FUNDAÇÕES E ESTRUTURAS DE CONCRETO ARMADO, UTILIZANDO AÇO DE 12.50 MM - MONTAGEM | C49: KG | D49: 4472.8 | E49: 10.34 | F49: 46248.75
A50: 3.5.12 | B50: FUNDAÇÃO (SAPATAS, BLOCOS E VIGAS DE EQUILIBRIO) - ARMAÇÃO DE FUNDAÇÕES E ESTRUTURAS DE CONCRETO ARMADO, UTILIZANDO AÇO DE 16 MM - MONTAGEM | C50: KG | D50: 943.3 | E50: 9.68 | F50: 9131.14
A51: 3.5.13 | B51: FUNDAÇÃO (SAPATAS, BLOCOS E VIGAS DE EQUILIBRIO) - ARMAÇÃO DE FUNDAÇÕES E ESTRUTURAS DE CONCRETO ARMADO, UTILIZANDO AÇO DE 20 MM - MONTAGEM | C51: KG | D51: 227 | E51: 10.63 | F51: 2413.01
A52: 3.5.14 | B52: FUNDAÇÃO (SAPATAS, BLOCOS E VIGAS DE EQUILIBRIO) - ARMAÇÃO DE FUNDAÇÕES E ESTRUTURAS DE CONCRETO ARMADO, UTILIZANDO AÇO DE 25 MM - MONTAGEM | C52: KG | D52: 151.3 | E52: 10.3 | F52: 1558.39
A53: 3.5.15 | B53: CONCRETAGEM DE SAPATAS, FCK 25 MPA, COM USO DE BOMBA - LANÇAMENTO, ADENSAMENTO E ACABAMENTO | C53: M³ | D53: 95.3 | E53: 594.23 | F53: 56630.12
A54: 3.5.16 | B54: FUNDAÇÃO (SAPATAS, BLOCOS E VIGAS DE EQUILIBRIO) - LANÇAMENTO COM USO DE BOMBA, ADENSAMENTO E ACABAMENTO DE CONCRETO EM ESTRUTURAS. | C54: M³ | D54: 95.3 | E54: 32.96 | F54: 3141.09
A55: 3.5.17 | B55: ESTACAS - CONCRETO AUTOADENSAVEL (CAA) CLASSE DE RESISTENCIA C25, ESPALHAMENTO SF2, INCLUI SERVICO DE BOMBEAMENTO (NBR 15823) | C55: M³ | D55: 4 | E55: 681.12 | F55: 2724.48
A56: 3.5.18 | B56: ESTACA ESCAVADA, TIPO BROCA DE CONCRETO ARMADO, fck=25 MPa, Ø 30 cm | C56: M | D56: 56 | E56: 45.83 | F56: 2566.48
A57: 3.5.19 | B57: ALVENARIA ESTRUTURAL PARA MURO DE ARRIMO COM BLOCOS DE 5 MPA, 14X19X39 | C57: M2 | D57: 12.29 | E57: 100.93 | F57: 1240.43
A58: 3.6 | B58: IMPERMEABILIZAÇÃO | F58: =SUBTOTAL(9,F59:F59) -> 16084.54
A59: 3.6.1 | B59: IMPERMEABILIZAÇÃO DE SUPERFÍCIE COM EMULSÃO ASFÁLTICA, 2 DEMÃOS AF_06/2018 | C59: M² | D59: 450.8 | E59: 35.68 | F59: =ROUND(D59*E59,2) -> 16084.54
A60: 3.7 | B60: ESTRUTURA DE CONCRETO ARMADO | F60: =SUBTOTAL(9,F61:F71) -> 550010.91
A61: 3.7.1 | B61: ESTRUTURA (PILARES) - FORMA PARA CONCRETO EM PILARES 2XREAPROVEITAMENTO - CORTE/MONTAGEM /ESCORAMENTO/DESFORMA | C61: M2 | D61: 787.3 | E61: 130.4 | F61: =ROUND(D61*E61,2) -> 102663.92
A62: 3.7.2 | B62: ESTRUTURA (VIGAS) - FORMA PARA CONCRETO EM VIGAS 2X REAPROVEITAMENTO - CORTE/MONTAGEM /ESCORAMENTO/DESFORMA | C62: M2 | D62: 1387.4 | E62: 137.24 | F62: 190406.78
A63: 3.7.3 | B63: ESTRUTURA (VIGAS E PILARES, VIGAS BALDRAMES) - ARMAÇÃO DE FUNDAÇÕES E ESTRUTURAS DE CONCRETO ARMADO, UTILIZANDO AÇO DE 5.00 MM - MONTAGEM | C63: KG | D63: 1310.9 | E63: 16.8 | F63: 22023.12
A64: 3.7.4 | B64: ESTRUTURA (VIGAS E PILARES, VIGAS BALDRAMES) - ARMAÇÃO DE FUNDAÇÕES E ESTRUTURAS DE CONCRETO ARMADO, UTILIZANDO AÇO DE 6,30 MM - MONTAGEM | C64: KG | D64: 1579.8 | E64: 15.31 | F64: 24186.74
A65: 3.7.5 | B65: ESTRUTURA (VIGAS E PILARES, VIGAS BALDRAMES) - ARMAÇÃO DE FUNDAÇÕES E ESTRUTURAS DE CONCRETO ARMADO, UTILIZANDO AÇO DE 8.00 MM - MONTAGEM | C65: KG | D65: 245.9 | E65: 13.96 | F65: 3432.76
A66: 3.7.6 | B66: ESTRUTURA (VIGAS E PILARES, VIGAS BALDRAMES) - ARMAÇÃO DE FUNDAÇÕES E ESTRUTURAS DE CONCRETO ARMADO, UTILIZANDO AÇO DE 10.00 MM - MONTAGEM | C66: KG | D66: 810.1 | E66: 12.25 | F66: 9923.73
A67: 3.7.7 | B67: ESTRUTURA (VIGAS E PILARES, VIGAS BALDRAMES) - ARMAÇÃO DE FUNDAÇÕES E ESTRUTURAS DE CONCRETO ARMADO, UTILIZANDO AÇO DE 12.50 MM - MONTAGEM | C67: KG | D67: 7775 | E67: 10.19 | F67: 79227.25
A68: 3.7.8 | B68: ESTRUTURA (VIGAS E PILARES, VIGAS BALDRAMES) - ARMAÇÃO DE FUNDAÇÕES E ESTRUTURAS DE CONCRETO ARMADO, UTILIZANDO AÇO DE 16 MM - MONTAGEM | C68: KG | D68: 3076 | E68: 9.47 | F68: 29129.72
A69: 3.7.9 | B69: ESTRUTURA (VIGAS E PILARES, VIGAS BALDRAMES) - ARMAÇÃO DE FUNDAÇÕES E ESTRUTURAS DE CONCRETO ARMADO, UTILIZANDO AÇO DE 25 MM - MONTAGEM | C69: KG | D69: 139 | E69: 10.01 | F69: 1391.39
A70: 3.7.10 | B70: CONCRETAGEM EM ESTRUTURAS FCK 25 MPA, COM USO DE BOMBA - LANÇAMENTO, ADENSAMENTO E ACABAMENTO | C70: M³ | D70: 150 | E70: 551.21 | F70: 82681.5
A71: 3.7.11 | B71: ESTRUTURAS (VIGAS E PILARES, VIGAS BALDRAMES) - LANÇAMENTO COM USO DE BOMBA, ADENSAMENTO E ACABAMENTO DE CONCRETO EM ESTRUTURAS. | C71: M³ | D71: 150 | E71: 32.96 | F71: 4944
A72: 3.8 | B72: ALVENARIA E PAINÉIS | F72: =SUBTOTAL(9,F73:F80) -> 196101.99
A73: 3.8.1 | B73: ALVENARIA DE VEDAÇÃO DE BLOCOS CERÂMICOS FURADOS NA HORIZONTAL DE 9X19X19CM (ESPESSURA 9CM) DE PAREDES COM ÁREA LÍQUIDA MAIOR OU IGUAL A 6M² COM VÃOS E ARGAMASSA DE ASSENTAMENTO COM PREPARO EM BETONEIRA. AF_06/2014 | C73: M2 | D73: 1987.81185 | E73: 83.75 | F73: =ROUND(D73*E73,2) -> 166479.24
A74: 3.8.2 | B74: PAREDE COM PLACAS DE GESSO ACARTONADO (DRYWALL), PARA USO INTERNO, COM DUAS FACES SIMPLES E ESTRUTURA METÁLICA COM GUIAS SIMPLES, COM VÃOS, FORNECIMENTO E INSTALAÇÃO | C74: M2 | D74: 64.7825 | E74: 104.87 | F74: 6793.74
A75: 3.8.3 | B75: INSTALAÇÃO DE ISOLAMENTO COM LÃ DE ROCHA EM PAREDES DRYWALL. AF_06/2017 | C75: M2 | D75: 64.7825 | E75: 27.43 | F75: 1776.98
A76: 3.8.4 | B76: VERGA PRÉ-MOLDADA PARA JANELAS COM ATÉ 1,5 M DE VÃO. AF_03/2016 | C76: M | D76: 57.666 | E76: 32.8 | F76: 1891.44
A77: 3.8.5 | B77: CONTRAVERGA PRÉ-MOLDADA PARA VÃOS DE ATÉ 1,5 M DE COMPRIMENTO. AF_03/2016 | C77: M | D77: 57.666 | E77: 32.26 | F77: 1860.31
A78: 3.8.6 | B78: VERGA PRÉ-MOLDADA PARA JANELAS COM MAIS DE 1,5 M DE VÃO. AF_03/2016 | C78: M | D78: 203.378 | E78: 41.68 | F78: 8476.8
A79: 3.8.7 | B79: CONTRAVERGA PRÉ-MOLDADA PARA VÃOS DE MAIS DE 1,5 M DE COMPRIMENTO. AF_03/2016 | C79: M | D79: 200.858 | E79: 38.39 | F79: 7710.94
A80: 3.8.8 | B80: VERGA PRÉ-MOLDADA PARA PORTAS COM ATÉ 1,5 M DE VÃO. AF_03/2016 | C80: M | D80: 45.024 | E80: 24.71 | F80: 1112.54
A81: 3.9 | B81: ESTRUTURA METÁLICA | F81: =SUBTOTAL(9,F82:F84) -> 1215010.75
A82: 3.9.1 | B82: ESTRUTURA METALICA DA COBERTURA E PLATIBANDA CONFORME PROJETO EM AÇO ESTRUTURAL. | C82: KG | D82: 74243.13 | E82: 15.16 | F82: =ROUND(D82*E82,2) -> 1125525.85
A83: 3.9.2 | B83: PINTURA COM TINTA ALQUÍDICA DE FUNDO (TIPO ZARCÃO) (PRIMEIRA DEMÃO). AF_01/2020 | C83: M2 | D83: 4837.022 | E83: 9.25 | F83: =ROUND(D83*E83,2) -> 44742.45
A84: 3.9.3 | B84: PINTURA COM TINTA ALQUÍDICA DE FUNDO (TIPO ZARCÃO) (SEGUNDA DEMÃO). AF_01/2021 | C84: M2 | D84: 4837.022 | E84: 9.25 | F84: =ROUND(D84*E84,2) -> 44742.45
A85: 3.10 | B85: COBERTURA | F85: =SUBTOTAL(9,F86:F89) -> 894313.67
A86: 3.10.1 | B86: TELHAMENTO COM TELHA METÁLICA TERMOACÚSTICA E = 30 MM, COM ATÉ 2 ÁGUAS , INCLUSO IÇAMENTO. AF_07/2019, conforme projeto e memorial descritivo REVESTIMENTO SUPERIOR: • AÇO GALVALUME AZM150 PRÉ-PINTADO TRAPEZOIDAL TP30, ESPESSURA TÉCNICA DE 0,43 MM, CROMATIZADA COM PRIMER EPÓXI (4 A 6 MICRONS) E PINTURA DE ACABAMENTO EM POLIÉSTER (18 A 22 MICRONS) COR BRANCO GELO (PADRÃO RAL 9003), CONJUNTO MONOLÍTICO TELHA/EPS/FILME, PRODUZIDO PELO PROCESSO DE COLAGEM CONTÍNUA, CONFORME FABRICANTE NÚCLEO: • NÚCLEO ISOLANTE EM E.P.S. (POLIESTIRENO EXPANDIDO), ESPESSURA 30 MM, LIVRE DE CFC REVESTIMENTO INFERIOR: • FILME DE ALUMÍNIO ESTUCO FOSCO, ESP. TÉC. MÍNIMA 40 U.M. Referência comercial: ISOESTE OU SIMILAR | C86: M2 | D86: 2999.85 | E86: 207.03 | F86: =ROUND(D86*E86,2) -> 621058.95
A87: 3.10.2 | B87: CUMEEIRA TRAPEZOIDAL TP -30 RAL 9003 PRÉ PINTADA NA COR BRANCA #0,43 DE AÇO GALVANIZADO, ISOESTE OU SIMILAR | C87: M | D87: 23 | E87: 68.68 | F87: =ROUND(D87*E87,2) -> 1579.64
A88: 3.10.3 | B88: PLATIBANDA EM CHAPA DE AÇO COM REAPROVEITANDO DO MATERIAL EXISTENTE | C88: M2 | D88: 60.66 | E88: 264.61 | F88: =ROUND(D88*E88,2) -> 16051.24
A89: 3.10.4 | B89: PLATIBANDA EM CHAPA DE AÇO ESPESSURA 2,00mm, H=1600mm, DOBRA CARTOLA: 30X20X970mm, COM METALON DIM. 50X20X0,97mm NA FACE INFERIOR PARA ARREMATE COM O FORRO, FUNDO ANTICORROSIVO EM PRIMER EPÓXI NAS DUAS FACES (MATERIAL NOVO) | C89: M2 | D89: 966.04 | E89: 264.61 | F89: =ROUND(D89*E89,2) -> 255623.84
A90: 3.11 | B90: ESQUADRIAS | F90: =SUBTOTAL(9,F91:F115) -> 288815.75
A91: 3.11.1 | B91: P3 REAPROVEITADA - PORTA DE VIDRO TEMPERADO DE DUAS FOLHAS DE ABRIR 1,80X2,10, COM REAPROVEITAMENTO DO VIDRO, INCLUSO NOVAS MOLAS HIDRÁULICA DE PISO NAS DUAS FOLHAS, NOVOS PUXADORES TUBULAR RETO 40CM ALUMINIO POLIDO, E NOVAS FERRAGENS CROMADAS E FIXAÇÕES EM PAREDES, PISOS E FORROS CONFORME NORMAS DO FABRICANTE, SEGUINDO AS INDICAÇÕES DO PROJETO ARQUITETÔNICO, INCLUSIVE FERRAGENS DE INSTALAÇÃO PARA PERFEITO USO E FUNCIONAMENTO. (BIBLIOTECA) | C91: CONJ | D91: 1 | E91: 5529.38 | F91: =ROUND(D91*E91,2) -> 5529.38
A92: 3.11.3 | B92: P5 - PORTA DE ABRIR EM LAMBRIL COM ALISAR E PORTAL EM ALUMÍNIO, COM PINTURA ELETROSTÁTICA MICROTEXTURADA, DIM. 0,90 X 2,10M, COR AZUL NEON NA FOLHA; PORTAL, ALISAR, DOBRADIÇA NA COR CINZA PLATINA, FECHADURA MODELO STAM 803/10 ESPELHO INOX EXT., INCLUSIVE FERRAGENS DE INSTALAÇÃO PARA PERFEITO USO E FUNCIONAMENTO. (10 UNIDADES- SANITÁRIOS, BIBLIOTECA, SALAS DE ESTUDOS.) | C92: M2 | D92: 18.9 | E92: 1280.44 | F92: =ROUND(D92*E92,2) -> 24200.32
A93: 3.11.4 | B93: P5 REAPROVEITADA- PORTA DE ABRIR COM ALISAR E PORTAL EM ALUMÍNIO, COM NOVAS MOLDURAS/GUARNIÇÃO DE ACABAMENTO E NOVAS FERRAGENS DE INSTALAÇÃO PARA PERFEITO USO E FUNCIONAMENTO. (2 UNIDADES: DEPÓSITO DA CANTINA E COZINHA FUNCIONÁRIOS) | C93: M2 | D93: 3.78 | E93: 126.18 | F93: 476.96
A94: 3.11.5 | B94: P6 - PORTA DE ABRIR EM LAMBRIL COM ALISAR E PORTAL EM ALUMÍNIO COM VISOR EM VIDRO TEMPERADO 6MM 0,20X1,00M, COM PINTURA ELETROSTÁTICA MICROTEXTURADA, DIM. 0,90 X 2,10M, COR AZUL NEON NA FOLHA; PORTAL, ALISAR, LATINA, FECHADURA MODELO STAM 803/10 ESPELHO INOX EXT., INCLUSIVE FERRAGENS DE INSTALAÇÃO PARA PERFEITO USO E FUNCIONAMENTO.(SALAS DE AULA EM GERAL) | C94: UN | D94: 16 | E94: 2464.34 | F94: 39429.44
A95: 3.11.6 | B95: P8 - PORTA DE ABRIR 2 FOLHAS- FOLHA EXTERNA EM LAMBRIL COM ALISAR E PORTAL EM ALUMÍNIO, PINTURA ELETROSTÁTICA MICROTEXTURADA, DIM. 0,90 X 2,10M, COR AZUL NEON NA FOLHA; PORTAL, ALISAR, PLATINA, FECHADURA MODELO STAM 803/10 ESPELHO INOX EXT., INCLUSIVE FERRAGENS DE INSTALAÇÃO PARA PERFEITO USO E FUNCIONAMENTO.FOLHA INTERNA EM PERFIL DE ALUMINIO COM TELA MILIMETRADA (MOSQUITEIRO) EM AÇO INOX OU ALUMINIO REMOVIÍVEL, INCLUSO MOLA AEREA. (2 UNIDADES: PREPARO DA CANTINA E REFEITÓRIO DE FUNCIONÁRIOS) | C95: UN | D95: 2 | E95: 2918.84 | F95: 5837.68
A96: 3.11.7 | B96: P9 - PORTA TIPO “VAI E VEM”, 02 FOLHAS, EM LAMBRIL COM ALISAR E PORTAL EM ALUMÍNIO, COM PINTURA ELETROSTÁTICA MICROTEXTURADA, DIM. 0,90 X 2,10M, COR AZUL NEON NA FOLHA; PORTAL, ALISAR, DOBRADIÇA NA COR CINZA PLATINA, SEM FECHADURA., INCLUSIVE FERRAGENS DE INSTALAÇÃO PARA PERFEITO USO E FUNCIONAMENTO. (1 UNIDADE: PREPARO DA CANTINA ) | C96: M2 | D96: 1.89 | E96: 1280.44 | F96: 2420.03
A97: 3.11.8 | B97: P10 - PORTA DE ENROLAR, DIM 4,46X2,90M (MEDIDA DO VÃO), PINTURA ELETROSTÁTICA CINZA PLATINA, SENDO, TIRAS MEIA CANA NA CHAPA PERFURADA #24, 05 CAIXAS DE MOLA DIÂMETRO DE 20MM, LARGURA DE 50MM, COMPRIMENTO DA MOLA DE 6,00M E FURO CENTRAL DE 1.1/2”, EIXO CENTRAL Ø1.1/2” CH#2,65MM, GUIA LATERAIS EM PERFIL “U” 50X30MM CH#14 (2,00MM), FECHADURA: 02 TRAVAS LATERAIS STAM 1200 OU SIMILAR COM CHAVE TETRA, SOLEIRA EM FORMATO “T” CH#14, VEDAÇÃO INFERIOR EM PERFIL EMBORRACHADO OU DE SILICONE. (1 UNIDADE: CANTINA) | C97: M2 | D97: 12.934 | E97: 589.8 | F97: 7628.47
A98: 3.11.9 | B98: P11 - PORTA DE ABRIR EM VENEZIANA, DIM 0,60X1,90M INSTALADA 0,20M ACIMA DO PISO, ALUMÍNIO FOSCO, FECHADURA, INCLUSIVE FERRAGENS DE INSTALAÇÃO PARA PERFEITO USO E FUNCIONAMENTO. LOCAL DE INSTALAÇÃO: TODOS OS BOXES DOS SANITÁRIOS. (14 UNIDADES= BOX SANITÁRIOS) | C98: M2 | D98: 15.96 | E98: 925.66 | F98: 14773.53
A99: 3.11.10 | B99: P12- INSTALAÇÃO DE PORTÃO METALICO REAPROVEITADO GRADIL EXISTENTE, CHUMBADO EM BASE DE ALVENARIA OU CONCRETO. (7 UNIDADES: ÁREA DE CONVIVÊNCIA) | C99: M2 | D99: 30.8 | E99: 43.84 | F99: 1350.27
A100: 3.11.11 | B100: J2 - JANELA DE VIDRO TEMPERADO, 6MM , INCOLOR, DIM. 1,40X1,45X1,18, ESTRUTURA EM ALUMÍNIO ANODIZADO FOSCO, JANELA DIVIDIDO EM 02 PARTES IGUAIS, E EM CADA UMA DESSAS PARTES DEVERÁ CONTER UMA SUBDIVISÃO, SENDO A PARTE SUPERIOR MÓVEL TIPO MÁXIMO-AR E A PARTE INFERIOR FIXA, INCLUSIVE FERRAGENS DE INSTALAÇÃO PARA PERFEITO USO E FUNCIONAMENTO. ( 1 UNIDADE: REFEITÓRIO) | C100: M2 | D100: 2.03 | E100: 648.33 | F100: 1316.11
A101: 3.11.12 | B101: J3 - JANELA DE VIDRO TEMPERADO, 6MM , INCOLOR, DIM. 2,10X1,45X1,18, ESTRUTURA EM ALUMÍNIO ANODIZADO FOSCO, JANELA DIVIDIDO EM 03 PARTES IGUAIS, E EM CADA UMA DESSAS PARTES DEVERÁ CONTER UMA SUBDIVISÃO, SENDO A PARTE SUPERIOR MÓVEL TIPO MÁXIMO-AR E A PARTE INFERIOR FIXA, INCLUSIVE FERRAGENS DE INSTALAÇÃO PARA PERFEITO USO E FUNCIONAMENTO. (32 UNIDADES: SALAS DE AULA EM GERAL) | C101: M2 | D101: 97.44 | E101: 648.33 | F101: 63173.28
A102: 3.11.13 | B102: J4- JANELA DE VIDRO TEMPERADO, 6MM, INCOLOR, DIM: 2,80X1,45X1,18, ESTRUTURA EM ALUMINIO ANODIZADO FOSCO, JANELA DIVIDIDO EM QUATRO PARTES IGUAIS, E EM CADA UMA DESSAS PARTES DEVERÁ CONTER UMA SUBDIVISÃO, SENDO A PARTE SUPERIOR MÓVEL TIPO MÁXIMO-AR E A PARTE INFERIOR FIXA, INCLUSIVE FERRAGENS DE INSTALAÇÃO PARA PERFEITO USO E FUNCIONAMENTO. FACE INTERNA EM PERFIL DE ALUMINIO COM TELA MILIMETRADA (MOSQUITEIRO) EM AÇO INOX OU ALUMINIO REMOVIÍVEL. (REFEITÓRIO E COZINHA) | C102: UN | D102: 4 | E102: 3039.37 | F102: 12157.48
A103: 3.11.14 | B103: J5- JANELA DE VIDRO TEMPERADO, 6MM, INCOLOR, DIM: 3,50X1,45X1,18, ESTRUTURA EM ALUMINIO ANODIZADO FOSCO, JANELA DIVIDIDO EM CINCO PARTES IGUAIS, E EM CADA UMA DESSAS PARTES DEVERÁ CONTER UMA SUBDIVISÃO, SENDO A PARTE SUPERIOR MÓVEL TIPO MÁXIMO-AR E A PARTE INFERIOR FIXA, INCLUSIVE FERRAGENS DE INSTALAÇÃO PARA PERFEITO USO E FUNCIONAMENTO. (4 UNIDADES: BIBLIOTECA) | C103: M2 | D103: 20.3 | E103: 648.33 | F103: 13161.1
A104: 3.11.15 | B104: J6- JANELA DE VIDRO TEMPERADO, 6MM, INCOLOR, DIM: 0,70X0,60X2,30, ESTRUTURA EM ALUMINIO ANODIZADO FOSCO, JANELA MÓVEL TIPO MÁXIMO-AR, INCLUSIVE FERRAGENS DE INSTALAÇÃO PARA PERFEITO USO E FUNCIONAMENTO. (3 UNIDADES: 2 DML E PREPARO) | C104: M2 | D104: 1.26 | E104: 648.33 | F104: 816.9
A105: 3.11.16 | B105: J7- JANELA DE VIDRO TEMPERADO, 6MM, INCOLOR, DIM:1,40X0,60X2,30, ESTRUTURA EM ALUMINIO ANODIZADO FOSCO, JANELA DIVIDIDA EM DUAS PARTES IGUAIS, MÓVEL TIPO MÁXIMO-AR, INCLUSIVE FERRAGENS DE INSTALAÇÃO PARA PERFEITO USO E FUNCIONAMENTO. (14 UNIDADES: SANITÁRIOS, BIBLIOTECA E ESTUDOS EM GRUPOS) | C105: M2 | D105: 11.76 | E105: 648.33 | F105: 7624.36
A106: 3.11.17 | B106: J9- JANELA DE VIDRO TEMPERADO, 6MM, INCOLOR, DIM: 2,80X0,60X2,30, ESTRUTURA EM ALUMINIO ANODIZADO FOSCO, JANELA DIVIDIDA EM QUATRO PARTES IGUAIS, MÓVEL TIPO MÁXIMO-AR, INCLUSIVE FERRAGENS DE INSTALAÇÃO PARA PERFEITO USO E FUNCIONAMENTO. (5 UNIDADES: SANITÁRIOS) | C106: M2 | D106: 8.4 | E106: 648.33 | F106: 5445.97
A107: 3.11.18 | B107: J10-VENEZIANA INDUSTRIAL EM POLICARBONATO ALVEOLAR 4MM COM REQUADRO METÁLICO COM UMA DEMÃO DE FUNDO ANTICORROSIVO EM PRIMER EPÓXI E DUAS DEMÃOS ESMALTE SINTETICO ACETINADO CINZA PLATINA , FORNECIMENTO E INSTALAÇÃO.(61,75X0,80M- CIRCULAÇÃO DO BLOCO) | C107: M2 | D107: 49.4 | E107: 261.28 | F107: 12907.23
A108: 3.11.19 | B108: J11- PAINEL DE VIDRO TEMPERADO ESPESSURA 10MM, TRANSPARENTE, DIM. 0,70X2,23X0,40, REQUADRO DE ALUMÍNIO NA COR NATURAL, INCLUSIVE FERRAGENS DE INSTALAÇÃO PARA PERFEITO USO E FUNCIONAMENTO. (26 UNIDADES: BIBLIOTECA) | C108: M2 | D108: 40.586 | E108: 427.01 | F108: 17330.63
A109: 3.11.20 | B109: J12- PAINEL DE VIDRO TEMPERADO ESPESSURA 8MM, TRANSPARENTE, DIM. 0,80X1,45X1,18, REQUADRO DE ALUMÍNIO NA COR NATURAL, INCLUSIVE FERRAGENS DE INSTALAÇÃO PARA PERFEITO USO E FUNCIONAMENTO. (16 UNIDADES: ESPAÇO MAKER) | C109: M2 | D109: 18.56 | E109: 337.37 | F109: 6261.59
A110: 3.11.21 | B110: V4- VISOR EM VIDRO TEMPERADO ESPESSURA=6MM, FUMÊ, DIM: 2,50X1,00X1,10, COM REQUADRO DE ALUMÍNIO NA COR NATURAL, INCLUSIVE FERRAGENS DE INSTALAÇÃO PARA PERFEITO USO E FUNCIONAMENTO.(4 UNIDADES: SALAS DIVERSIDADES, TECNOLOGIAS I, II E III) | C110: M2 | D110: 10 | E110: 338.81 | F110: 3388.1
A111: 3.11.22 | B111: V5- VISOR EM VIDRO TEMPERADO ESPESSURA=6MM, FUMÊ, DIM: 1,00X1,00X1,10, COM REQUADRO DE ALUMÍNIO NA COR NATURAL, INCLUSIVE FERRAGENS DE INSTALAÇÃO PARA PERFEITO USO E FUNCIONAMENTO. (2 UNIDADES: ESTUDOS EM GRUPO) | C111: M2 | D111: 2 | E111: 338.81 | F111: 677.62
A112: 3.11.23 | B112: V6- VISOR EM VIDRO TEMPERADO ESPESSURA=6MM, FUMÊ, DIM: 4,00X0,60X2,30, COM REQUADRO DE ALUMÍNIO NA COR NATURAL, INCLUSIVE FERRAGENS DE INSTALAÇÃO PARA PERFEITO USO E FUNCIONAMENTO. (1 UNIDADE: PREPARO DA CANTINA) | C112: M2 | D112: 2.4 | E112: 338.81 | F112: 813.14
A113: 3.11.24 | B113: VIDRO FIXO TEMPERADO ESPESSURA 10MM, FORNECIMENTO E INSTALACAO. (SALAS DE LEITURA ) | C113: M2 | D113: 18.51 | E113: 427.01 | F113: 7903.96
A114: 3.11.25 | B114: ESPELHO CRISTAL E=4MM, FORNECIMENTO E INSTALAÇÃO (SANITÁRIOS) | C114: M2 | D114: 17.308 | E114: 471.22 | F114: 8155.88
A115: 3.11.26 | B115: LOUSA DE VIDRO INCOLOR 6MM TEMPERADO COM SEIS FUROS ADESIVADOS CPOM PELICULA BRANCA E PARAFUSADO COM BOTÃO CABEÇA DE LATÃO CROMADO MEDINDO 3,50 X 1,20M, COM PORTA CANETAS E APAGADORES MEDINDO ,30X0,10M COM 02 BICOS TUCANO CADA PORTA APAGADOR. (SALAS DE AULAS EM GERAL) | C115: UN | D115: 16 | E115: 1627.27 | F115: 26036.32
A116: 3.12 | B116: PISOS | F116: =SUBTOTAL(9,F117:F121) -> 554321.48
A117: 3.12.1 | B117: CONTRAPISO DE CONCRETO 20 MPA PREPARO MECANICO, ESPESSURA 7CM. | C117: M2 | D117: 2568.214093 | E117: 70.07 | F117: =ROUND(D117*E117,2) -> 179954.76
A118: 3.12.2 | B118: REGULARIZAÇÃO EM ARGAMASSA TRAÇO 1:4 (CIMENTO E AREIA), PREPARO MECÂNICOCOM BETONEIRA 400 L, APLICADO EM ÁREAS SECAS SOBRE LAJE, ADERIDO, ESPESSURA 3CM | C118: M2 | D118: 2568.214093 | E118: 37.79 | F118: =ROUND(D118*E118,2) -> 97052.81
A119: 3.12.3 | B119: PISO PORCELANATO POLIDO ADHARA PO, 80X80CM, ELIANE OU SIMILR TÉCNICO. | C119: M2 | D119: 1407.421293 | E119: 107.52 | F119: =ROUND(D119*E119,2) -> 151325.94
A120: 3.12.4 | B120: PISO PORCELANATO ESMALTADO ANTIDERRAPANTE - MARMORE BIANCO NAT RET 60X60CM COR BEGE COD. 23427E PORTOBELLO OU SIMILAR | C120: M2 | D120: 1160.7928 | E120: 107.52 | F120: =ROUND(D120*E120,2) -> 124808.44
A121: 3.12.5 | B121: RODAPÉ EM PISO PORCELANATO POLIDO ADHARA PO, 80X80CM, ELIANE OU SIMILR TÉCNICO. | C121: M | D121: 102.7462 | E121: 11.48 | F121: =ROUND(D121*E121,2) -> 1179.53
A122: 3.13 | B122: REVESTIMENTO | F122: =SUBTOTAL(9,F123:F128) -> 362894.94
A123: 3.13.1 | B123: CHAPISCO APLICADO EM ALVENARIAS E ESTRUTURAS DE CONCRETO INTERNAS, COM ROLO PARA TEXTURA ACRÍLICA. ARGAMASSA TRAÇO 1:4 E EMULSÃO POLIMÉRICA (ADESIVO) COM PREPARO EM BETONEIRA 400L. AF_06/2014 | C123: M2 | D123: 3975.6237 | E123: 5.09 | F123: =ROUND(D123*E123,2) -> 20235.92
A124: 3.13.2 | B124: EMBOÇO/MASSA ÚNICA, APLICADO MANUALMENTE, TRAÇO 1:2:8, EM BETONEIRA DE 400L, PAREDES INTERNAS, COM EXECUÇÃO DE TALISCAS. | C124: M2 | D124: 3975.6237 | E124: 31.51 | F124: 125271.9
A125: 3.13.3 | B125: REVESTIMENTO CERAMICO PORTOBELLO GLACIE WHITE 30X60CM, INCLUSO E REJUNTE - FORNECIMENTO E INSTALAÇÃO | C125: M2 | D125: 441.08203 | E125: 156.44 | F125: 69002.87
A126: 3.13.4 | B126: REVESTIMENTO CERÂMICO PARA PAREDES EXTERNAS EM PASTILHAS JATOBÁ DE PORCELANA 5 X 5 CM (PLACAS DE 30 X 30 CM) OU SIMILAR, INCLUSO REJUNTE E ARGAMASSA INDUSTRIALIZADA. | C126: M2 | D126: 33.918 | E126: 246.69 | F126: 8367.23
A127: 3.13.5 | B127: REVESTIMENTO CERAMICO PORTOBELLO 7x26, BASALTO OFF WHITE, REFERENCIA 24995E, INCLUSO E REJUNTE - FORNECIMENTO E INSTALAÇÃO. (FACHADAS E CIRCULAÇÕES EXTERNAS) | C127: M2 | D127: 417.6014 | E127: 182.46 | F127: 76195.55
A128: 3.13.6 | B128: BARRADO EM PISO PORCELANATO POLIDO ADHARA PO, 80X80CM, ELIANE OU SIMILR TÉCNICO. (SALAS DE AULA EM GERAL) | C128: M2 | D128: 593.5777 | E128: 107.52 | F128: 63821.47
A129: 3.14 | B129: GRANITO | F129: =SUBTOTAL(9,F130:F133) -> 99071.85
A130: 3.14.1 | B130: BANCADA DE GRANITO CINZA ANDORINHA, SOBRE MÃOS-FRANCESAS METÁLICAS, ESP=2cm COM FRONTÃO 20cm, SAIA COM ACAB. DE MEIA ESQUADRIA 30CM E REFORÇO INFERIOR DE BORDA E CORTE PARA INST. DE CUBAS DE LOUÇA OVAL DE EMBUTIR LOCAL -BANCADAS DOS SANITÁRIOS E LAVATÓRIOS- FRONTÃO 20CM E SAIA DE 30CM - TROCADOR DO BANHEIRO PCD- FRONTÃO 20CM E SAIA DE 10CM - BALCÕES ATENDIMENTO CANTINA- FRONTÃO 20CM E SAIA DE 10CM - BANCO PÁTIO DE CONVIVÊNCIA- SAIA DE 5CM | C130: M2 | D130: 43.905 | E130: 884.39 | F130: =ROUND(D130*E130,2) -> 38829.14
A131: 3.14.2 | B131: DIVISORIA EM GRANITO BRANCO POLIDO, ESP = 3CM, ASSENTADO COM ARGAMASSA TRACO 1:4, ARREMATE EM CIMENTO BRANCO, EXCLUSIVE FERRAGENS | C131: M2 | D131: 44.857 | E131: 903.77 | F131: =ROUND(D131*E131,2) -> 40540.41
A132: 3.14.3 | B132: SOLEIRA EM GRANITO, LARGURA 15 CM, ESPESSURA 2,0 CM. AF_06/2018 | C132: M | D132: 58.06 | E132: 114.65 | F132: =ROUND(D132*E132,2) -> 6656.58
A133: 3.14.4 | B133: FORNECIMENTO E INSTALAÇÃO DE PEITORIL/PINGADERIA EM GRANITO CINZA ANDORINHA 16,5CM ESPESSURA 2CM, ASSENTADO COM ARGAMASSA TRAÇO 1: 3 (CIMENTO E AREIA MÉDIA), PREPARO MANUAL DA ARGAMASSA | C133: M2 | D133: 29.1225 | E133: 447.96 | F133: =ROUND(D133*E133,2) -> 13045.72
A134: 3.15 | B134: FORROS | F134: =SUBTOTAL(9,F135:F138) -> 292732.1
A135: 3.15.1 | B135: FORRO ACÚSTICO EM FIBRA MINERAL: REF: OWA DO BRASIL, MODELO COSMOS TEGULAR, MODULAÇÃO 625X625MM COM ABSORÇÃO ACÚSTICA NRC=0,65 E RESISTÊNCIA A UMIDADE RH 95% (COMPOSIÇÃO: FIBRA MINERAL BIOSOLÚVEL COMPOSTA POR MINERAIS INERTES, ARGILA E AMIDO NATURAL - MAT. INCOMBUSTÍVEL). | C135: M2 | D135: 1299.5789 | E135: 142.13 | F135: =ROUND(D135*E135,2) -> 184709.15
A136: 3.15.2 | B136: FORRO DE PVC: FORRO DE PVC MODULAR BRANCO ESPSESSURA 10MM, MODULAÇÃO 625X625MM, INSTALADOS EM PERFIL "T", SUPENSO POR PENDURAIS EM ARRAME GALVANIZADO A CADA 1250X1250MM | C136: M2 | D136: 107.842393 | E136: 91.95 | F136: =ROUND(D136*E136,2) -> 9916.11
A137: 3.15.3 | B137: FORRO EM DRYWALL, PARA AMBIENTES COMERCIAIS, INCLUSIVE ESTRUTURA DE FIXAÇÃO E JUNTA PERIMÉTRICA. AF_05/2017_P | C137: M2 | D137: 1160.7928 | E137: 71.07 | F137: =ROUND(D137*E137,2) -> 82497.54
A138: 3.15.4 | B138: BEIRAIS-FORRO DE PVC, LISO, REGUA DE 20CM, INCLUSIVE ESTRUTURA DE FIXAÇÃO CPNFORME NORMAS DE FABRICANTE. AF_05/2017_P | C138: M2 | D138: 264.43 | E138: 59.03 | F138: =ROUND(D138*E138,2) -> 15609.3
A139: 3.16 | B139: PINTURA | F139: =SUBTOTAL(9,F140:F146) -> 152544.71
A140: 3.16.1 | B140: APLICAÇÃO DE FUNDO SELADOR LÁTEX PVA EM PAREDES, UMA DEMÃO. AF_06/2014 | C140: M2 | D140: 2855.0391 | E140: 2.31 | F140: =ROUND(D140*E140,2) -> 6595.14
A141: 3.16.2 | B141: EMASSAMENTO COM MASSA LATEX PVA PARA AMBIENTES INTERNOS | C141: M2 | D141: 1623.7865 | E141: 14.74 | F141: 23934.61
A142: 3.16.3 | B142: PINTURA C/ APLICAÇÃO DE TINTA LATÉX ACRÍLICO, PAREDES INTERNAS, 2 DEMÃOS (REF. CORES A SEREM DEFINIDAS PELA FISCALIZAÇÃO SESI). | C142: M2 | D142: 1623.7865 | E142: 14.41 | F142: 23398.76
A143: 3.16.4 | B143: TEXTURA ACRÍLICA, APLICAÇÃO MANUAL EM PAREDE, UMA DEMÃO. (PAREDES E PLATIBANDAS EXTERNAS) | C143: M2 | D143: 1942.7926 | E143: 14.96 | F143: 29064.18
A144: 3.16.5 | B144: APLICAÇÃO MANUAL DE PINTURA COM TINTA LÁTEX ACRÍLICA EM PAREDES, DUAS DEMÃOS. (PAREDES E PLATIBANDAS EXTERNAS) | C144: M2 | D144: 1942.7926 | E144: 14.41 | F144: 27995.64
A145: 3.16.6 | B145: EMASSAMENTO COM MASSA LATEX PVA PARA FORRO DE GESSO | C145: M2 | D145: 1160.7928 | E145: 19.54 | F145: 22681.89
A146: 3.16.7 | B146: PINTURA C/ APLICAÇÃO DE TINTA LATÉX ACRÍLICO PARA FORRO DE GESSO , 2 DEMÃOS (REF. CORES A SEREM DEFINIDAS PELA FISCALIZAÇÃO SENAI). | C146: M2 | D146: 1160.7928 | E146: 16.26 | F146: 18874.49
A147: 3.17 | B147: CALÇAMENTO, PÁTIO E PASSARELAS | F147: 0
A148: 3.18 | B148: SERVIÇOS COMPLEMENTARES | F148: =SUBTOTAL(9,F149:F149) -> 862.44
A149: 3.18.1 | B149: INSTALAÇÃO DE GRADIL REAPROVEITADO DO EXISTENTE, CHUMBADO EM BASE DE ALVENARIA OU CONCRETO. | C149: M2 | D149: 19.6725 | E149: 43.84 | F149: =ROUND(D149*E149,2) -> 862.44
A150: 3.19 | B150: INSTALAÇÕES SPDA | F150: =SUBTOTAL(9,F151:F169) -> 64137.11
A151: 3.19.1 | B151: HASTE DE ATERRAMENTO 5/8 PARA SPDA - FORNECIMENTO E INSTALAÇÃO. AF_12/2017 | C151: UN | D151: 66 | E151: 56.5 | F151: =ROUND(D151*E151,2) -> 3729
A152: 3.19.2 | B152: CAIXA DE INSPEÇÃO PARA ATERRAMENTO, CIRCULAR, EM POLIETILENO, DIÂMETRO INTERNO = 0,3 M. AF_05/2018 | C152: UN | D152: 18 | E152: 25.23 | F152: 454.14
A153: 3.19.3 | B153: ESCAVAÇÃO MANUAL DE VALA COM PROFUNDIDADE MENOR OU IGUAL A 1,30 M. AF_03/2016 | C153: M3 | D153: 31.05 | E153: 76.99 | F153: 2390.54
A154: 3.19.4 | B154: REATERRO MANUAL DE VALAS COM COMPACTAÇÃO MECANIZADA. AF_04/2016 | C154: M3 | D154: 31.05 | E154: 26 | F154: 807.3
A155: 3.19.5 | B155: FORNECIMENTO E INSTALAÇÃO DE CONECTOR DE MEDIÇÃO C/ 2 PARAFUSOS | C155: UN | D155: 18 | E155: 29.36 | F155: 528.48
A156: 3.19.6 | B156: FORNECIMENTO E INSTALAÇÃO DE SOLDA EXOTÉRMICA CABO-HASTE COM CARTUCHO Nº 90 E MOLDE CABO 35mm²- HASTE 5/8" | C156: UN | D156: 18 | E156: 19.96 | F156: 359.28
A157: 3.19.7 | B157: FORNECIMENTO E INSTALAÇÃO DE SOLDA EXOTÉRMICA CABO-HASTE COM CARTUCHO Nº115 E MOLDE CABO 50mm²- HASTE 5/8" | C157: UN | D157: 66 | E157: 25.08 | F157: 1655.28
A158: 3.19.8 | B158: FORNECIMENTO E INSTALAÇÃO DE SOLDA EXOTÉRMICA CABO-CABO COM CARTUCHO Nº 32 E MOLDE TIPO "T" CABO 35mm²- CABO 35mm² | C158: UN | D158: 42 | E158: 12.71 | F158: 533.82
A159: 3.19.9 | B159: FORNECIMENTO E INSTALAÇÃO DE BARRA CHATA DE ALUMÍNIO 3/4" X 1/4" | C159: M | D159: 117 | E159: 91.33 | F159: 10685.61
A160: 3.19.10 | B160: FORNECIMENTO E INSTALAÇÃO DE SOLDA EXOTÉRMICA CABO-CABO, CABO DE 35mm² TIPO "X"(COM MOLDE) | C160: M | D160: 9 | E160: 19.93 | F160: 179.37
A161: 3.19.11 | B161: FORNECIMENTO E INSTALAÇÃO DE REBITE POP EM ALUMÍNIO 4 X 16MM | C161: UN | D161: 779 | E161: 1.38 | F161: 1075.02
A162: 3.19.12 | B162: FORNECIMENTO E INSTALAÇÃO DE PARAFUSO ZINCADO, SEXTAVADO, COM ROSCA INTEIRA, DIAMETRO 1/4", COMPRIMENTO 1/2" | C162: UN | D162: 78 | E162: 7.72 | F162: 602.16
A163: 3.19.13 | B163: FORNECIMENTO E INSTALAÇÃO DE TERMINAL AEREO EM ACO GALVANIZADO DN 5/16", COMPRIMENTO DE 350MM, COM BASE DE FIXACAO HORIZONTAL | C163: UN | D163: 155 | E163: 21.69 | F163: 3361.95
A164: 3.19.14 | B164: FORNECIMENTO E INSTALAÇÃO DE CONECTOR METALICO TIPO PARAFUSO FENDIDO (SPLIT BOLT), PARA CABOS ATE 35 MM2 | C164: UN | D164: 18 | E164: 17.57 | F164: 316.26
A165: 3.19.15 | B165: FORNECIMENTO E INSTALAÇÃO DE PRESILHA DE LATÃO 35MM² | C165: UN | D165: 469 | E165: 4.34 | F165: 2035.46
A166: 3.19.16 | B166: TERMINAL OU CONECTOR DE PRESSAO - PARA CABO 35MM2 - FORNECIMENTO E INSTALACAO | C166: UN | D166: 18 | E166: 19.27 | F166: 346.86
A167: 3.19.17 | B167: TERMINAL OU CONECTOR DE PRESSAO - PARA CABO 50MM2 - FORNECIMENTO E INSTALACAO | C167: UN | D167: 18 | E167: 25.91 | F167: 466.38
A168: 3.19.18 | B168: CABO DE COBRE NU 35MM2 - FORNECIMENTO E INSTALACAO | C168: M | D168: 707 | E168: 34.61 | F168: 24469.27
A169: 3.19.19 | B169: CABO DE COBRE NU 50MM2 - FORNECIMENTO E INSTALACAO | C169: M | D169: 207 | E169: 48.99 | F169: 10140.93
A170: 3.20 | B170: INSTALAÇÕES DE COMBATE A INCÊNDIO | F170: 0
A171: 3.21 | B171: INSTALAÇÕES ELÉTRICAS | F171: =SUBTOTAL(9,F172:F226) -> 190942.91
A172: 3.21.1 | B172: ACESSÓRIOS PARA ELETRODUTOS E USO GERAL | F172: =SUBTOTAL(9,F173:F175) -> 4920
A173: 3.21.1.1 | B173: FORNECIMENTO E INSTALAÇÃO DE CAIXA OCTOGONAL 3" X 3", PVC, INSTALADA EM TETO - AF_12/2015 | C173: PÇ | D173: 247 | E173: 9.96 | F173: =ROUND(D173*E173,2) -> 2460.12
A174: 3.21.1.2 | B174: FORNECIMENTO E INSTALAÇÃO DE CAIXA RETANGULAR 4" X 2" MÉDIA (1,30 M DO PISO), PVC, INSTALADA EM PAREDE - AF_12/2015 | C174: PÇ | D174: 171 | E174: 13.48 | F174: 2305.08
A175: 3.21.1.3 | B175: FORNECIMENTO E INSTALAÇÃO DE ARAME AÇO GALVANIZADO 18 BWG, 1,24MM (0,009 KG/M) | C175: M | D175: 60 | E175: 2.58 | F175: 154.8
A176: 3.21.2 | B176: CABO UNIPOLAR | F176: =SUBTOTAL(9,F177:F179) -> 52954
A177: 3.21.2.1 | B177: FORNECIMENTO E INSTALAÇÃO DE CABO DE COBRE FLEXÍVEL ISOLADO, 2,5 MM², ANTI-CHAMA 450/750 V, PARA CIRCUITOS TERMINAIS - AF_12/2015 | C177: M | D177: 7600 | E177: 3.54 | F177: =ROUND(D177*E177,2) -> 26904
A178: 3.21.2.2 | B178: FORNECIMENTO E INSTALAÇÃO DE CABO DE COBRE FLEXÍVEL ISOLADO, 4,0 MM², ANTI-CHAMA 450/750 V, PARA CIRCUITOS TERMINAIS - AF_12/2015 | C178: M | D178: 3200 | E178: 5.7 | F178: 18240
A179: 3.21.2.3 | B179: FORNECIMENTO E INSTALAÇÃO DE CABO DE COBRE FLEXÍVEL ISOLADO, 6,0 MM², ANTI-CHAMA 450/750 V, PARA CIRCUITOS TERMINAIS - AF_12/2015 | C179: M | D179: 1000 | E179: 7.81 | F179: 7810
A180: 3.21.3 | B180: DISPOSITIVO ELÉTRICO - EMBUTIDO | F180: =SUBTOTAL(9,F181:F189) -> 10323.76
A181: 3.21.3.1 | B181: INTERRUPTOR SIMPLES (1 MÓDULO), 10A/250V, INCLUINDO SUPORTE E PLACA - FORNECIMENTO E INSTALAÇÃO. AF_12/2015 | C181: PÇ | D181: 4 | E181: 21.35 | F181: =ROUND(D181*E181,2) -> 85.4
A182: 3.21.3.2 | B182: INTERRUPTOR SIMPLES (2 MÓDULOS), 10A/250V, INCLUINDO SUPORTE E PLACA - FORNECIMENTO E INSTALAÇÃO. AF_12/2015 | C182: PÇ | D182: 17 | E182: 33.71 | F182: 573.07
A183: 3.21.3.3 | B183: INTERRUPTOR SIMPLES (3 MÓDULOS), 10A/250V, INCLUINDO SUPORTE E PLACA - FORNECIMENTO E INSTALAÇÃO. AF_12/2015 | C183: PÇ | D183: 3 | E183: 46.06 | F183: 138.18
A184: 3.21.3.4 | B184: INTERRUPTOR SIMPLES (1 MÓDULO) COM 1 TOMADA DE EMBUTIR 2P+T 10 A, INCLUINDO SUPORTE E PLACA - FORNECIMENTO E INSTALAÇÃO. AF_12/2015 | C184: PÇ | D184: 6 | E184: 38.05 | F184: 228.3
A185: 3.21.3.5 | B185: INTERRUPTOR SIMPLES (2 MÓDULOS) COM 1 TOMADA DE EMBUTIR 2P+T 10 A, INCLUINDO SUPORTE E PLACA - FORNECIMENTO E INSTALAÇÃO. AF_12/2015 | C185: UN | D185: 2 | E185: 50.42 | F185: 100.84
A186: 3.21.3.6 | B186: INTERRUPTOR PARALELO (1 MÓDULO), 10A/250V, INCLUINDO SUPORTE E PLACA - FORNECIMENTO E INSTALAÇÃO. AF_12/2015 | C186: UN | D186: 2 | E186: 26.56 | F186: 53.12
A187: 3.21.3.7 | B187: TOMADA BAIXA DE EMBUTIR (2 MÓDULOS), 2P+T 10 A, INCLUINDO SUPORTE E PLACA - FORNECIMENTO E INSTALAÇÃO. AF_12/2015 | C187: PÇ | D187: 128 | E187: 35.95 | F187: 4601.6
A188: 3.21.3.8 | B188: TOMADA ALTA DE EMBUTIR (1 MÓDULO), 2P+T 10 A, INCLUINDO SUPORTE E PLACA - FORNECIMENTO E INSTALAÇÃO. AF_12/2015 | C188: PÇ | D188: 128 | E188: 34.1 | F188: 4364.8
A189: 3.21.3.9 | B189: TOMADA ALTA DE EMBUTIR (1 MÓDULO), 2P+T 20 A, INCLUINDO SUPORTE E PLACA - FORNECIMENTO E INSTALAÇÃO. AF_12/2015 | C189: PÇ | D189: 5 | E189: 35.69 | F189: 178.45
A190: 3.21.4 | B190: DISPOSITIVO DE PROTEÇÃO | F190: =SUBTOTAL(9,F191:F203) -> 8836.2
A191: 3.21.4.1 | B191: DISJUNTOR TRIPOLAR TIPO DIN, CORRENTE NOMINAL DE 25A - FORNECIMENTO E INSTALAÇÃO. AF_04/2016 | C191: PÇ | D191: 14 | E191: 76.97 | F191: =ROUND(D191*E191,2) -> 1077.58
A192: 3.21.4.2 | B192: DISJUNTOR TRIPOLAR TIPO DIN, CORRENTE NOMINAL DE 32A - FORNECIMENTO E INSTALAÇÃO. AF_04/2016 | C192: PÇ | D192: 6 | E192: 80.92 | F192: 485.52
A193: 3.21.4.3 | B193: FORNECIMENTO E INSTALAÇÃO DE DISJUNTOR TIPO DIN/IEC, TRIPOLAR 80 A | C193: UND | D193: 2 | E193: 159.43 | F193: 318.86
A194: 3.21.4.4 | B194: FORNECIMENTO E INSTALAÇÃO DE DISJUNTOR TIPO DIN/IEC, TRIPOLAR 90 A | C194: UND | D194: 1 | E194: 159.43 | F194: 159.43
A195: 3.21.4.5 | B195: FORNECIMENTO E INSTALAÇÃO DE DISJUNTOR TERMOMAGNETICO TRIPOLAR 125A | C195: UND | D195: 1 | E195: 393.59 | F195: 393.59
A196: 3.21.4.6 | B196: FORNECIMENTO E INSTALAÇÃO DE DISJUNTOR TERMOMAGNETICO TRIPOLAR 150 A / 600 V, TIPO FXD / ICC - 35 KA | C196: UND | D196: 2 | E196: 441.13 | F196: 882.26
A197: 3.21.4.7 | B197: DISJUNTOR TERMOMAGNETICO TRIPOLAR EM CAIXA MOLDADA 175 A 225A 240V, FORNECIMENTO E INSTALACAO | C197: UN | D197: 1 | E197: 580.69 | F197: 580.69
A198: 3.21.4.8 | B198: FORNECIMENTO E INSTALAÇÃO DE DISJUNTOR BIPOLAR TIPO DIN, CORRENTE NOMINAL DE 10A - AF_04/2016 | C198: PÇ | D198: 22 | E198: 57.69 | F198: 1269.18
A199: 3.21.4.9 | B199: DISJUNTOR BIPOLAR TIPO DIN, CORRENTE NOMINAL DE 20A - FORNECIMENTO E INSTALAÇÃO. AF_04/2016 | C199: UN | D199: 6 | E199: 61 | F199: 366
A200: 3.21.4.10 | B200: FORNECIMENTO E INSTALAÇÃO DE DISJUNTOR BIPOLAR TIPO DIN, CORRENTE NOMINAL DE 25A - AF_04/2016 | C200: PÇ | D200: 8 | E200: 61 | F200: 488
A201: 3.21.4.11 | B201: FORNECIMENTO E INSTALAÇÃO DE DISJUNTOR BIPOLAR TIPO DIN, CORRENTE NOMINAL DE 32A - AF_04/2016 | C201: PÇ | D201: 3 | E201: 63.63 | F201: 190.89
A202: 3.21.4.12 | B202: FORNECIMENTO E INSTALAÇÃO DE DISJUNTOR MONOPOLAR TIPO DIN, CORRENTE NOMINAL DE 16A - AF_04/2016 | C202: PÇ | D202: 53 | E202: 12.2 | F202: 646.6
A203: 3.21.4.13 | B203: FORNECIMENTO E INSTALAÇÃO DE DISPOSITIVO DPS CLASSE II, 1 POLO, TENSAO MAXIMA DE 175 V, CORRENTE MAXIMA DE 20 KA (TIPO AC) | C203: UND | D203: 24 | E203: 82.4 | F203: 1977.6
A204: 3.21.5 | B204: ELETROCALHA FURADA TIPO U PRÉ-GALVANIZADA QUENTE | F204: =SUBTOTAL(9,F205:F216) -> 13281.77
... 111 more rows

Sheet BLOCO C
A1: PLANILHA ORÇAMENTARIA | D1: SPN-FF-003
D3: Folha: 1 de 1 | E3: Revisão: 02 | F3: Data: 07/10/19
A5: =RESUMO!A5 -> SESI - SERVIÇO SOCIAL DA INDUSTRIA - DR/MT
A6: =RESUMO!A6 -> OBRA: CONTRATAÇÃO DE EMPRESA ESPECIALIZADA EM ENGENHARIA PARA OBRA DE REFORMA E AMPLIAÇÃO DA UNIDADE SESI ESCOLA CUIABÁ
A7: =RESUMO!A7 -> UNIDADE OPERACIONAL: SESI ESCOLA CUIABA
A8: =RESUMO!A8 -> ENDEREÇO: AV. OÁTOMO CANAVARROS, 1079, BAIRRO BELA VISTA CIDADE: CUIABÁ-MT
A9: CONSTRUTORA:
A10: RESPONSÁVEL TÉCNICO:
A12: ITEM | B12: DESCRIÇÃO | C12: UNID. | D12: QUANT. | E12: Valor UNIT. (R$) | F12: Valor Total (R$)
A14: BLOCO C
A15: 4.1 | B15: DEMOLIÇÕES E RETIRADAS | F15: =SUBTOTAL(9,F16:F36) -> 91414.74
A16: 4.1.1 | B16: DEMOLIÇÃO DE ALVENARIA DE BLOCO FURADO, DE FORMA MANUAL, SEM REAPROVEITAMENTO. AF_12/2017 | C16: M3 | D16: 159.21575 | E16: 50.69 | F16: =ROUND(D16*E16,2) -> 8070.65
A17: 4.1.2 | B17: REMOÇÃO DE CHAPAS E PERFIS DE DRYWALL, DE FORMA MANUAL, SEM REAPROVEITAMENTO. AF_12/2017 | C17: M2 | D17: 5.46 | E17: 6.58 | F17: =ROUND(D17*E17,2) -> 35.93
A18: 4.1.3 | B18: RETIRADA DE GRADE METÁLICA | C18: M2 | D18: 6 | E18: 10.91 | F18: 65.46
A19: 4.1.4 | B19: DEMOLIÇÃO DE PISO REVESTIDO COM GRANILITE | C19: M2 | D19: 866.6447 | E19: 24.23 | F19: 20998.8
A20: 4.1.5 | B20: DEMOLIÇÃO DE PISO VINÍLICO | C20: M2 | D20: 492.9305 | E20: 2.95 | F20: =ROUND(D20*E20,2) -> 1454.14
A21: 4.1.6 | B21: RETIRADA DE BANCADA COM REAPROVEITAMENTO | C21: M2 | D21: 8.3 | E21: 43.7 | F21: 362.71
A22: 4.1.7 | B22: REMOÇÃO DE TESOURAS METÁLICAS, DE FORMA MANUAL, SEM REAPROVEITAMENTO, VÃO MAIOR QUE 8M. (MEMORIAL ARQUITETURA- COBERTURA 01, 03 E 05.) | C22: UN | D22: 18 | E22: 420.88 | F22: 7575.84
A23: 4.1.8 | B23: REMOÇÃO DE PASSARELA METÁLICA DE INTERLIGAÇÃO BLOCO B E C . | C23: M2 | D23: 37.72 | E23: 21.62 | F23: 815.51
A24: 4.1.9 | B24: REMOÇÃO DE TRAMA DE MADEIRA PARA COBERTURA, DE FORMA MANUAL, SEM REAPROVEITAMENTO. (TODO TELHADO) | C24: M2 | D24: 1877 | E24: 6.78 | F24: 12726.06
A25: 4.1.10 | B25: REMOÇÃO DE TELHAS, DE FIBROCIMENTO, METÁLICA E CERÂMICA, DE FORMA MANUAL, SEM REAPROVEITAMENTO. (TODO TELHADO) | C25: M2 | D25: 1877 | E25: 3.14 | F25: 5893.78
A26: 4.1.11 | B26: REMOÇÃO DE PLATIBANDA EM CHAPA METÁLICA COM REAPROVEITAMENTO. | C26: M2 | D26: 190.44 | E26: 21.62 | F26: 4117.31
A27: 4.1.12 | B27: DESMONTAGEM E RETIRADA DE EXAUSTOR EÓLICO DE FORMA MANUAL , INCLUSO TRANSPORTE E DEPOSITO EM LOCAL A SER INDICADO PELA FISCALIZAÇÃO | C27: CJ | D27: 6 | E27: 177.95 | F27: 1067.7
A28: 4.1.13 | B28: REMOÇÃO DE PORTAS, DE FORMA MANUAL, COM REAPROVEITAMENTO. | C28: M2 | D28: 27.3 | E28: 31.59 | F28: 862.41
A29: 4.1.14 | B29: REMOÇÃO DE PORTAS , GUICHÊ E BOX DE VIDRO TEMPERADO, DE FORMA MANUAL, COM REAPROVEITAMENTO. | C29: M2 | D29: 34.36 | E29: 31.59 | F29: 1085.43
A30: 4.1.15 | B30: REMOÇÃO DE JANELAS, DE FORMA MANUAL, COM REAPROVEITAMENTO. | C30: M2 | D30: 117.36 | E30: 75.29 | F30: 8836.03
A31: 4.1.16 | B31: REMOÇÃO DE METAIS SANITÁRIOS, DE FORMA MANUAL, SEM REAPROVEITAMENTO. AF_12/2017 | C31: UN | D31: 2 | E31: 7.99 | F31: 15.98
A32: 4.1.17 | B32: REMOÇÃO DE FORROS DE DRYWALL, PVC E FIBROMINERAL, DE FORMA MANUAL, SEM REAPROVEITAMENTO. AF_12/2017 | C32: M2 | D32: 866.6447 | E32: 1.42 | F32: 1230.64
A33: 4.1.18 | B33: REMOÇÃO DE FORROS DE MADEIRA, DE FORMA MANUAL, SEM REAPROVEITAMENTO. | C33: M2 | D33: 492.9305 | E33: 2.54 | F33: 1252.04
A34: 4.1.19 | B34: REMOÇÃO DE TRAMA METÁLICA OU DE MADEIRA PARA FORRO, DE FORMA MANUAL, SEM REAPROVEITAMENTO. AF_12/2017 | C34: M2 | D34: 1359.5752 | E34: 2.54 | F34: 3453.32
A35: 4.1.20 | B35: RETIRADA GRADE OU GUARDA-CORPO METALICO, COM REAPROVEITAMENTO | C35: M2 | D35: 15.84 | E35: 10.91 | F35: 172.81
A36: 4.1.21 | B36: BOTA FORA DE MATERIAL DESCARTADO, D.M.T. = 10 km - (CARGA, TRANSPORTE E DESCARGA MECÂNICA) | C36: M3 | D36: 448.759148 | E36: 25.23 | F36: 11322.19
A37: 4.2 | B37: CANTEIRO DE OBRAS | F37: 0
A38: 4.3 | B38: ADMINISTRAÇÃO | F38: 0
A39: 4.4 | B39: TERRAPLENAGEM | F39: =SUBTOTAL(9,F40) -> 1842.6
A40: 4.4.1 | B40: ATERRO COMPACTADO MECANICAMENTE AO NIVEL DO BALDRAME - C/ AQUISIÇÃO DE MATERIAL + 25% DE EMPOLAMENTO, EM CAMADAS DE 20cm - AQUI INCLUSO CARGA, DESCARGA, TRANSPORTE DMT ATÉ 10KM, ESPALHAMENTO COM PATROL, NIVELAMENTO E COMPACTAÇÃO MECÂNICA (95%) CONTROLADO LABORATORIALMENTE. | C40: M3 | D40: 29.705 | E40: 62.03 | F40: =ROUND(D40*E40,2) -> 1842.6
A41: 4.5 | B41: FUNDAÇÃO | F41: =SUBTOTAL(9,F42:F47) -> 13600.04
A42: 4.5.1 | B42: CONCRETAGEM DE PILARES, FCK = 25 MPA, COM USO DE BALDES EM EDIFICAÇÃO COM SEÇÃO MÉDIA DE PILARES MENOR OU IGUAL A 0,25 M² - LANÇAMENTO, ADENSAMENTO E ACABAMENTO. AF_12/2015 | C42: M3 | D42: 5.9976 | E42: 701.15 | F42: =ROUND(D42*E42,2) -> 4205.22
A43: 4.5.2 | B43: CONCRETAGEM DE BLOCOS DE COROAMENTO E VIGAS BALDRAME, FCK 25 MPA, COM USO DE BOMBA  LANÇAMENTO, ADENSAMENTO E ACABAMENTO | C43: M3 | D43: 5.9976 | E43: 587.19 | F43: 3521.73
A44: 4.5.3 | B44: ARMAÇÃO DE CINTA DE ALVENARIA ESTRUTURAL; DIÂMETRO DE 8,0 MM | C44: KG | D44: 45.5435 | E44: 10.33 | F44: 470.46
A45: 4.5.4 | B45: ARMAÇÃO VERTICAL DE ALVENARIA ESTRUTURAL; DIÂMETRO DE 10,0 MM. AF_01/2015 | C45: KG | D45: 142.2802 | E45: 10.35 | F45: 1472.6
A46: 4.5.5 | B46: (RAMPA E ESCADA) ALVENARIA DE BLOCOS DE CONCRETO ESTRUTURAL 14X19X39 CM, (ESPESSURA 14 CM), FBK = 4,5 MPA, UTILIZANDO PALHETA, PARA EDIFICAÇÃO HABITACIONAL. AF_10/2015 | C46: M2 | D46: 31.11 | E46: 73.39 | F46: 2283.16
A47: 4.5.6 | B47: (DEGRAUS DA ESCADA) ALVENARIA DE BLOCOS DE CONCRETO ESTRUTURAL 14X19X39 CM, (ESPESSURA 14 CM), FBK = 4,5 MPA, UTILIZANDO PALHETA, PARA EDIFICAÇÃO HABITACIONAL. AF_10/2015 | C47: M2 | D47: 22.44 | E47: 73.39 | F47: 1646.87
A48: 4.6 | B48: IMPERMEABILIZAÇÃO | F48: 0
A49: 4.7 | B49: ESTRUTURA DE CONCRETO ARMADO | F49: 0
A50: 4.8 | B50: ALVENARIA E PAINÉIS | F50: =SUBTOTAL(9,F51:F58) -> 121965.22
A51: 4.8.1 | B51: ALVENARIA DE VEDAÇÃO DE BLOCOS CERÂMICOS FURADOS NA HORIZONTAL DE 9X19X19CM (ESPESSURA 9CM) DE PAREDES COM ÁREA LÍQUIDA MAIOR OU IGUAL A 6M² COM VÃOS E ARGAMASSA DE ASSENTAMENTO COM PREPARO EM BETONEIRA. AF_06/2014 | C51: M2 | D51: 846.556 | E51: 83.75 | F51: =ROUND(D51*E51,2) -> 70899.07
A52: 4.8.3 | B52: PAREDE COM PLACAS DE GESSO ACARTONADO (DRYWALL), PARA USO INTERNO, COM UMA FACE SIMPLES E ESTRUTURA METÁLICA COM GUIAS SIMPLES, SEM VÃOS. AF_06/2017_P | C52: M2 | D52: 463.73 | E52: 61.31 | F52: =ROUND(D52*E52,2) -> 28431.29
A53: 4.8.4 | B53: INSTALAÇÃO DE ISOLAMENTO COM LÃ DE ROCHA EM PAREDES DRYWALL. AF_06/2017 | C53: M2 | D53: 463.73 | E53: 27.43 | F53: 12720.11
A54: 4.8.5 | B54: VERGA PRÉ-MOLDADA PARA JANELAS COM ATÉ 1,5 M DE VÃO. AF_03/2016 | C54: M | D54: 6.86 | E54: 32.8 | F54: 225.01
A55: 4.8.6 | B55: CONTRAVERGA PRÉ-MOLDADA PARA VÃOS DE ATÉ 1,5 M DE COMPRIMENTO. AF_03/2016 | C55: M | D55: 6.86 | E55: 32.26 | F55: 221.3
A56: 4.8.7 | B56: VERGA PRÉ-MOLDADA PARA JANELAS COM MAIS DE 1,5 M DE VÃO. AF_03/2016 | C56: M | D56: 109.48 | E56: 41.68 | F56: 4563.13
A57: 4.8.8 | B57: CONTRAVERGA PRÉ-MOLDADA PARA VÃOS DE MAIS DE 1,5 M DE COMPRIMENTO. AF_03/2016 | C57: M | D57: 106.96 | E57: 38.39 | F57: 4106.19
A58: 4.8.9 | B58: VERGA PRÉ-MOLDADA PARA PORTAS COM ATÉ 1,5 M DE VÃO. AF_03/2016 | C58: M | D58: 32.34 | E58: 24.71 | F58: 799.12
A59: 4.9 | B59: ESTRUTURA METÁLICA | F59: =SUBTOTAL(9,F60:F65) -> 332997.21
A60: 4.9.1 | B60: ESTRUTURA METALICA DA COBERTURA CONFORME PROJETO EM AÇO ESTRUTURAL. (MEMORIAL ARQUITETURA- COBERTURA 01, 03 E 05.) | C60: KG | D60: 10809.76 | E60: 15.16 | F60: =ROUND(D60*E60,2) -> 163875.96
A61: 4.9.2 | B61: RETIRADA DE ESTRUTURA PLATIBANDA, SECCIONAMENTO DE TESOURAS METALICAS EXISTENTES E RECOLOCAÇÃO DAS ESTRUTURA DA PLATIBANDA COM APROVEITAMENTO DO MATERIAL EXISTENTE, ELEVAÇÃO FRONTAL.(MEMORIAL ARQUITETURA- COBERTURA 06) | C61: M2 | D61: 108 | E61: 27.97 | F61: 3020.76
A62: 4.9.3 | B62: ESTRUTURA METALICA DE COMPLEMENTO DA PLATIBANDA. FACHADA POSTERIOR. | C62: KG | D62: 1031.62 | E62: 15.16 | F62: 15639.36
A63: 4.9.4 | B63: SUBSTIUIÇÃO DA TRAMA DE MADEIRAS POR TERÇA METALICA .(MEMORIAL ARQUITETURA- COBERTURA 02 E 04.) | C63: KG | D63: 7603.2 | E63: 15.16 | F63: 115264.51
A64: 4.9.5 | B64: PINTURA COM TINTA ALQUÍDICA DE FUNDO (TIPO ZARCÃO) (PRIMEIRA DEMÃO). AF_01/2020 | C64: M2 | D64: 1902.52 | E64: 9.25 | F64: 17598.31
A65: 4.9.6 | B65: PINTURA COM TINTA ALQUÍDICA DE FUNDO (TIPO ZARCÃO) (SEGUNDA DEMÃO). AF_01/2021 | C65: M2 | D65: 1902.52 | E65: 9.25 | F65: 17598.31
A66: 4.10 | B66: COBERTURA | F66: =SUBTOTAL(9,F67:F70) -> 486888.88
A67: 4.10.1 | B67: TELHAMENTO COM TELHA METÁLICA TERMOACÚSTICA E = 30 MM, COM ATÉ 2 ÁGUAS , INCLUSO IÇAMENTO. AF_07/2019, conforme projeto e memorial descritivo REVESTIMENTO SUPERIOR: • AÇO GALVALUME AZM150 PRÉ-PINTADO TRAPEZOIDAL TP30, ESPESSURA TÉCNICA DE 0,43 MM, CROMATIZADA COM PRIMER EPÓXI (4 A 6 MICRONS) E PINTURA DE ACABAMENTO EM POLIÉSTER (18 A 22 MICRONS) COR BRANCO GELO (PADRÃO RAL 9003), CONJUNTO MONOLÍTICO TELHA/EPS/FILME, PRODUZIDO PELO PROCESSO DE COLAGEM CONTÍNUA, CONFORME FABRICANTE NÚCLEO: • NÚCLEO ISOLANTE EM E.P.S. (POLIESTIRENO EXPANDIDO), ESPESSURA 30 MM, LIVRE DE CFC REVESTIMENTO INFERIOR: • FILME DE ALUMÍNIO ESTUCO FOSCO, ESP. TÉC. MÍNIMA 40 U.M. Referência comercial: ISOESTE OU SIMILAR | C67: M2 | D67: 1896.2769 | E67: 207.03 | F67: =ROUND(D67*E67,2) -> 392586.21
A68: 4.10.2 | B68: CUMEEIRA TRAPEZOIDAL TP -30 RAL 9003 PRÉ PINTADA NA COR BRANCA #0,43 DE AÇO GALVANIZADO, ISOESTE OU SIMILAR | C68: M | D68: 99 | E68: 68.68 | F68: =ROUND(D68*E68,2) -> 6799.32
A69: 4.10.3 | B69: PLATIBANDA EM CHAPA DE AÇO COM REAPROVEITANDO DO MATERIAL EXISTENTE | C69: M2 | D69: 266.688 | E69: 264.61 | F69: =ROUND(D69*E69,2) -> 70568.31
A70: 4.10.4 | B70: PLATIBANDA EM CHAPA DE AÇO ESPESSURA 2,00mm, H=1600mm, DOBRA CARTOLA: 30X20X970mm, COM METALON DIM. 50X20X0,97mm NA FACE INFERIOR PARA ARREMATE COM O FORRO, FUNDO ANTICORROSIVO EM PRIMER EPÓXI NAS DUAS FACES (MATERIAL NOVO) | C70: M2 | D70: 64 | E70: 264.61 | F70: =ROUND(D70*E70,2) -> 16935.04
A71: 4.11 | B71: ESQUADRIAS | F71: =SUBTOTAL(9,F72:F85) -> 186933.49
A72: 4.11.1 | B72: PORTÃO REAPROVEITADO DO EXISTENTE, CHUMBADO EM BASE DE ALVENARIA OU CONCRETO. (FIM DA CIRCULAÇÃO ACESSO RESTRITO) | C72: M2 | D72: 4.2 | E72: 43.84 | F72: =ROUND(D72*E72,2) -> 184.13
A73: 4.11.2 | B73: P3 REAPROVEITADA - PORTA DE VIDRO TEMPERADO DE DUAS FOLHAS DE ABRIR 1,80X2,10, COM REAPROVEITAMENTO DO VIDRO, INCLUSO NOVAS MOLAS HIDRÁULICA DE PISO NAS DUAS FOLHAS, NOVOS PUXADORES TUBULAR RETO 40CM ALUMINIO POLIDO, E NOVAS FERRAGENS CROMADAS E FIXAÇÕES EM PAREDES, PISOS E FORROS CONFORME NORMAS DO FABRICANTE, SEGUINDO AS INDICAÇÕES DO PROJETO ARQUITETÔNICO, INCLUSIVE FERRAGENS DE INSTALAÇÃO PARA PERFEITO USO E FUNCIONAMENTO.(INÍCIO DA CIRCULAÇÃO ACESSO RESTRITO) | C73: CONJ | D73: 1 | E73: 5529.38 | F73: 5529.38
A74: 4.11.3 | B74: P2 - PORTA DE ABRIR EM LAMBRIL COM ALISAR E PORTAL EM ALUMÍNIO, COM PINTURA ELETROSTÁTICA MICROTEXTURADA, DIM. 0,70 X 2,10M, COR AZUL NEON NA FOLHA; PORTAL, ALISAR, DOBRADIÇA NA COR CINZA PLATINA, FECHADURA MODELO STAM 803/10 ESPELHO INOX EXT., INCLUSIVE FERRAGENS DE INSTALAÇÃO PARA PERFEITO USO E FUNCIONAMENTO. (3 UNIDADES: DML E VESTIÁRIOS) | C74: M2 | D74: 4.41 | E74: 1280.44 | F74: 5646.74
A75: 4.11.4 | B75: P5 - PORTA DE ABRIR EM LAMBRIL COM ALISAR E PORTAL EM ALUMÍNIO, COM PINTURA ELETROSTÁTICA MICROTEXTURADA, DIM. 0,90 X 2,10M, COR AZUL NEON NA FOLHA; PORTAL, ALISAR, DOBRADIÇA NA COR CINZA PLATINA, FECHADURA MODELO STAM 803/10 ESPELHO INOX EXT., INCLUSIVE FERRAGENS DE INSTALAÇÃO PARA PERFEITO USO E FUNCIONAMENTO. (4 UNIDADES: SANITÁRIOS) | C75: M2 | D75: 7.56 | E75: 1280.44 | F75: 9680.13
A76: 4.11.5 | B76: P6 - PORTA DE ABRIR EM LAMBRIL COM ALISAR E PORTAL EM ALUMÍNIO COM VISOR EM VIDRO TEMPERADO 6MM 0,20X1,00M, COM PINTURA ELETROSTÁTICA MICROTEXTURADA, DIM. 0,90 X 2,10M, COR AZUL NEON NA FOLHA; PORTAL, ALISAR, LATINA, FECHADURA MODELO STAM 803/10 ESPELHO INOX EXT., INCLUSIVE FERRAGENS DE INSTALAÇÃO PARA PERFEITO USO E FUNCIONAMENTO. (11 UNIDADES: SALAS EM GERAL) | C76: UN | D76: 20.79 | E76: 2464.34 | F76: 51233.63
A77: 4.11.6 | B77: PORTA ACUSTICA 0,90X2,10 METÁLICA, COM VISOR, 40DB (SALA DE MÚSICA E BALLET) | C77: UN | D77: 2 | E77: 7836.77 | F77: 15673.54
A78: 4.11.6 | B78: P11 - PORTA DE ABRIR EM VENEZIANA, DIM 0,60X1,90M INSTALADA 0,20M ACIMA DO PISO, ALUMÍNIO FOSCO, FECHADURA, INCLUSIVE FERRAGENS DE INSTALAÇÃO PARA PERFEITO USO E FUNCIONAMENTO. LOCAL DE INSTALAÇÃO: TODOS OS BOXES DOS SANITÁRIOS. | C78: M2 | D78: 9.12 | E78: 925.66 | F78: 8442.02
A79: 4.11.7 | B79: J3 - JANELA DE VIDRO TEMPERADO, 6MM , INCOLOR, DIM. 2,10X1,45X1,18, ESTRUTURA EM ALUMÍNIO ANODIZADO FOSCO, JANELA DIVIDIDO EM 03 PARTES IGUAIS, E EM CADA UMA DESSAS PARTES DEVERÁ CONTER UMA SUBDIVISÃO, SENDO A PARTE SUPERIOR MÓVEL TIPO MÁXIMO-AR E A PARTE INFERIOR FIXA, INCLUSIVE FERRAGENS DE INSTALAÇÃO PARA PERFEITO USO E FUNCIONAMENTO. (22 UNIDADES: SALAS DE AULA EM GERAL) | C79: M2 | D79: 66.99 | E79: 648.33 | F79: 43431.63
A80: 4.11.8 | B80: J6- JANELA DE VIDRO TEMPERADO, 6MM , INCOLOR, DIM. 0,70X0,60X2,30, ESTRUTURA EM ALUMÍNIO ANODIZADO FOSCO, JANELA MÓVEL TIPO MÁXIMO-AR, INCLUSIVE FERRAGENS DE INSTALAÇÃO PARA PERFEITO USO E FUNCIONAMENTO; (5 UNIDADES: SANITARIOS, VESTIARIOS E DML.) | C80: M2 | D80: 2.1 | E80: 648.33 | F80: 1361.49
A81: 4.11.9 | B81: J7- JANELA DE VIDRO TEMPERADO, 6MM, INCOLOR, DIM:1,40X0,60X2,30, ESTRUTURA EM ALUMINIO ANODIZADO FOSCO, JANELA DIVIDIDA EM DUAS PARTES IGUAIS, MÓVEL TIPO MÁXIMO-AR, INCLUSIVE FERRAGENS DE INSTALAÇÃO PARA PERFEITO USO E FUNCIONAMENTO. (1 UNIDADE: COPA) | C81: M2 | D81: 0.84 | E81: 648.33 | F81: 544.6
A82: 4.11.10 | B82: J8- JANELA DE VIDRO TEMPERADO, 6MM , INCOLOR, DIM. 2,10X0,60X2,30, ESTRUTURA EM ALUMÍNIO ANODIZADO FOSCO, JANELA DIVIDIDO EM 03 PARTES IGUAIS, MÓVEL TIPO MÁXIMO-AR, INCLUSIVE FERRAGENS DE INSTALAÇÃO PARA PERFEITO USO E FUNCIONAMENTO.(12 UNIDADES: SALA DE ARTES, SANITARIOS, MÚSICA E BALLET) | C82: M2 | D82: 15.12 | E82: 648.33 | F82: 9802.75
A83: 4.11.11 | B83: V4 - VISOR EM VIDRO TEMPERADO ESPESSURA 6MM, FUMÊ, DIM. 2,50X1,00X1,10, REQUADRO DE ALUMÍNIO NA COR NATURAL, INCLUSIVE FERRAGENS DE INSTALAÇÃO PARA PERFEITO USO E FUNCIONAMENTO. (2 UNIDADES: ROBÓTICA) | C83: M2 | D83: 5 | E83: 338.81 | F83: 1694.05
A84: 4.11.12 | B84: ESPELHO CRISTAL E=4MM, FORNECIMENTO E INSTALAÇÃO (SANITÁRIOS E SALA DE BALLET) | C84: M2 | D84: 33.55 | E84: 471.22 | F84: 15809.43
A85: 4.11.13 | B85: LOUSA DE VIDRO INCOLOR 6MM TEMPERADO COM SEIS FUROS ADESIVADOS CPOM PELICULA BRANCA E PARAFUSADO COM BOTÃO CABEÇA DE LATÃO CROMADO MEDINDO 3,50 X 1,20M, COM PORTA CANETAS E APAGADORES MEDINDO ,30X0,10M COM 02 BICOS TUCANO CADA PORTA APAGADOR. (SALAS DE AULAS EM GERAL) | C85: UN | D85: 11 | E85: 1627.27 | F85: 17899.97
A86: 4.12 | B86: PISOS | F86: =SUBTOTAL(9,F87:F93) -> 325370.06
A87: 4.12.1 | B87: CONTRAPISO DE CONCRETO 20 MPA PREPARO MECANICO, ESPESSURA 7CM. | C87: M2 | D87: 1382.584486 | E87: 70.07 | F87: =ROUND(D87*E87,2) -> 96877.69
A88: 4.12.2 | B88: REGULARIZAÇÃO EM ARGAMASSA TRAÇO 1:4 (CIMENTO E AREIA), PREPARO MECÂNICOCOM BETONEIRA 400 L, APLICADO EM ÁREAS SECAS SOBRE LAJE, ADERIDO, ESPESSURA 3CM | C88: M2 | D88: 1382.584486 | E88: 37.79 | F88: =ROUND(D88*E88,2) -> 52247.87
A89: 4.12.3 | B89: PISO PORCELANATO POLIDO ADHARA PO, 80X80CM, ELIANE OU SIMILR TÉCNICO. | C89: M2 | D89: 758.757925 | E89: 107.52 | F89: =ROUND(D89*E89,2) -> 81581.65
A90: 4.12.4 | B90: PISO PORCELLANATO ESMALTADO ANTIDERRAPANTE - MARMORE BIANCO NAT RET 60X60CM COR BEGE COD. 23427E PORTOBELLO OU SIMILAR | C90: M2 | D90: 298.0365356 | E90: 75.8 | F90: =ROUND(D90*E90,2) -> 22591.17
A91: 4.12.5 | B91: PISO EM GRANITO CINZA ANDORINHA COM FRISO ANTIDERRAPANTE (RAMPAS, PISOS E ESPELHOS DA ESCADA) | C91: M2 | D91: 54.59 | E91: 447.96 | F91: =ROUND(D91*E91,2) -> 24454.14
A92: 4.12.6 | B92: PISO FLUTUANTE PARA AULAS DE DENÇA EM COMPENSADO NAVAL 18MM REVESTIDO DE LINÓLEO PARA DANÇA (SALA DE DANÇA) | C92: M² | D92: 132.7645 | E92: 166.75 | F92: =ROUND(D92*E92,2) -> 22138.48
A93: 4.12.7 | B93: CARPETE DE NYLON EM MANTA PARA TRAFEGO COMERCIAL PESADO, E = 9 A 10 MM (SALA DE MÚSICA) | C93: M² | D93: 138.435525 | E93: 184.05 | F93: 25479.06
A94: 4.13 | B94: REVESTIMENTO | F94: =SUBTOTAL(9,F95:F100) -> 179274.18
A95: 4.13.1 | B95: CHAPISCO APLICADO EM ALVENARIAS E ESTRUTURAS DE CONCRETO INTERNAS, COM ROLO PARA TEXTURA ACRÍLICA. ARGAMASSA TRAÇO 1:4 E EMULSÃO POLIMÉRICA (ADESIVO) COM PREPARO EM BETONEIRA 400L. | C95: M2 | D95: 1693.112 | E95: 5.09 | F95: =ROUND(D95*E95,2) -> 8617.94
A96: 4.13.2 | B96: EMBOÇO/MASSA ÚNICA, APLICADO MANUALMENTE, TRAÇO 1:2:8, EM BETONEIRA DE 400L, PAREDES INTERNAS, COM EXECUÇÃO DE TALISCAS, EDIFICAÇÃO HABITACIONAL UNIFAMILIAR (CASAS) E EDIFICAÇÃO PÚBLICA PADRÃO. | C96: M2 | D96: 1693.112 | E96: 31.51 | F96: 53349.96
A97: 4.13.3 | B97: FORNECIMENTO E INSTALAÇÃO DE REVESTIMENTO CERAMICO PORTOBELLO GLACIE WHITE 30X60CM OU SIMILAR, INCLUSO REJUNTE E ARGAMASSA INDUSTRIALIZADA | C97: M2 | D97: 215.4036 | E97: 156.44 | F97: 33697.74
A98: 4.13.4 | B98: FORNECIMENTO E INSTALAÇÃO DE REVESTIMENTO CERÂMICO PARA PAREDES EM PASTILHAS JATOBÁ DE PORCELANA 5 X 5 CM, INCLUSO REJUNTE E ARGAMASSA INDUSTRIALIZADA | C98: M2 | D98: 17.7306 | E98: 246.69 | F98: 4373.96
A99: 4.13.5 | B99: REVESTIMENTO CERÂMICO PORTOBELLO 7X26CM, BASALTO OF WHITE, REFERNÊNCIA 24995E, INCLUSO REJUNTE - FORNECIMENTO E INSTALAÇÃO. (CIRCULAÇÃO EXTERNA INCLUINDO PILARES) | C99: M2 | D99: 135.1454 | E99: 182.46 | F99: 24658.63
A100: 4.13.6 | B100: BARRADO EM PISO PORCELANATO POLIDO ADHARA PO, 80X80CM, ELIANE OU SIMILR TÉCNICO. (SALAS EM GERAL) | C100: M2 | D100: 507.5888 | E100: 107.52 | F100: 54575.95
A101: 4.14 | B101: GRANITO | F101: =SUBTOTAL(9,F102:F105) -> 42819.18
A102: 4.14.1 | B102: BANCADA DE GRANITO CINZA ANDORINHA, SOBRE MÃOS-FRANCESAS METÁLICAS, ESP=2cm COM FRONTÃO 20cm, SAIA COM ACAB. DE MEIA ESQUADRIA 30CM E REFORÇO INFERIOR DE BORDA E CORTE PARA INST. DE CUBAS DE LOUÇA OVAL DE EMBUTIR LOCAL -BANCADAS DOS SANITÁRIOS E LAVATÓRIOS- FRONTÃO 20CM E SAIA DE 30CM - COPA- FRONTÃO 20CM E SAIA DE 10CM - SALA DE ARTES FRONTÃO 20CM E SAIA DE 10CM | C102: M2 | D102: 10.24 | E102: 884.39 | F102: =ROUND(D102*E102,2) -> 9056.15
A103: 4.14.2 | B103: DIVISORIAS SANITARIAS DE BOXES E MICTÓRIOS DE GRANITO CINZA ANDORINHA E=3,00 CM ASSENTADA C/ ARGAMASSA, NO TRACO 1:3, INCLUSIVE MASSA PLÁSTICA E FERRAGENS. Ver detalhe em projeto. | C103: M2 | D103: 28.156 | E103: 903.77 | F103: =ROUND(D103*E103,2) -> 25446.55
A104: 4.14.3 | B104: SOLEIRA EM GRANITO, LARGURA 15 CM, ESPESSURA 2,0 CM - FORNECIMENTO E INSTALAÇÃO | C104: M | D104: 18.9 | E104: 114.65 | F104: =ROUND(D104*E104,2) -> 2166.89
A105: 4.14.4 | B105: FORNECIMENTO E INSTALAÇÃO DE PEITORIL / PINGADEIRA EM GRANITO ANDORINHA 16,5 CM, ESPESSURA 2,0 CM, ASSENTADO COM ARGAMASSA TRACO 1:3 (CIMENTO E AREIA MEDIA), PREPARO MANUAL DA ARGAMASSA | C105: M2 | D105: 13.728 | E105: 447.96 | F105: =ROUND(D105*E105,2) -> 6149.59
A106: 4.15 | B106: FORROS | F106: =SUBTOTAL(9,F107:F111) -> 190854.94
A107: 4.15.1 | B107: FORRO ACÚSTICO EM FIBRA MINERAL: REF: OWA DO BRASIL, MODELO COSMOS TEGULAR, MODULAÇÃO 625X625MM COM ABSORÇÃO ACÚSTICA NRC=0,65 E RESISTÊNCIA A UMIDADE RH 95% (COMPOSIÇÃO: FIBRA MINERAL BIOSOLÚVEL COMPOSTA POR MINERAIS INERTES, ARGILA E AMIDO NATURAL - MAT. INCOMBUSTÍVEL). | C107: M2 | D107: 923.401675 | E107: 142.13 | F107: =ROUND(D107*E107,2) -> 131243.08
A108: 4.15.2 | B108: FORRO DE PVC: FORRO DE PVC MODULAR BRANCO ESPSESSURA 10MM, MODULAÇÃO 625X625MM, INSTALADOS EM PERFIL "T", SUPENSO POR PENDURAIS EM ARRAME GALVANIZADO A CADA 1250X1250MM | C108: M2 | D108: 24.90125 | E108: 91.95 | F108: =ROUND(D108*E108,2) -> 2289.67
A109: 4.15.3 | B109: FORRO EM DRYWALL, PARA AMBIENTES COMERCIAIS, INCLUSIVE ESTRUTURA DE FIXAÇÃO. AF_05/2017_P | C109: M2 | D109: 451.6785356 | E109: 71.07 | F109: =ROUND(D109*E109,2) -> 32100.79
A110: 4.15.4 | B110: SANCA DE GESSO DRYWALL DECORATIVA PARA ILUMINAÇÃO (SALA DE MÚSICA, BALLET E LIBRAS) | C110: M | D110: 160.9 | E110: 29.19 | F110: =ROUND(D110*E110,2) -> 4696.67
A111: 4.15.5 | B111: BEIRAIS-FORRO DE PVC, LISO, REGUA DE 20CM, INCLUSIVE ESTRUTURA DE FIXAÇÃO. AF_05/2017_P | C111: M2 | D111: 347.7 | E111: 59.03 | F111: =ROUND(D111*E111,2) -> 20524.73
A112: 4.16 | B112: PINTURA | F112: =SUBTOTAL(9,F113:F120) -> 76689.83
A113: 4.16.1 | B113: APLICAÇÃO DE FUNDO SELADOR LÁTEX PVA EM PAREDES DE ALVENARIA | C113: M2 | D113: 1613.4068 | E113: 2.31 | F113: =ROUND(D113*E113,2) -> 3726.97
A114: 4.16.2 | B114: EMASSAMENTO COM MASSA LATEX PVA PARA AMBIENTES INTERNOS | C114: M2 | D114: 914.0818 | E114: 14.74 | F114: =ROUND(D114*E114,2) -> 13473.57
A115: 4.16.3 | B115: PINTURA C/ APLICAÇÃO DE TINTA LATÉX ACRÍLICO, PAREDES INTERNAS, 2 DEMÃOS (REF. CORES A SEREM DEFINIDAS PELA FISCALIZAÇÃO SESI). | C115: M2 | D115: 914.0818 | E115: 14.41 | F115: =ROUND(D115*E115,2) -> 13171.92
A116: 4.16.4 | B116: TEXTURA ACRÍLICA, APLICAÇÃO MANUAL EM PAREDE, UMA DEMÃO. (PAREDES E PLATIBANDAS EXTERNAS) | C116: M2 | D116: 987.135 | E116: 14.96 | F116: =ROUND(D116*E116,2) -> 14767.54
A117: 4.16.5 | B117: APLICAÇÃO MANUAL DE PINTURA COM TINTA LÁTEX ACRÍLICA EM PAREDES, DUAS DEMÃOS. (PAREDES E PLATIBANDAS EXTERNAS) | C117: M2 | D117: 987.135 | E117: 14.41 | F117: =ROUND(D117*E117,2) -> 14224.62
A118: 4.16.6 | B118: EMASSAMENTO COM MASSA LATEX PVA PARA FORRO DE GESSO | C118: M2 | D118: 451.6785356 | E118: 19.54 | F118: =ROUND(D118*E118,2) -> 8825.8
A119: 4.16.7 | B119: PINTURA C/ APLICAÇÃO DE TINTA LATÉX ACRÍLICO PARA FORRO DE GESSO , 2 DEMÃOS (REF. CORES A SEREM DEFINIDAS PELA FISCALIZAÇÃO SENAI). | C119: M2 | D119: 451.6785356 | E119: 16.26 | F119: 7344.29
A120: 4.16.8 | B120: PINTURA COM TINTA ALQUÍDICA DE ACABAMENTO (ESMALTE SINTÉTICO ACETINADO CINZ PLATINA) APLICADA A ROLO OU PINCEL SOBRE PERFIL METÁLICO. (CORRIMÃOS E GUARDA-CORPO) | C120: M2 | D120: 123.94 | E120: 9.32 | F120: 1155.12
A121: 4.17 | B121: CALÇAMENTO, PÁTIO E PASSARELAS | F121: 0
A122: 4.18 | B122: SERVIÇOS COMPLEMENTARES | F122: =SUBTOTAL(9,F123:F125) -> 24220.93
A123: 4.18.1 | B123: FORNECIMENTO E INSTALAÇÃO GUARDA CORPO E CORRIMÃO EM TUBO FERRO GALVANIZADO, ALT=1,10M, COM BARRAS VERTICAIS A CADA 11CM (3/4") E BARRAS HORIZONTAIS (SUPERIOR, INTERMEDIÁRIAS (DUAS) E INFERIOR) DE 1.1/2", INCLUSIVE CURVA DE AÇO | C123: M | D123: 55.06 | E123: 372.7 | F123: =ROUND(D123*E123,2) -> 20520.86
A124: 4.18.2 | B124: FORNECIMENTO E INSTALAÇÃO CORRIMÃO DUPLO, DIÂMETRO EXTERNO = 1 1/2", EM AÇO GALVANIZADO. | C124: M | D124: 7.2 | E124: 131.91 | F124: =ROUND(D124*E124,2) -> 949.75
A125: 4.18.3 | B125: FORNECIMENTO E INSTALAÇÃO CORRIMÃO DUPLO, H=0,80 E H=0,60 DIÂMETRO EXTERNO = 1 1/2", EM AÇO GALVANIZADO. | C125: M | D125: 20.85 | E125: 131.91 | F125: =ROUND(D125*E125,2) -> 2750.32
A126: 4.19 | B126: INSTALAÇÕES SPDA | F126: =SUBTOTAL(9,F127:F145) -> 52223.1
A127: 4.19.1 | B127: HASTE DE ATERRAMENTO 5/8 PARA SPDA - FORNECIMENTO E INSTALAÇÃO. AF_12/2017 | C127: UN | D127: 73 | E127: 56.5 | F127: =ROUND(D127*E127,2) -> 4124.5
A128: 4.19.2 | B128: CAIXA DE INSPEÇÃO PARA ATERRAMENTO, CIRCULAR, EM POLIETILENO, DIÂMETRO INTERNO = 0,3 M. AF_05/2018 | C128: UN | D128: 19 | E128: 25.23 | F128: 479.37
A129: 4.19.3 | B129: ESCAVAÇÃO MANUAL DE VALA COM PROFUNDIDADE MENOR OU IGUAL A 1,30 M. AF_03/2016 | C129: M3 | D129: 35.4 | E129: 76.99 | F129: 2725.45
A130: 4.19.4 | B130: REATERRO MANUAL DE VALAS COM COMPACTAÇÃO MECANIZADA. AF_04/2016 | C130: M3 | D130: 35.4 | E130: 26 | F130: 920.4
A131: 4.19.5 | B131: FORNECIMENTO E INSTALAÇÃO DE CONECTOR DE MEDIÇÃO C/ 2 PARAFUSOS | C131: UN | D131: 19 | E131: 29.36 | F131: 557.84
A132: 4.19.6 | B132: FORNECIMENTO E INSTALAÇÃO DE SOLDA EXOTÉRMICA CABO-HASTE COM CARTUCHO Nº 90 E MOLDE CABO 35mm²- HASTE 5/8" | C132: UN | D132: 19 | E132: 19.96 | F132: 379.24
A133: 4.19.7 | B133: FORNECIMENTO E INSTALAÇÃO DE SOLDA EXOTÉRMICA CABO-HASTE COM CARTUCHO Nº115 E MOLDE CABO 50mm²- HASTE 5/8" | C133: UN | D133: 73 | E133: 25.08 | F133: 1830.84
A134: 4.19.8 | B134: FORNECIMENTO E INSTALAÇÃO DE SOLDA EXOTÉRMICA CABO-CABO COM CARTUCHO Nº 32 E MOLDE TIPO "T" CABO 35mm²- CABO 35mm² | C134: UN | D134: 8 | E134: 12.71 | F134: 101.68
A135: 4.19.9 | B135: FORNECIMENTO E INSTALAÇÃO DE BARRA CHATA DE ALUMÍNIO 3/4" X 1/4" | C135: M | D135: 122 | E135: 91.33 | F135: 11142.26
A136: 4.19.10 | B136: FORNECIMENTO E INSTALAÇÃO DE SOLDA EXOTÉRMICA CABO-CABO, CABO DE 35mm² TIPO "X"(COM MOLDE) | C136: M | D136: 13 | E136: 19.93 | F136: 259.09
A137: 4.19.11 | B137: FORNECIMENTO E INSTALAÇÃO DE REBITE POP EM ALUMÍNIO 4 X 16MM | C137: UN | D137: 428 | E137: 1.38 | F137: 590.64
A138: 4.19.12 | B138: FORNECIMENTO E INSTALAÇÃO DE PARAFUSO ZINCADO, SEXTAVADO, COM ROSCA INTEIRA, DIAMETRO 1/4", COMPRIMENTO 1/2" | C138: UN | D138: 73 | E138: 7.72 | F138: 563.56
A139: 4.19.13 | B139: FORNECIMENTO E INSTALAÇÃO DE TERMINAL AEREO EM ACO GALVANIZADO DN 5/16", COMPRIMENTO DE 350MM, COM BASE DE FIXACAO HORIZONTAL | C139: UN | D139: 83 | E139: 21.69 | F139: 1800.27
A140: 4.19.14 | B140: FORNECIMENTO E INSTALAÇÃO DE CONECTOR METALICO TIPO PARAFUSO FENDIDO (SPLIT BOLT), PARA CABOS ATE 35 MM2 | C140: UN | D140: 17 | E140: 17.57 | F140: 298.69
A141: 4.19.15 | B141: FORNECIMENTO E INSTALAÇÃO DE PRESILHA DE LATÃO 35MM² | C141: UN | D141: 262 | E141: 4.34 | F141: 1137.08
A142: 4.19.16 | B142: TERMINAL OU CONECTOR DE PRESSAO - PARA CABO 35MM2 - FORNECIMENTO E INSTALACAO | C142: UN | D142: 19 | E142: 19.27 | F142: 366.13
A143: 4.19.17 | B143: TERMINAL OU CONECTOR DE PRESSAO - PARA CABO 50MM2 - FORNECIMENTO E INSTALACAO | C143: UN | D143: 21 | E143: 25.91 | F143: 544.11
A144: 4.19.18 | B144: CABO DE COBRE NU 35MM2 - FORNECIMENTO E INSTALACAO | C144: M | D144: 371 | E144: 34.61 | F144: 12840.31
A145: 4.19.19 | B145: CABO DE COBRE NU 50MM2 - FORNECIMENTO E INSTALACAO | C145: M | D145: 236 | E145: 48.99 | F145: 11561.64
A146: 4.20 | B146: INSTALAÇÕES DE COMBATE A INCÊNDIO | F146: 0
A147: 4.21 | B147: INSTALAÇÕES ELÉTRICAS | F147: =SUBTOTAL(9,F148:F197) -> 144500.67
A148: 4.21.1 | B148: ACESSÓRIOS PARA ELETRODUTOS E USO GERAL | F148: =SUBTOTAL(9,F149:F151) -> 3297.1
A149: 4.21.1.1 | B149: FORNECIMENTO E INSTALAÇÃO DE CAIXA OCTOGONAL 3" X 3", PVC, INSTALADA EM TETO - AF_12/2015 | C149: PÇ | D149: 195 | E149: 9.96 | F149: =ROUND(D149*E149,2) -> 1942.2
A150: 4.21.1.2 | B150: FORNECIMENTO E INSTALAÇÃO DE CAIXA RETANGULAR 4" X 2" MÉDIA (1,30 M DO PISO), PVC, INSTALADA EM PAREDE - AF_12/2015 | C150: PÇ | D150: 95 | E150: 13.48 | F150: 1280.6
A151: 4.21.1.3 | B151: FORNECIMENTO E INSTALAÇÃO DE ARAME AÇO GALVANIZADO 18 BWG, 1,24MM (0,009 KG/M) | C151: M | D151: 28.8 | E151: 2.58 | F151: 74.3
A152: 4.21.2 | B152: CABO UNIPOLAR | F152: =SUBTOTAL(9,F153:F155) -> 43468
A153: 4.21.2.1 | B153: FORNECIMENTO E INSTALAÇÃO DE CABO DE COBRE FLEXÍVEL ISOLADO, 2,5 MM², ANTI-CHAMA 450/750 V, PARA CIRCUITOS TERMINAIS - AF_12/2015 | C153: M | D153: 5600 | E153: 3.54 | F153: =ROUND(D153*E153,2) -> 19824
A154: 4.21.2.2 | B154: FORNECIMENTO E INSTALAÇÃO DE CABO DE COBRE FLEXÍVEL ISOLADO, 4,0 MM², ANTI-CHAMA 450/750 V, PARA CIRCUITOS TERMINAIS - AF_12/2015 | C154: M | D154: 3600 | E154: 5.7 | F154: 20520
A155: 4.21.2.3 | B155: FORNECIMENTO E INSTALAÇÃO DE CABO DE COBRE FLEXÍVEL ISOLADO, 6,0 MM², ANTI-CHAMA 450/750 V, PARA CIRCUITOS TERMINAIS - AF_12/2015 | C155: M | D155: 400 | E155: 7.81 | F155: 3124
A156: 4.21.3 | B156: DISPOSITIVO ELÉTRICO - EMBUTIDO | F156: =SUBTOTAL(9,F157:F164) -> 3707.33
A157: 4.21.3.1 | B157: INTERRUPTOR SIMPLES (1 MÓDULO), 10A/250V, INCLUINDO SUPORTE E PLACA - FORNECIMENTO E INSTALAÇÃO. AF_12/2015 | C157: PÇ | D157: 2 | E157: 21.35 | F157: =ROUND(D157*E157,2) -> 42.7
A158: 4.21.3.2 | B158: INTERRUPTOR SIMPLES (2 MÓDULOS), 10A/250V, INCLUINDO SUPORTE E PLACA - FORNECIMENTO E INSTALAÇÃO. AF_12/2015 | C158: PÇ | D158: 13 | E158: 33.71 | F158: 438.23
A159: 4.21.3.3 | B159: INTERRUPTOR SIMPLES (3 MÓDULOS), 10A/250V, INCLUINDO SUPORTE E PLACA - FORNECIMENTO E INSTALAÇÃO. AF_12/2015 | C159: PÇ | D159: 2 | E159: 46.06 | F159: 92.12
A160: 4.21.3.4 | B160: INTERRUPTOR SIMPLES (1 MÓDULO) COM 1 TOMADA DE EMBUTIR 2P+T 10 A, INCLUINDO SUPORTE E PLACA - FORNECIMENTO E INSTALAÇÃO. AF_12/2015 | C160: PÇ | D160: 5 | E160: 38.05 | F160: 190.25
A161: 4.21.3.5 | B161: INTERRUPTOR SIMPLES (1 MÓDULO) COM 2 TOMADAS DE EMBUTIR 2P+T 10 A, INCLUINDO SUPORTE E PLACA - FORNECIMENTO E INSTALAÇÃO. AF_12/2015 | C161: PÇ | D161: 1 | E161: 54.8 | F161: 54.8
A162: 4.21.3.6 | B162: TOMADA BAIXA DE EMBUTIR (2 MÓDULOS), 2P+T 10 A, INCLUINDO SUPORTE E PLACA - FORNECIMENTO E INSTALAÇÃO. AF_12/2015 | C162: PÇ | D162: 67 | E162: 35.95 | F162: 2408.65
A163: 4.21.3.7 | B163: TOMADA ALTA DE EMBUTIR (1 MÓDULO), 2P+T 10 A, INCLUINDO SUPORTE E PLACA - FORNECIMENTO E INSTALAÇÃO. AF_12/2015 | C163: PÇ | D163: 12 | E163: 34.1 | F163: 409.2
A164: 4.21.3.8 | B164: TOMADA ALTA DE EMBUTIR (1 MÓDULO), 2P+T 20 A, INCLUINDO SUPORTE E PLACA - FORNECIMENTO E INSTALAÇÃO. AF_12/2015 | C164: PÇ | D164: 2 | E164: 35.69 | F164: 71.38
A165: 4.21.4 | B165: DISPOSITIVO DE PROTEÇÃO | F165: =SUBTOTAL(9,F166:F175) -> 6242.29
A166: 4.21.4.1 | B166: FORNECIMENTO E INSTALAÇÃO DE DISJUNTOR TIPO DIN/IEC, TRIPOLAR 80 A | C166: UND | D166: 2 | E166: 159.43 | F166: =ROUND(D166*E166,2) -> 318.86
A167: 4.21.4.2 | B167: DISJUNTOR TERMOMAGNETICO TRIPOLAR EM CAIXA MOLDADA 175 A 225A 240V, FORNECIMENTO E INSTALACAO | C167: UN | D167: 1 | E167: 580.69 | F167: 580.69
A168: 4.21.4.3 | B168: DISJUNTOR TERMOMAGNETICO TRIPOLAR EM CAIXA MOLDADA 175 A 225A 240V, FORNECIMENTO E INSTALACAO | C168: UN | D168: 1 | E168: 580.69 | F168: 580.69
A169: 4.21.4.4 | B169: FORNECIMENTO E INSTALAÇÃO DE DISJUNTOR BIPOLAR TIPO DIN, CORRENTE NOMINAL DE 10A - AF_04/2016 | C169: PÇ | D169: 11 | E169: 57.69 | F169: 634.59
A170: 4.21.4.5 | B170: FORNECIMENTO E INSTALAÇÃO DE DISJUNTOR BIPOLAR TIPO DIN, CORRENTE NOMINAL DE 16A - AF_04/2016 | C170: PÇ | D170: 1 | E170: 58.8 | F170: 58.8
A171: 4.21.4.6 | B171: DISJUNTOR BIPOLAR TIPO DIN, CORRENTE NOMINAL DE 20A - FORNECIMENTO E INSTALAÇÃO. AF_04/2016 | C171: UN | D171: 4 | E171: 61 | F171: 244
A172: 4.21.4.7 | B172: FORNECIMENTO E INSTALAÇÃO DE DISJUNTOR BIPOLAR TIPO DIN, CORRENTE NOMINAL DE 25A - AF_04/2016 | C172: PÇ | D172: 34 | E172: 61 | F172: 2074
A173: 4.21.4.8 | B173: FORNECIMENTO E INSTALAÇÃO DE DISJUNTOR BIPOLAR TIPO DIN, CORRENTE NOMINAL DE 32A - AF_04/2016 | C173: PÇ | D173: 2 | E173: 63.63 | F173: 127.26
A174: 4.21.4.9 | B174: FORNECIMENTO E INSTALAÇÃO DE DISJUNTOR MONOPOLAR TIPO DIN, CORRENTE NOMINAL DE 16A - AF_04/2016 | C174: PÇ | D174: 25 | E174: 12.2 | F174: 305
A175: 4.21.4.10 | B175: FORNECIMENTO E INSTALAÇÃO DE DISPOSITIVO DPS CLASSE II, 1 POLO, TENSAO MAXIMA DE 175 V, CORRENTE MAXIMA DE 20 KA (TIPO AC) | C175: UND | D175: 16 | E175: 82.4 | F175: 1318.4
A176: 4.21.5 | B176: ELETROCALHA FURADA TIPO U PRÉ-GALVANIZADA QUENTE | F176: =SUBTOTAL(9,F177:F188) -> 11574.84
A177: 4.21.5.1 | B177: FORNECIMENTO E INSTALAÇÃO DE CURVA HORIZONTAL 90º - 100X100MM, COM TAMPA | C177: UND | D177: 1 | E177: 30.24 | F177: =ROUND(D177*E177,2) -> 30.24
A178: 4.21.5.2 | B178: FORNECIMENTO E INSTALAÇÃO DE CURVA DE INVERSÃO - 100X100MM CHAPA 20 | C178: UND | D178: 6 | E178: 47.75 | F178: 286.5
A179: 4.21.5.3 | B179: FORNECIMENTO E INSTALAÇÃO DE ELETROCALHA PERFURADA TIPO U - 100X100MM, COM TAMPA | C179: M | D179: 126 | E179: 36.39 | F179: 4585.14
A180: 4.21.5.4 | B180: FORNECIMENTO E INSTALAÇÃO DE FLANGE - 100X100MM CHAPA 20 | C180: UND | D180: 6 | E180: 11.16 | F180: 66.96
A181: 4.21.5.5 | B181: FORNECIMENTO E INSTALAÇÃO DE SUPORTE VERTICAL - 100X100MM | C181: UND | D181: 84 | E181: 13.29 | F181: 1116.36
A182: 4.21.5.6 | B182: FORNECIMENTO E INSTALAÇÃO DE TÊ HORIZONTAL 90º - 100X100MM CHAPA 20, COM TAMPA | C182: UND | D182: 6 | E182: 48.85 | F182: 293.1
A183: 4.21.5.7 | B183: FORNECIMENTO E INSTALAÇÃO DE EMENDA PARA ELETROCALHA - 100MM | C183: UND | D183: 104 | E183: 13.02 | F183: 1354.08
A184: 4.21.5.8 | B184: FORNECIMENTO E INSTALAÇÃO DE ARRUELA LISA GALVAN. 1/4" | C184: UND | D184: 1400 | E184: 0.49 | F184: 686
A185: 4.21.5.9 | B185: FORNECIMENTO E INSTALAÇÃO DE PARAFUSO GALVAN. CABEÇA LENTILHA 1/4"X5/8" MÁQUINA ROSCA TOTAL | C185: UND | D185: 1200 | E185: 0.94 | F185: 1128
A186: 4.21.5.10 | B186: FORNECIMENTO E INSTALAÇÃO DE PORCA ZINCADA, SEXTAVADA, DIAMETRO 1/4" | C186: UND | D186: 1400 | E186: 0.44 | F186: 616
A187: 4.21.5.11 | B187: FORNECIMENTO E INSTALAÇÃO DE CHUMBADOR PARABOLT AÇO 1/4" X 3" | C187: UND | D187: 84 | E187: 8.61 | F187: 723.24
A188: 4.21.5.12 | B188: FORNECIMENTO E INSTALAÇÃO DE VERGALHAO ZINCADO ROSCA TOTAL, 1/4 " (6,3 MM) | C188: UND | D188: 42 | E188: 16.41 | F188: 689.22
A189: 4.21.6 | B189: ELETRODUTO PVC FLEXÍVEL | F189: =SUBTOTAL(9,F190:F191) -> 8436
A190: 4.21.6.1 | B190: FORNECIMENTO E INSTALAÇÃO DE ELETRODUTO FLEXÍVEL CORRUGADO, PVC, DN 32 MM (1"), PARA CIRCUITOS TERMINAIS, INSTALADO EM PAREDE - AF_12/2015 | C190: M | D190: 200 | E190: 10.06 | F190: =ROUND(D190*E190,2) -> 2012
A191: 4.21.6.2 | B191: FORNECIMENTO E INSTALAÇÃO DE ELETRODUTO FLEXÍVEL CORRUGADO, PVC, DN 25 MM (3/4"), PARA CIRCUITOS TERMINAIS, INSTALADO EM PAREDE - FORNECIMENTO E INSTALAÇÃO. AF_12/2015 | C191: M | D191: 800 | E191: 8.03 | F191: 6424
A192: 4.21.7 | B192: LUMINÁRIA E ACESSÓRIOS | F192: =SUBTOTAL(9,F193:F194) -> 62033.93
A193: 4.21.7.1 | B193: FORNECIMENTO E INSTALAÇÃO DE LUMINARIA DE EMBUTIR DE ALUMÍNIO E POLICARBONATO 62,5x62,5 CM, BIVOLT, TEMPERATURA DE COR DE 6000K, FLUXO LUMINOSO DE 4500LM, POTENCIA 50W | C193: UND | D193: 154 | E193: 381.33 | F193: =ROUND(D193*E193,2) -> 58724.82
A194: 4.21.7.2 | B194: FORNECIMENTO E INSTALAÇÃO DE LUMINARIA DE EMBUTIR DE ALUMÍNIO E POLICARBONATO 22,5x22,5 CM, BIVOLT, TEMPERATURA DE COR DE 6500K, FLUXO LUMINOSO DE 850LM, POTENCIA 18W | C194: UND | D194: 41 | E194: 80.71 | F194: 3309.11
A195: 4.21.8 | B195: QUADRO DISTRIBUIÇÃO - EMBUTIR | F195: =SUBTOTAL(9,F196:F197) -> 5741.18
A196: 4.21.8.1 | B196: FORNECIMENTO E INSTALAÇÃO DE QUADRO DE DISTRIBUIÇÃO DE EMBUTIR, EM CHAPA PINTADA, COM CAPACIDADE PARA 56 DISJUNTORES UNIPOLARES TIPO DIN, COMPLETO, INCLUSIVE BARRAMENTO TRIFÁSICO 150A | C196: UND | D196: 2 | E196: 1064.46 | F196: =ROUND(D196*E196,2) -> 2128.92
A197: 4.21.8.2 | B197: FORNECIMENTO E INSTALAÇÃO DE QUADRO DE DISTRIBUIÇÃO DE EMBUTIR, EM CHAPA PINTADA, COM CAPACIDADE PARA 70 DISJUNTORES UNIPOLARES TIPO DIN, COMPLETO, INCLUSIVE BARRAMENTO TRIFÁSICO 225A | C197: UND | D197: 2 | E197: 1806.13 | F197: =ROUND(D197*E197,2) -> 3612.26
A198: 4.22 | B198: INSTALAÇÕES DE LÓGICA E TELEFONICA | F198: 0
A199: 4.23 | B199: CLIMATIZAÇÃO | F199: 0
A200: 4.24 | B200: INFRAESTRUTURA PARA INSTALAÇÃO DE ÁUDIO E VÍDEO | F200: =SUBTOTAL(9,F201:F234) -> 120357.53
A201: 4.24.1 | B201: TOMADA ALTA DE EMBUTIR (1 MÓDULO), 2P+T 10 A, INCLUINDO SUPORTE E PLACA - FORNECIMENTO E INSTALAÇÃO. AF_12/2015 | C201: UN | D201: 13 | E201: 34.1 | F201: =ROUND(D201*E201,2) -> 443.3
A202: 4.24.2 | B202: DISJUNTOR MONOPOLAR TIPO DIN, CORRENTE NOMINAL DE 20A - FORNECIMENTO E INSTALAÇÃO. AF_04/2016 | C202: UN | D202: 7 | E202: 13.25 | F202: 92.75
A203: 4.24.3 | B203: CABO DE COBRE FLEXÍVEL ISOLADO, 2,5 MM², ANTI-CHAMA 450/750 V, PARA CIRCUITOS TERMINAIS - FORNECIMENTO E INSTALAÇÃO. AF_12/2015 | C203: M | D203: 300 | E203: 3.54 | F203: 1062
A204: 4.24.4 | B204: ELETRODUTO FLEXÍVEL CORRUGADO, PVC, DN 32 MM (1"), PARA CIRCUITOS TERMINAIS, INSTALADO EM FORRO - FORNECIMENTO E INSTALAÇÃO. AF_12/2015 | C204: M | D204: 100 | E204: 9.92 | F204: 992
... 64 more rows

Sheet QUADRA
D1: SPN-FF-003
D3: Folha: 1 de 1 | E3: Revisão: 02 | F3: Data: 07/10/19
A5: =RESUMO!A5 -> SESI - SERVIÇO SOCIAL DA INDUSTRIA - DR/MT
A6: =RESUMO!A6 -> OBRA: CONTRATAÇÃO DE EMPRESA ESPECIALIZADA EM ENGENHARIA PARA OBRA DE REFORMA E AMPLIAÇÃO DA UNIDADE SESI ESCOLA CUIABÁ
A7: =RESUMO!A7 -> UNIDADE OPERACIONAL: SESI ESCOLA CUIABA
A8: =RESUMO!A8 -> ENDEREÇO: AV. OÁTOMO CANAVARROS, 1079, BAIRRO BELA VISTA CIDADE: CUIABÁ-MT
A9: CONSTRUTORA:
A10: RESPONSÁVEL TÉCNICO:
A12: ITEM | B12: DESCRIÇÃO | C12: UNID. | D12: QUANT. | E12: Valor UNIT. (R$) | F12: Valor Total (R$)
A14: QUADRA POLIESPORTIVA
A15: 5.1 | B15: DEMOLIÇÕES E RETIRADAS | F15: 0
A16: 5.2 | B16: CANTEIRO DE OBRAS | F16: 0
A17: 5.3 | B17: ADMINISTRAÇÃO | F17: 0
A18: 5.4 | B18: TERRAPLENAGEM | F18: 0
A19: 5.5 | B19: FUNDAÇÃO | F19: 0
A20: 5.6 | B20: IMPERMEABILIZAÇÃO | F20: 0
A21: 5.7 | B21: ESTRUTURA DE CONCRETO ARMADO | F21: 0
A22: 5.8 | B22: ALVENARIA E PAINÉIS | F22: 0
A23: 5.9 | B23: ESTRUTURA METÁLICA | F23: =SUBTOTAL(9,F24:F26) -> 120244.44
A24: 5.9.1 | B24: ESTRUTURA TRELIÇADA DE COBERTURA, TIPO ARCO, COM LIGAÇÕES SOLDADAS, INCLUSOS PERFIS METÁLICOS, CHAPAS METÁLICAS, MÃO DE OBRA E TRANSPORTE COM GUINDASTE - FORNECIMENTO E INSTALAÇÃO. AF_01/2020_P | C24: KG | D24: 6188.09 | E24: 15.92 | F24: =ROUND(D24*E24,2) -> 98514.39
A25: 5.9.2 | B25: FUNDO PREPARADOR PRIMER A BASE DE EPOXI, UMA DEMAO, ESPESSURA DE 25 MICRA. | C25: M2 | D25: 385.148 | E25: 14.82 | F25: =ROUND(D25*E25,2) -> 5707.89
A26: 5.9.3 | B26: PINTURA COM TINTA ALQUÍDICA DE ACABAMENTO (ESMALTE SINTÉTICO ACETINADO-CINZA PLATINA) PULVERIZADA SOBRE SUPERFÍCIES METÁLICAS , EXECUTADO EM OBRA (02 DEMÃOS). AF_01/2020 | C26: M2 | D26: 385.148 | E26: 41.6 | F26: =ROUND(D26*E26,2) -> 16022.16
A27: 5.10 | B27: COBERTURA | F27: 0
A28: 5.11 | B28: ESQUADRIAS | F28: =SUBTOTAL(9,F29:F30) -> 56002.32
A29: 5.11.1 | B29: FECHAMENTO EM POLICARBONATO ALVEOLAR 10MM, INCLUSIVE ACESSÓRIOS DE FIXAÇÃO EM ALUMÍNIO NATURAL. | C29: M2 | D29: 189.64 | E29: 254.94 | F29: =ROUND(D29*E29,2) -> 48346.82
A30: 5.11.2 | B30: VENEZIANA INDUSTRIAL EM POLICARBONATO ALVEOLAR 4MM COM REQUADRO METÁLICO COM UMA DEMÃO DE FUNDO ANTICORROSIVO EM PRIMER EPÓXI E DUAS DEMÃOS ESMALTE SINTETICO ACETINADO CINZA PLATINA , FORNECIMENTO E INSTALAÇÃO. | C30: M2 | D30: 29.3 | E30: 261.28 | F30: =ROUND(D30*E30,2) -> 7655.5
A31: 5.12 | B31: PISOS | F31: 0
A32: 5.13 | B32: REVESTIMENTO | F32: 0
A33: 5.14 | B33: GRANITO | F33: 0
A34: 5.15 | B34: FORROS | F34: 0
A35: 5.16 | B35: PINTURA | F35: 0
A36: 5.17 | B36: CALÇAMENTO, PÁTIO E PASSARELAS | F36: 0
A37: 5.18 | B37: SERVIÇOS COMPLEMENTARES | F37: =SUBTOTAL(9,F38) -> 1435.03
A38: 5.18.1 | B38: PAR DE TABELAS DE BASQUETE EM COMPENSADO NAVAL DE *1,80 X 1,20* M, COM ARO DE METAL E REDE - FORNECIMENTO E INSTALAÇÃO | C38: UN | D38: 1 | E38: 1435.03 | F38: =ROUND(D38*E38,2) -> 1435.03
A39: 5.19 | B39: INSTALAÇÕES SPDA | F39: =SUBTOTAL(9,F40:F47) -> 2569.45
A40: 5.19.1 | B40: CAIXA DE INSPEÇÃO PARA ATERRAMENTO, CIRCULAR, EM POLIETILENO, DIÂMETRO INTERNO = 0,3 M. AF_05/2018 | C40: UN | D40: 8 | E40: 25.23 | F40: =ROUND(D40*E40,2) -> 201.84
A41: 5.19.2 | B41: HASTE DE ATERRAMENTO 5/8 PARA SPDA - FORNECIMENTO E INSTALAÇÃO. AF_12/2017 | C41: UN | D41: 8 | E41: 56.5 | F41: =ROUND(D41*E41,2) -> 452
A42: 5.19.3 | B42: FORNECIMENTO E INSTALAÇÃO DE TERMINAL AEREO EM ACO GALVANIZADO DN 5/16", COMPRIMENTO DE 350MM, COM BASE DE FIXACAO HORIZONTAL | C42: UN | D42: 29 | E42: 21.69 | F42: 629.01
A43: 5.19.4 | B43: FORNECIMENTO E INSTALAÇÃO DE PRESILHA DE LATÃO 35MM² | C43: UN | D43: 58 | E43: 4.34 | F43: 251.72
A44: 5.19.5 | B44: FORNECIMENTO E INSTALAÇÃO DE REBITE POP EM ALUMÍNIO 4 X 16MM | C44: UN | D44: 58 | E44: 1.38 | F44: 80.04
A45: 5.19.6 | B45: FORNECIMENTO E INSTALAÇÃO DE SOLDA EXOTÉRMICA CABO-HASTE COM CARTUCHO Nº 90 E MOLDE CABO 35mm²- HASTE 5/8" | C45: UN | D45: 8 | E45: 19.96 | F45: 159.68
A46: 5.19.7 | B46: TERMINAL OU CONECTOR DE PRESSAO - PARA CABO 50MM2 - FORNECIMENTO E INSTALACAO | C46: UN | D46: 8 | E46: 25.91 | F46: 207.28
A47: 5.19.8 | B47: CABO DE COBRE NU 50MM2 - FORNECIMENTO E INSTALACAO | C47: M | D47: 12 | E47: 48.99 | F47: 587.88
A48: 5.20 | B48: INSTALAÇÕES DE COMBATE A INCÊNDIO | F48: 0
A49: 5.21 | B49: INSTALAÇÕES ELÉTRICAS | F49: 0
A50: 5.22 | B50: INSTALAÇÕES DE LÓGICA E TELEFONICA | F50: 0
A51: 5.23 | B51: CLIMATIZAÇÃO | F51: 0
A52: 5.24 | B52: INFRAESTRUTURA PARA INSTALAÇÃO DE ÁUDIO E VÍDEO | F52: 0
A53: 5.25 | B53: INSTALAÇÕES HIDROSANITÁRIAS | F53: 0
A54: 5.26 | B54: DRENAGEM | F54: 0
A55: 5.27 | B55: GLP (BLOCOB) | F55: 0
A56: 5.28 | B56: LOUÇAS E METAIS | F56: 0
A57: 5.29 | B57: ACESSIBILIDADE | F57: 0
A58: 5.30 | B58: SEGURANÇA PATRIMONIAL | F58: 0
A59: 5.31 | B59: LIMPEZA CONTÍNUA DA OBRA | F59: 0
A60: 5.32 | B60: LIMPEZA FINAL DA OBRA | F60: 0
A61: VALOR TOTAL | F61: =SUBTOTAL(9,F15:F60) -> 180251.24

Sheet ANEXOS
D1: SPN-FF-003
D3: Folha: 1 de 1 | E3: Revisão: 02 | F3: Data: 07/10/19
A5: =RESUMO!A5 -> SESI - SERVIÇO SOCIAL DA INDUSTRIA - DR/MT
A6: =RESUMO!A6 -> OBRA: CONTRATAÇÃO DE EMPRESA ESPECIALIZADA EM ENGENHARIA PARA OBRA DE REFORMA E AMPLIAÇÃO DA UNIDADE SESI ESCOLA CUIABÁ
A7: =RESUMO!A7 -> UNIDADE OPERACIONAL: SESI ESCOLA CUIABA
A8: =RESUMO!A8 -> ENDEREÇO: AV. OÁTOMO CANAVARROS, 1079, BAIRRO BELA VISTA CIDADE: CUIABÁ-MT
A9: CONSTRUTORA:
A10: RESPONSÁVEL TÉCNICO:
A12: ITEM | B12: DESCRIÇÃO | C12: UNID. | D12: QUANT. | E12: Valor UNIT. (R$) | F12: Valor Total (R$)
A14: ANEXOS (SUBESTAÇÃO, CASA DE BOMBA, BASE CX DAGUA)
A15: 6.1 | B15: DEMOLIÇÕES E RETIRADAS | F15: 0
A16: 6.2 | B16: CANTEIRO DE OBRAS | F16: 0
A17: 6.3 | B17: ADMINISTRAÇÃO | F17: 0
A18: 6.4 | B18: TERRAPLENAGEM | F18: 0
A19: 6.5 | B19: FUNDAÇÃO | F19: =SUBTOTAL(9,F20:F68) -> 149581.38
A20: 6.5.1 | B20: SUBESTAÇÃO | F20: =SUBTOTAL(9,F21:F38) -> 51386.15
A21: 6.5.1.1 | B21: ESCAVAÇÃO MECANIZADA PARA BLOCO DE COROAMENTO OU SAPATA, COM PREVISÃO DE FÔRMA, COM RETROESCAVADEIRA. AF_06/2017 | C21: M3 | D21: 175.95 | E21: 33.82 | F21: =ROUND(D21*E21,2) -> 5950.63
A22: 6.5.1.2 | B22: BOTA FORA DE MATERIAL DESCARTADO, D.M.T. = 10 km - (CARGA, TRANSPORTE E DESCARGA MECÂNICA) | C22: M3 | D22: 228.73 | E22: 25.23 | F22: =ROUND(D22*E22,2) -> 5770.86
A23: 6.5.1.3 | B23: REATERRO MECANIZADO DE VALA COM ESCAVADEIRA HIDRÁULICA (CAPACIDADE DA CAÇAMBA: 0,8 M³ / POTÊNCIA: 111 HP), LARGURA DE 1,5 A 2,5 M, PROFUNDIDADE ATÉ 1,5 M, COM SOLO DE 1ª CATEGORIA EM LOCAIS COM ALTO NÍVEL DE INTERFERÊNCIA. AF_04/2016 | C23: M3 | D23: 221.36 | E23: 16.13 | F23: 3570.54
A24: 6.5.1.4 | B24: LASTRO DE CONCRETO MAGRO, APLICADO EM BLOCOS DE COROAMENTO OU SAPATAS. AF_08/2017 | C24: M3 | D24: 1.1 | E24: 550.88 | F24: 605.97
A25: 6.5.1.5 | B25: FABRICAÇÃO, MONTAGEM E DESMONTAGEM DE FÔRMA PARA SAPATA, EM MADEIRA SERRADA, E=25 MM, 1 UTILIZAÇÃO. AF_06/2017 | C25: M2 | D25: 35.88 | E25: 240.28 | F25: 8621.25
A26: 6.5.1.6 | B26: ARMAÇÃO DE ESTRUTURAS DE CONCRETO ARMADO, EXCETO VIGAS, PILARES, LAJES E FUNDAÇÕES, UTILIZANDO AÇO CA-60 DE 5,0 MM - MONTAGEM. AF_12/2015 | C26: KG | D26: 27.4 | E26: 15.44 | F26: 423.06
A27: 6.5.1.7 | B27: ARMAÇÃO DE ESTRUTURAS DE CONCRETO ARMADO, EXCETO VIGAS, PILARES, LAJES E FUNDAÇÕES, UTILIZANDO AÇO CA-50 DE 8,0 MM - MONTAGEM. AF_12/2015 | C27: KG | D27: 22.9 | E27: 13.19 | F27: 302.05
A28: 6.5.1.8 | B28: ARMAÇÃO DE ESTRUTURAS DE CONCRETO ARMADO, EXCETO VIGAS, PILARES, LAJES E FUNDAÇÕES, UTILIZANDO AÇO CA-50 DE 10,0 MM - MONTAGEM. AF_12/2015 | C28: KG | D28: 296.4 | E28: 11.67 | F28: 3458.99
A29: 6.5.1.9 | B29: ARMAÇÃO DE ESTRUTURAS DE CONCRETO ARMADO, EXCETO VIGAS, PILARES, LAJES E FUNDAÇÕES, UTILIZANDO AÇO CA-50 DE 12,5 MM - MONTAGEM. AF_12/2015 | C29: KG | D29: 66.4 | E29: 9.76 | F29: 648.06
A30: 6.5.1.10 | B30: ARMAÇÃO DE ESTRUTURAS DE CONCRETO ARMADO, EXCETO VIGAS, PILARES, LAJES E FUNDAÇÕES, UTILIZANDO AÇO CA-50 DE 16,0 MM - MONTAGEM. AF_12/2015 | C30: KG | D30: 37.9 | E30: 9.19 | F30: 348.3
A31: 6.5.1.11 | B31: CONCRETAGEM DE PILARES, FCK = 25 MPA, COM USO DE BOMBA EM EDIFICAÇÃO COM SEÇÃO MÉDIA DE PILARES MENOR OU IGUAL A 0,25 M² - LANÇAMENTO, ADENSAMENTO E ACABAMENTO. AF_12/2015 | C31: M3 | D31: 7.37 | E31: 577.37 | F31: 4255.22
A32: 6.5.1.12 | B32: VIGAS BALDRAMES - EXECUÇÃO DE LASTRO EM CONCRETO (1:2,5:6), PREPARO MANUAL | C32: M³ | D32: 8.88 | E32: 550.88 | F32: 4891.81
A33: 6.5.1.13 | B33: VIGAS BALDRAMES - FORMA TABUA PARA CONCRETO EM FUNDACAO, C/ REAPROVEITAMENTO 2X. | C33: M² | D33: 37.39 | E33: 240.28 | F33: 8984.07
A34: 6.5.1.14 | B34: ARMAÇÃO DE ESTRUTURAS DE CONCRETO ARMADO, EXCETO VIGAS, PILARES, LAJES E FUNDAÇÕES, UTILIZANDO AÇO CA-60 DE 5,0 MM - MONTAGEM. AF_12/2015 | C34: KG | D34: 28.88 | E34: 15.44 | F34: 445.91
A35: 6.5.1.15 | B35: ARMAÇÃO DE PILAR OU VIGA DE UMA ESTRUTURA CONVENCIONAL DE CONCRETO ARMADO EM UM EDIFÍCIO DE MÚLTIPLOS PAVIMENTOS UTILIZANDO AÇO CA-50 DE 6,3 MM - MONTAGEM. AF_12/2015 | C35: KG | D35: 33.46 | E35: 13.23 | F35: 442.68
A36: 6.5.1.16 | B36: ARMAÇÃO DE LAJE DE UMA ESTRUTURA CONVENCIONAL DE CONCRETO ARMADO EM UM EDIFÍCIO DE MÚLTIPLOS PAVIMENTOS UTILIZANDO AÇO CA-50 DE 8,0 MM - MONTAGEM. AF_12/2015 | C36: KG | D36: 34.37 | E36: 11.61 | F36: 399.04
A37: 6.5.1.17 | B37: ARMAÇÃO DE ESTRUTURAS DE CONCRETO ARMADO, EXCETO VIGAS, PILARES, LAJES E FUNDAÇÕES, UTILIZANDO AÇO CA-50 DE 10,0 MM - MONTAGEM. AF_12/2015 | C37: KG | D37: 7.8 | E37: 11.67 | F37: 91.03
A38: 6.5.1.18 | B38: CONCRETAGEM DE PILARES, FCK = 25 MPA, COM USO DE BOMBA EM EDIFICAÇÃO COM SEÇÃO MÉDIA DE PILARES MENOR OU IGUAL A 0,25 M² - LANÇAMENTO, ADENSAMENTO E ACABAMENTO. AF_12/2015 | C38: M3 | D38: 3.77 | E38: 577.37 | F38: 2176.68
A39: 6.5.2 | B39: CASA DE BOMBAS | F39: =SUBTOTAL(9,F40:F55) -> 12267.73
A40: 6.5.2.1 | B40: ESCAVACAO MANUAL DE VALA EM MATERIAL DE 1A CATEGORIA ATE 1,5M EXCLUINDO ESGOTAMENTO / ESCORAMENTO (BLOCOS E VIGAS BALDRAME) | C40: M3 | D40: 8.86 | E40: 115.9 | F40: =ROUND(D40*E40,2) -> 1026.87
A41: 6.5.2.2 | B41: BOTA FORA DE MATERIAL DESCARTADO, D.M.T. = 10 km - ,(CARGA, TRANSPORTE E DESCARGA MECÂNICA) (BLOCOS, VIGAS E ESTACAS + 30% DE EMPOLAMENTO) | C41: M3 | D41: 9.05 | E41: 25.23 | F41: 228.33
A42: 6.5.2.3 | B42: REATERRO MANUAL DE VALAS COM COMPACTAÇÃO MECANIZADA. AF_04/2016 | C42: M3 | D42: 6.41 | E42: 26 | F42: 166.66
A43: 6.5.2.4 | B43: ESTACA ESCAVADA, TIPO BROCA DE CONCRETO ARMADO, fck=25 MPa, Ø 30 cm | C43: M | D43: 36 | E43: 45.83 | F43: 1649.88
A44: 6.5.2.5 | B44: ESTACAS - CONCRETO AUTOADENSAVEL (CAA) CLASSE DE RESISTENCIA C25, ESPALHAMENTO SF2, INCLUI SERVICO DE BOMBEAMENTO (NBR 15823) | C44: M3 | D44: 2.55 | E44: 681.12 | F44: 1736.86
A45: 6.5.2.6 | B45: ESTACAS - ESTRIBOS ESPIRAL SOLDADOS EM ARMACAO ACO CA-50 DIAM. 6,3 (1/4) - FORNECIMENTO/ CORTE(PERDA DE 10%) / DOBRA / COLOCAÇÃO) | C45: KG | D45: 80.49 | E45: 14.28 | F45: 1149.4
A46: 6.5.2.7 | B46: ESTACAS - ARMACAO ACO CA-50 DIAM.16,0 (5/8) - FORNECIMENTO/ CORTE(PERDA DE 10%) / DOBRA / COLOCAÇÃO) | C46: KG | D46: 201.7 | E46: 9.19 | F46: 1853.62
A47: 6.5.2.8 | B47: BLOCO DE COROAMENTO - EXECUÇÃO DE LASTRO EM CONCRETO (1:2,5:6), PREPARO MANUAL | C47: M3 | D47: 0.07 | E47: 195.7 | F47: 13.7
A48: 6.5.2.9 | B48: BLOCO DE COROAMENTO - FORMA TABUA P/CONCRETO EM FUNDACAO S/REAPROVEITAMENTO | C48: M2 | D48: 10.56 | E48: 87.39 | F48: 922.84
A49: 6.5.2.10 | B49: BLOCO DE COROAMENTO - ARMAÇÃO DE FUNDAÇÕES E ESTRUTURAS DE CONCRETO ARMADO, EXCETO VIGAS, PILARES E LAJES (DE EDIFÍCIOS DE MÚLTIPLOS PAVIMENTOS, EDIFICAÇÃO TÉRREAOU SOBRADO), UTILIZANDO AÇO CA-50 DE 6.3 MM - MONTAGEM. | C49: KG | D49: 29.81 | E49: 14.28 | F49: 425.69
A50: 6.5.2.11 | B50: BLOCO DE COROAMENTO - CONCRETO USINADO BOMBEADO Fck=25MPA, INCLUSIVE COLOCAÇÃO, ESPALHAMENTO E ADENSAMENTO MECÂNICO | C50: M3 | D50: 1.58 | E50: 577.37 | F50: 912.24
A51: 6.5.2.12 | B51: VIGAS BALDRAMES - EXECUÇÃO DE LASTRO EM CONCRETO (1:2,5:6), PREPARO MANUAL | C51: M3 | D51: 0.2 | E51: 195.7 | F51: 39.14
A52: 6.5.2.13 | B52: VIGAS BALDRAMES - FORMA TABUA PARA CONCRETO EM FUNDACAO, C/ REAPROVEITAMENTO 2X. | C52: M2 | D52: 12.43 | E52: 87.39 | F52: 1086.26
A53: 6.5.2.14 | B53: VIGAS BALDRAMES - ARMAÇÃO DE FUNDAÇÕES E ESTRUTURAS DE CONCRETO ARMADO, EXCETO VIGAS, PILARES E LAJES (DE EDIFÍCIOS DE MÚLTIPLOS PAVIMENTOS, EDIFICAÇÃO TÉRREA OU SOBRADO), UTILIZANDO AÇO CA-60 DE 5.0 MM - MONTAGEM. | C53: KG | D53: 11.07 | E53: 12.68 | F53: 140.37
A54: 6.5.2.15 | B54: VIGAS BALDRAMES - ARMAÇÃO DE FUNDAÇÕES E ESTRUTURAS DE CONCRETO ARMADO, EXCETO VIGAS, PILARES E LAJES (DE EDIFÍCIOS DE MÚLTIPLOS PAVIMENTOS, EDIFICAÇÃO TÉRREA OU SOBRADO), UTILIZANDO AÇO CA-50 DE 10.0 MM - MONTAGEM. | C54: KG | D54: 40.88 | E54: 11.67 | F54: 477.07
A55: 6.5.2.16 | B55: VIGAS BALDRAMES - CONCRETO USINADO BOMBEADO FCK=25MPA, INCLUSIVE COLOCACAO, ESPALHAMENTO E ADENSAMENTO MECANICO | C55: M3 | D55: 0.76 | E55: 577.37 | F55: 438.8
A56: 6.5.3 | B56: BASE DA CAIXA DÁGUA | F56: =SUBTOTAL(9,F57:F68) -> 85927.5
A57: 6.5.3.1 | B57: ESCAVACAO MANUAL DE VALA EM MATERIAL DE 1A CATEGORIA ATE 1,5M EXCLUINDO ESGOTAMENTO / ESCORAMENTO (BLOCOS E VIGAS BALDRAME) | C57: M3 | D57: 55.13 | E57: 115.9 | F57: =ROUND(D57*E57,2) -> 6389.57
A58: 6.5.3.2 | B58: BOTA FORA DE MATERIAL DESCARTADO, D.M.T. = 10 km - ,(CARGA, TRANSPORTE E DESCARGA MECÂNICA) (BLOCOS, VIGAS E ESTACAS + 30% DE EMPOLAMENTO) | C58: M3 | D58: 98.51 | E58: 25.23 | F58: 2485.41
A59: 6.5.3.3 | B59: REATERRO MANUAL DE VALAS COM COMPACTAÇÃO MECANIZADA. AF_04/2016 | C59: M3 | D59: 13.28 | E59: 26 | F59: 345.28
A60: 6.5.3.4 | B60: ESTACA ESCAVADA, TIPO BROCA DE CONCRETO ARMADO, fck=25 MPa, Ø 30 cm | C60: M | D60: 270 | E60: 45.83 | F60: 12374.1
A61: 6.5.3.5 | B61: ESTACAS - CONCRETO AUTOADENSAVEL (CAA) CLASSE DE RESISTENCIA C25, ESPALHAMENTO SF2, INCLUI SERVICO DE BOMBEAMENTO (NBR 15823) | C61: M3 | D61: 19.1 | E61: 681.12 | F61: 13009.39
A62: 6.5.3.6 | B62: ESTACAS - ESTRIBOS ESPIRAL SOLDADOS EM ARMACAO ACO CA-50 DIAM. 6,3 (1/4) - FORNECIMENTO/ CORTE(PERDA DE 10%) / DOBRA / COLOCAÇÃO) | C62: KG | D62: 543.33 | E62: 14.28 | F62: 7758.75
A63: 6.5.3.7 | B63: ESTACAS - ARMACAO ACO CA-50 DIAM.16,0 (5/8) - FORNECIMENTO/ CORTE(PERDA DE 10%) / DOBRA / COLOCAÇÃO) | C63: KG | D63: 1361.76 | E63: 9.19 | F63: 12514.57
A64: 6.5.3.8 | B64: BLOCO DE COROAMENTO - EXECUÇÃO DE LASTRO EM CONCRETO (1:2,5:6), PREPARO MANUAL | C64: M3 | D64: 1.35 | E64: 195.7 | F64: 264.2
A65: 6.5.3.9 | B65: BLOCO DE COROAMENTO - FORMA TABUA P/CONCRETO EM FUNDACAO S/REAPROVEITAMENTO | C65: M2 | D65: 54 | E65: 87.39 | F65: 4719.06
A66: 6.5.3.10 | B66: BLOCO DE COROAMENTO - ARMAÇÃO DE FUNDAÇÕES E ESTRUTURAS DE CONCRETO ARMADO, EXCETO VIGAS, PILARES E LAJES (DE EDIFÍCIOS DE MÚLTIPLOS PAVIMENTOS, EDIFICAÇÃO TÉRREAOU SOBRADO), UTILIZANDO AÇO CA-50 DE 6.3 MM - MONTAGEM. | C66: KG | D66: 93.34 | E66: 14.28 | F66: 1332.9
A67: 6.5.3.11 | B67: ARMAÇÃO DE ESTRUTURAS DE CONCRETO ARMADO, EXCETO VIGAS, PILARES, LAJES E FUNDAÇÕES, UTILIZANDO AÇO CA-50 DE 12,5 MM - MONTAGEM. AF_12/2015 | C67: KG | D67: 138.4 | E67: 9.76 | F67: 1350.78
A68: 6.5.3.12 | B68: BLOCO DE COROAMENTO - CONCRETO USINADO BOMBEADO Fck=25MPA, INCLUSIVE COLOCAÇÃO, ESPALHAMENTO E ADENSAMENTO MECÂNICO | C68: M3 | D68: 40.5 | E68: 577.37 | F68: 23383.49
A69: 6.6 | B69: IMPERMEABILIZAÇÃO | F69: =SUBTOTAL(9,F70:F72) -> 6651.46
A70: 6.6.1 | B70: SUBESTAÇÃO-IMPERMEABILIZAÇÃO DE SUPERFÍCIE COM EMULSÃO ASFÁLTICA, 2 DEMÃOS AF_06/2018 | C70: M2 | D70: 95.31 | E70: 35.68 | F70: =ROUND(D70*E70,2) -> 3400.66
A71: 6.6.2 | B71: CASA DE BOMBAS- IMPERMEABILIZAÇÃO DE SUPERFÍCIE COM EMULSÃO ASFÁLTICA, 2 DEMÃOS AF_06/2018 | C71: M2 | D71: 37.11 | E71: 35.68 | F71: =ROUND(D71*E71,2) -> 1324.08
A72: 6.6.3 | B72: BASE DA CAIXA DÁGUA- IMPERMEABILIZAÇÃO DE SUPERFÍCIE COM EMULSÃO ASFÁLTICA, 2 DEMÃOS AF_06/2018 | C72: M2 | D72: 54 | E72: 35.68 | F72: 1926.72
A73: 6.7 | B73: ESTRUTURA DE CONCRETO ARMADO | F73: =SUBTOTAL(9,F74:F104) -> 36588.03
A74: 6.7.1 | B74: SUBESTAÇÃO | F74: =SUBTOTAL(9,F75:F91) -> 28029.62
A75: 6.7.1 | B75: FABRICAÇÃO DE FÔRMA PARA VIGAS, COM MADEIRA SERRADA, E = 25 MM. AF_12/2015 | C75: M2 | D75: 39.64 | E75: 88.68 | F75: =ROUND(D75*E75,2) -> 3515.28
A76: 6.7.2 | B76: ARMAÇÃO DE PILAR OU VIGA DE UMA ESTRUTURA CONVENCIONAL DE CONCRETO ARMADO EM UM EDIFÍCIO DE MÚLTIPLOS PAVIMENTOS UTILIZANDO AÇO CA-60 DE 5,0 MM - MONTAGEM. AF_12/2015 | C76: KG | D76: 48.01 | E76: 14.07 | F76: =ROUND(D76*E76,2) -> 675.5
A77: 6.7.3 | B77: ARMAÇÃO DE PILAR OU VIGA DE UMA ESTRUTURA CONVENCIONAL DE CONCRETO ARMADO EM UM EDIFÍCIO DE MÚLTIPLOS PAVIMENTOS UTILIZANDO AÇO CA-50 DE 6,3 MM - MONTAGEM. AF_12/2015 | C77: KG | D77: 105.62 | E77: 13.23 | F77: 1397.35
A78: 6.7.4 | B78: ARMAÇÃO DE LAJE DE UMA ESTRUTURA CONVENCIONAL DE CONCRETO ARMADO EM UM EDIFÍCIO DE MÚLTIPLOS PAVIMENTOS UTILIZANDO AÇO CA-50 DE 8,0 MM - MONTAGEM. AF_12/2015 | C78: KG | D78: 13.38 | E78: 11.61 | F78: 155.34
A79: 6.7.5 | B79: ARMAÇÃO DE PILAR OU VIGA DE UMA ESTRUTURA CONVENCIONAL DE CONCRETO ARMADO EM UM EDIFÍCIO DE MÚLTIPLOS PAVIMENTOS UTILIZANDO AÇO CA-50 DE 10,0 MM - MONTAGEM. AF_12/2015 | C79: KG | D79: 7.59 | E79: 11.1 | F79: 84.25
A80: 6.7.6 | B80: CONCRETAGEM DE PILARES, FCK = 25 MPA, COM USO DE BOMBA EM EDIFICAÇÃO COM SEÇÃO MÉDIA DE PILARES MENOR OU IGUAL A 0,25 M² - LANÇAMENTO, ADENSAMENTO E ACABAMENTO. AF_12/2015 | C80: M3 | D80: 3.04 | E80: 577.37 | F80: 1755.2
A81: 6.7.7 | B81: FABRICAÇÃO DE FÔRMA PARA VIGAS, COM MADEIRA SERRADA, E = 25 MM. AF_12/2015 | C81: M2 | D81: 17.89 | E81: 88.68 | F81: 1586.49
A82: 6.7.8 | B82: ARMAÇÃO DE PILAR OU VIGA DE UMA ESTRUTURA CONVENCIONAL DE CONCRETO ARMADO EM UM EDIFÍCIO DE MÚLTIPLOS PAVIMENTOS UTILIZANDO AÇO CA-60 DE 5,0 MM - MONTAGEM. AF_12/2015 | C82: KG | D82: 45.85 | E82: 14.07 | F82: 645.11
A83: 6.7.9 | B83: ARMAÇÃO DE PILAR OU VIGA DE UMA ESTRUTURA CONVENCIONAL DE CONCRETO ARMADO EM UM EDIFÍCIO DE MÚLTIPLOS PAVIMENTOS UTILIZANDO AÇO CA-50 DE 10,0 MM - MONTAGEM. AF_12/2015 | C83: KG | D83: 76.84 | E83: 11.1 | F83: 852.92
A84: 6.7.10 | B84: ARMAÇÃO DE PILAR OU VIGA DE UMA ESTRUTURA CONVENCIONAL DE CONCRETO ARMADO EM UM EDIFÍCIO DE MÚLTIPLOS PAVIMENTOS UTILIZANDO AÇO CA-50 DE 12,5 MM - MONTAGEM. AF_12/2015 | C84: KG | D84: 74.88 | E84: 9.35 | F84: 700.13
A85: 6.7.11 | B85: CONCRETAGEM DE PILARES, FCK = 25 MPA, COM USO DE BOMBA EM EDIFICAÇÃO COM SEÇÃO MÉDIA DE PILARES MENOR OU IGUAL A 0,25 M² - LANÇAMENTO, ADENSAMENTO E ACABAMENTO. AF_12/2015 | C85: M3 | D85: 1.55 | E85: 577.37 | F85: 894.92
A86: 6.7.12 | B86: FABRICAÇÃO DE FÔRMA PARA VIGAS, COM MADEIRA SERRADA, E = 25 MM. AF_12/2015 | C86: M2 | D86: 63.42 | E86: 88.68 | F86: 5624.09
A87: 6.7.13 | B87: ARMAÇÃO DE PILAR OU VIGA DE UMA ESTRUTURA CONVENCIONAL DE CONCRETO ARMADO EM UM EDIFÍCIO DE MÚLTIPLOS PAVIMENTOS UTILIZANDO AÇO CA-50 DE 6,3 MM - MONTAGEM. AF_12/2015 | C87: KG | D87: 100.19 | E87: 13.23 | F87: 1325.51
A88: 6.7.14 | B88: ARMAÇÃO DE LAJE DE UMA ESTRUTURA CONVENCIONAL DE CONCRETO ARMADO EM UM EDIFÍCIO DE MÚLTIPLOS PAVIMENTOS UTILIZANDO AÇO CA-50 DE 8,0 MM - MONTAGEM. AF_12/2015 | C88: KG | D88: 18.34 | E88: 11.61 | F88: 212.93
A89: 6.7.15 | B89: ARMAÇÃO DE PILAR OU VIGA DE UMA ESTRUTURA CONVENCIONAL DE CONCRETO ARMADO EM UM EDIFÍCIO DE MÚLTIPLOS PAVIMENTOS UTILIZANDO AÇO CA-50 DE 12,5 MM - MONTAGEM. AF_12/2015 | C89: KG | D89: 2.31 | E89: 9.35 | F89: 21.6
A90: 6.7.16 | B90: CONCRETAGEM DE PILARES, FCK = 25 MPA, COM USO DE BOMBA EM EDIFICAÇÃO COM SEÇÃO MÉDIA DE PILARES MENOR OU IGUAL A 0,25 M² - LANÇAMENTO, ADENSAMENTO E ACABAMENTO. AF_12/2015 | C90: M3 | D90: 4.4 | E90: 577.37 | F90: 2540.43
A91: 6.7.17 | B91: LAJE PRE-MOLD BETA 11 P/1KN/M2 VAOS 4,40M/INCL VIGOTAS TIJOLOS ARMADURA NEGATIVA CAPEAMENTO 3CM CONCRETO 20MPA ESCORAMENTO MATERIAL E MAO DE OBRA. | C91: M2 | D91: 58.66 | E91: 103.01 | F91: 6042.57
A92: 6.7.2 | B92: CASA DE BOMBAS | F92: =SUBTOTAL(9,F93:F104) -> 8558.41
A93: 6.7.2.1 | B93: VIGAS RESPALDO - FORMA TABUA PARA CONCRETO EM FUNDACAO, C/ REAPROVEITAMENTO 2X. | C93: M2 | D93: 15.554 | E93: 88.68 | F93: =ROUND(D93*E93,2) -> 1379.33
A94: 6.7.2.2 | B94: VIGAS RESPALDO - ARMAÇÃO DE PILAR OU VIGA DE UMA ESTRUTURA CONVENCIONAL DE CONCRETO ARMADO EM UM EDIFÍCIO DE MÚLTIPLOS PAVIMENTOS UTILIZANDO AÇO CA-60 DE 5.0MM - MONTAGEM. | C94: KG | D94: 12.53 | E94: 14.07 | F94: 176.3
A95: 6.7.2.3 | B95: VIGAS RESPALDO - ARMAÇÃO DE PILAR OU VIGA DE UMA ESTRUTURA CONVENCIONAL DE CONCRETO ARMADO EM UM EDIFÍCIO DE MÚLTIPLOS PAVIMENTOS UTILIZANDO AÇO CA-50 DE 10.0MM - MONTAGEM. | C95: KG | D95: 46.42 | E95: 11.1 | F95: 515.26
A96: 6.7.2.4 | B96: VIGAS RESPALDO - CONCRETO USINADO BOMBEADO FCK=25MPA, INCLUSIVE COLOCACAO, ESPALHAMENTO E ADENSAMENTO MECANICO | C96: M3 | D96: 1.0059 | E96: 577.37 | F96: 580.78
A97: 6.7.2.5 | B97: PILARES - FORMA TABUA PARA CONCRETO EM FUNDACAO, C/ REAPROVEITAMENTO 2X. | C97: M2 | D97: 9.45 | E97: 88.68 | F97: 838.03
A98: 6.7.2.6 | B98: PILARES - ARMAÇÃO DE PILAR OU VIGA DE UMA ESTRUTURA CONVENCIONAL DE CONCRETO ARMADO EM UM EDIFÍCIO DE MÚLTIPLOS PAVIMENTOS UTILIZANDO AÇO CA-60 DE 5.0MM - MONTAGEM. | C98: KG | D98: 23.4 | E98: 14.07 | F98: 329.24
A99: 6.7.2.7 | B99: PILARES - ARMAÇÃO DE PILAR OU VIGA DE UMA ESTRUTURA CONVENCIONAL DE CONCRETO ARMADO EM UM EDIFÍCIO DE MÚLTIPLOS PAVIMENTOS UTILIZANDO AÇO CA-50 DE 10.0MM - MONTAGEM. | C99: KG | D99: 49.9 | E99: 11.1 | F99: 553.89
A100: 6.7.2.8 | B100: PILARES - CONCRETO USINADO BOMBEADO FCK=25MPA, INCLUSIVE COLOCACAO, ESPALHAMENTO E ADENSAMENTO MECANICO | C100: M3 | D100: 0.567 | E100: 577.37 | F100: 327.37
A101: 6.7.2.9 | B101: LAJE - FORMA TABUA PARA CONCRETO EM FUNDACAO, C/ REAPROVEITAMENTO 2X. | C101: M2 | D101: 14.1269 | E101: 88.68 | F101: 1252.77
A102: 6.7.2.10 | B102: LAJE - ARMAÇÃO DE LAJE DE UMA ESTRUTURA CONVENCIONAL DE CONCRETO ARMADO EM UM EDIFÍCIO DE MÚLTIPLOS PAVIMENTOS UTILIZANDO AÇO CA-50 DE 6.3 MM - MONTAGEM. | C102: KG | D102: 50.7 | E102: 12.19 | F102: 618.03
A103: 6.7.2.11 | B103: LAJE - ARMAÇÃO DE LAJE DE UMA ESTRUTURA CONVENCIONAL DE CONCRETO ARMADO EM UM EDIFÍCIO DE MÚLTIPLOS PAVIMENTOS UTILIZANDO AÇO CA-50 DE 8.0 MM - MONTAGEM. | C103: KG | D103: 65.8 | E103: 11.61 | F103: 763.94
A104: 6.7.2.12 | B104: LAJE - CONCRETO USINADO BOMBEADO FCK=25MPA, INCLUSIVE COLOCACAO, ESPALHAMENTO E ADENSAMENTO MECANICO | C104: M3 | D104: 2.119035 | E104: 577.37 | F104: 1223.47
A105: 6.8 | B105: ALVENARIA E PAINÉIS | F105: =SUBTOTAL(9,F106:F109) -> 29091.78
A106: 6.8.1 | B106: SUBESTAÇÃO- ALVENARIA DUPLA DE VEDAÇÃO DE BLOCOS CERÂMICOS FURADOS NA HORIZONTAL DE 9X19X19CM (ESPESSURA 19CM) DE PAREDES COM ÁREA LÍQUIDA MAIOR OU IGUAL A 6M² COM VÃOS E ARGAMASSA DE ASSENTAMENTO COM PREPARO EM BETONEIRA. AF_06/2014 | C106: M2 | D106: 148.83 | E106: 156.98 | F106: =ROUND(D106*E106,2) -> 23363.33
A107: 6.8.2 | B107: SUBESTAÇÃO- ALVENARIA DE VEDAÇÃO DE BLOCOS CERÂMICOS FURADOS NA HORIZONTAL DE 9X19X19CM (ESPESSURA 9CM) DE PAREDES COM ÁREA LÍQUIDA MAIOR OU IGUAL A 6M² COM VÃOS E ARGAMASSA DE ASSENTAMENTO COM PREPARO EM BETONEIRA. AF_06/2014 | C107: M2 | D107: 29.82 | E107: 83.75 | F107: 2497.43
A108: 6.8.3 | B108: SUBESTAÇÃO- IMPERMEABILIZAÇÃO DE PAREDES COM ARGAMASSA DE CIMENTO E AREIA, COM ADITIVO IMPERMEABILIZANTE, E = 2CM. AF_06/2018 | C108: M2 | D108: 17.25 | E108: 38.06 | F108: 656.54
A109: 6.8.4 | B109: CASA DE BOMBAS- ALVENARIA DE VEDAÇÃO DE BLOCOS CERÂMICOS FURADOS NA HORIZONTAL DE 9X19X19CM (ESPESSURA 9CM) DE PAREDES COM ÁREA LÍQUIDA MAIOR OU IGUAL A 6M² COM VÃOS E ARGAMASSA DE ASSENTAMENTO COM PREPARO EM BETONEIRA. AF_06/2014 | C109: M2 | D109: 30.74 | E109: 83.75 | F109: 2574.48
A110: 6.9 | B110: ESTRUTURA METÁLICA | F110: 0
A111: 6.10 | B111: COBERTURA | F111: =SUBTOTAL(9,F112) -> 3568.36
A112: 6.10.1 | B112: IMPERMEABILIZAÇÃO COM ARGAMASSA DE CIMENTO E AREIA, COM ADITIVO IMPERMEABILIZANTE, E = 2CM. AF_06/2018 | C112: M2 | D112: 83.49 | E112: 42.74 | F112: =ROUND(D112*E112,2) -> 3568.36
A113: 6.11 | B113: ESQUADRIAS | F113: =SUBTOTAL(9,F114:F117) -> 16141.6
A114: 6.11.1 | B114: PORTA DE ABRIR EM VENEZIANA, 02 FOLHAS DIM (1,60x2,10)M, ALUMÍNIO FOSCO, COM TELA DE PROTEÇÃO METÁLICA FECHADURA, INCLUSIVE FERRAGENS DE INSTALAÇÃO PARA PERFEITO USO E FUNCIONAMENTO (2 UNID. SUBESTAÇÃO E 01 UNID. CASA DE BOMBA) | C114: CONJ. | D114: 3 | E114: 3035.19 | F114: =ROUND(D114*E114,2) -> 9105.57
A115: 6.11.2 | B115: JANELA EM ALUMÍNIO ANODIZADO VENEZIANA, DIM (1,60X0,50/ 0,50/3,60)M COM TELA DE PROTEÇÃO EM MALHA ARAMADA DE FERRO 13MM EM PERFIL DE FERRO. (4 UNID. SUBESTAÇÃO E 02 UNID. CASA DE BOMBA) | C115: CONJ. | D115: 6 | E115: 706.18 | F115: =ROUND(D115*E115,2) -> 4237.08
A116: 6.11.3 | B116: JANELA EM VIDRO ARAMADO TEMPERADO FIXO ESPESSURA=8MM COM REQUADRO DE ALUMINIO NA COR NATURAL C/ TELA DE PROTEÇÃO METÁLICA DIMENSÃO: (1,00X0,50/0,50/3,60)M (SUBESTAÇÃO) | C116: CONJ. | D116: 6 | E116: 254.45 | F116: 1526.7
A117: 6.11.5 | B117: VISOR EM VIDRO ARAMADO TEMPERADO FIXO ESPESSURA=8MM COM REQUADRO DE ALUMINIO NA COR NATURAL C/ TELA DE PROTEÇÃO METÁLICA DIMENSÃO: (0,50X1,00/2,00)M.(SUBESTAÇÃO) | C117: CONJ. | D117: 5 | E117: 254.45 | F117: 1272.25
A118: 6.12 | B118: PISOS | F118: =SUBTOTAL(9,F119:F124) -> 15948.58
A119: 6.12.1 | B119: SUBESTAÇÃO- CONTRAPISO DE CONCRETO 20 MPA PREPARO MECANICO, ESPESSURA 7CM. | C119: M2 | D119: 57.46 | E119: 70.07 | F119: =ROUND(D119*E119,2) -> 4026.22
A120: 6.12.2 | B120: SUBESTAÇÃO- REGULARIZAÇÃO EM ARGAMASSA TRAÇO 1:4 (CIMENTO E AREIA), PREPARO MECÂNICOCOM BETONEIRA 400 L, APLICADO EM ÁREAS SECAS SOBRE LAJE, ADERIDO, ESPESSURA 3CM | C120: M2 | D120: 57.46 | E120: 37.79 | F120: 2171.41
A121: 6.12.3 | B121: SUBESTAÇÃO- PISO CIMENTADO TRAÇO 1:3 (CIMENTO E AREIA) ACABAMENTO LISO PIGMENTADO ESPESSURA 1,5CM COM JUNTAS PLASTICAS DE DILATACAO E ARGAMASSA EM PREPARO MANUAL | C121: M2 | D121: 57.46 | E121: 30.92 | F121: 1776.66
A122: 6.12.1 | B122: CASA DE BOMBAS- CONTRAPISO DE CONCRETO 20 MPA PREPARO MECANICO, ESPESSURA 7CM. | C122: M2 | D122: 57.46 | E122: 70.07 | F122: =ROUND(D122*E122,2) -> 4026.22
A123: 6.12.2 | B123: CASA DE BOMBAS -REGULARIZAÇÃO EM ARGAMASSA TRAÇO 1:4 (CIMENTO E AREIA), PREPARO MECÂNICOCOM BETONEIRA 400 L, APLICADO EM ÁREAS SECAS SOBRE LAJE, ADERIDO, ESPESSURA 3CM | C123: M2 | D123: 57.46 | E123: 37.79 | F123: 2171.41
A124: 6.12.3 | B124: CASA DE BOMBAS- PISO CIMENTADO TRAÇO 1:3 (CIMENTO E AREIA) ACABAMENTO LISO PIGMENTADO ESPESSURA 1,5CM COM JUNTAS PLASTICAS DE DILATACAO E ARGAMASSA EM PREPARO MANUAL | C124: M2 | D124: 57.46 | E124: 30.92 | F124: 1776.66
A125: 6.13 | B125: REVESTIMENTO | F125: =SUBTOTAL(9,F126:F129) -> 21105.56
A126: 6.13.1 | B126: SUBESTAÇÃO- CHAPISCO APLICADO EM ALVENARIAS E ESTRUTURAS DE CONCRETO INTERNAS, COM ROLO PARA TEXTURA ACRÍLICA. ARGAMASSA TRAÇO 1:4 E EMULSÃO POLIMÉRICA (ADESIVO) COM PREPARO EM BETONEIRA 400L. AF_06/2014 | C126: M2 | D126: 524.28 | E126: 5.09 | F126: =ROUND(D126*E126,2) -> 2668.59
A127: 6.13.2 | B127: SUBESTAÇÃO- EMBOÇO, PARA RECEBIMENTO DE CERÂMICA, EM ARGAMASSA TRAÇO 1:2:8, PREPARO MECÂNICO COM BETONEIRA 400L, APLICADO MANUALMENTE EM FACES INTERNAS DE PAREDES, PARA AMBIENTE COM ÁREA ENTRE 5M2 E 10M2, ESPESSURA DE 20MM, COM EXECUÇÃO DE TALISCAS. AF_06/2014 | C127: M2 | D127: 524.28 | E127: 30.1 | F127: =ROUND(D127*E127,2) -> 15780.83
A128: 6.13.1 | B128: CASA DE BOMBAS- CHAPISCO APLICADO EM ALVENARIAS E ESTRUTURAS DE CONCRETO INTERNAS, COM ROLO PARA TEXTURA ACRÍLICA. ARGAMASSA TRAÇO 1:4 E EMULSÃO POLIMÉRICA (ADESIVO) COM PREPARO EM BETONEIRA 400L. AF_06/2014 | C128: M2 | D128: 75.48 | E128: 5.09 | F128: 384.19
A129: 6.13.2 | B129: CASA DE BOMBAS- EMBOÇO, PARA RECEBIMENTO DE CERÂMICA, EM ARGAMASSA TRAÇO 1:2:8, PREPARO MECÂNICO COM BETONEIRA 400L, APLICADO MANUALMENTE EM FACES INTERNAS DE PAREDES, PARA AMBIENTE COM ÁREA ENTRE 5M2 E 10M2, ESPESSURA DE 20MM, COM EXECUÇÃO DE TALISCAS. AF_06/2014 | C129: M2 | D129: 75.48 | E129: 30.1 | F129: =ROUND(D129*E129,2) -> 2271.95
A130: 6.14 | B130: GRANITO | F130: 0
A131: 6.15 | B131: FORROS | F131: 0
A132: 6.16 | B132: PINTURA | F132: =SUBTOTAL(9,F133:F140) -> 15126.78
A133: 6.16.1 | B133: SUBESTAÇÃO- APLICAÇÃO DE FUNDO SELADOR LÁTEX PVA EM PAREDES, UMA DEMÃO. AF_06/2014 | C133: M2 | D133: 378.9 | E133: 2.31 | F133: =ROUND(D133*E133,2) -> 875.26
A134: 6.16.2 | B134: SUBESTAÇÃO- APLICAÇÃO E LIXAMENTO DE MASSA LÁTEX EM PAREDES, DUAS DEMÃOS. AF_06/2014 | C134: M2 | D134: 239.07 | E134: 14.74 | F134: =ROUND(D134*E134,2) -> 3523.89
A135: 6.16.3 | B135: SUBESTAÇÃO-APLICAÇÃO MANUAL DE PINTURA COM TINTA LÁTEX ACRÍLICA EM PAREDES, DUAS DEMÃOS. AF_06/2014 | C135: M2 | D135: 345.2 | E135: 14.41 | F135: =ROUND(D135*E135,2) -> 4974.33
A136: 6.16.4 | B136: SUBESTAÇÃO- APLICAÇÃO MANUAL DE PINTURA COM TINTA TEXTURIZADA ACRÍLICA EM PAREDES EXTERNAS DE CASAS, DUAS CORES. AF_06/2014 | C136: M2 | D136: 106.13 | E136: 24.21 | F136: =ROUND(D136*E136,2) -> 2569.41
A137: 6.16.5 | B137: CASA DE BOMBAS- APLICAÇÃO DE FUNDO SELADOR LÁTEX PVA EM PAREDES, UMA DEMÃO. AF_06/2014 | C137: M2 | D137: 61.33 | E137: 2.31 | F137: =ROUND(D137*E137,2) -> 141.67
A138: 6.16.6 | B138: CASA DE BOMBAS- APLICAÇÃO MANUAL DE PINTURA COM TINTA LÁTEX ACRÍLICA EM PAREDES, DUAS DEMÃOS. AF_06/2014 | C138: M2 | D138: 75.33 | E138: 14.41 | F138: 1085.51
A139: 6.16.7 | B139: CASA DE BOMBAS- APLICAÇÃO MANUAL DE PINTURA COM TINTA TEXTURIZADA ACRÍLICA EM PAREDES EXTERNAS DE CASAS, DUAS CORES. AF_06/2014 | C139: M2 | D139: 24.89 | E139: 24.21 | F139: 602.59
A140: 6.16.8 | B140: CAIXA DÁGUA- PINTURA ACRILICA EM PISO CIMENTADO DUAS DEMAOS | C140: M2 | D140: 81.28 | E140: 16.66 | F140: 1354.12
A141: 6.17 | B141: CALÇAMENTO, PÁTIO E PASSARELAS | F141: =SUBTOTAL(9,F142) -> 1343.42
A142: 6.17.1 | B142: EXECUÇÃO DE PASSEIO (CALÇADA) OU PISO DE CONCRETO COM CONCRETO MOLDADO IN LOCO, USINADO, ACABAMENTO CONVENCIONAL, ESPESSURA 8 CM, ARMADO. AF_07/2016 | C142: M2 | D142: 14.31 | E142: 93.88 | F142: =ROUND(D142*E142,2) -> 1343.42
A143: 6.18 | B143: SERVIÇOS COMPLEMENTARES | F143: 0
A144: 6.19 | B144: INSTALAÇÕES SPDA | F144: 0
A145: 6.20 | B145: INSTALAÇÕES DE COMBATE A INCÊNDIO | F145: 0
A146: 6.21 | B146: INSTALAÇÕES ELÉTRICAS | F146: =SUBTOTAL(9,F147:F201) -> 169051.93
A147: 6.21.1 | B147: POSTE DE CONCRETO CIRCULAR, 600 KG, H = 11 M (NBR 8451) | C147: UN | D147: 1 | E147: 1660.26 | F147: =ROUND(D147*E147,2) -> 1660.26
A148: 6.21.2 | B148: ASSENTAMENTO DE POSTE DE CONCRETO COM COMPRIMENTO NOMINAL DE 11 M, CARGA NOMINAL MENOR OU IGUAL A 1000 DAN, ENGASTAMENTO SIMPLES COM 1,7 M DE SOLO (NÃO INCLUI FORNECIMENTO). AF_11/2019 | C148: UN | D148: 1 | E148: 560.06 | F148: =ROUND(D148*E148,2) -> 560.06
A149: 6.21.3 | B149: ALCA PRE-FORMADA DISTRIBUIÇÃO EM ACO RECOBERTO COM ALUMINIO PARA CABO 25MM2, ENCAPADO. FORNECIMENTO E INSTALAÇÃO. | C149: UN | D149: 8 | E149: 17.38 | F149: 139.04
A150: 6.21.4 | B150: FORNECIMENTO E INSTALAÇÃO DE ISOLADOR DE PORCELANA, TIPO PINO MONOCORPO, PARA TENSAO DE *15* KV | C150: UND | D150: 8 | E150: 43.37 | F150: 346.96
A151: 6.21.5 | B151: FORNECIMENTO E INSTALAÇÃO DE PINO ROSCA EXTERNA, EM ACO GALVANIZADO, PARA ISOLADOR DE 15KV, DIAMETRO 25 MM, COMPRIMENTO *290* MM | C151: UND | D151: 8 | E151: 30.86 | F151: 246.88
A152: 6.21.6 | B152: FORNECIMENTO E INSTALAÇÃO DE CRUZETA DE CONCRETO LEVE, COMP. 2000 MM SECAO, 90 X 90 MM | C152: UND | D152: 3 | E152: 157.46 | F152: 472.38
A153: 6.21.7 | B153: MÃO FRANCESA PLANA DE 619MM - FORNECIMENTO E INSTALAÇÃO | C153: UND | D153: 6 | E153: 56.72 | F153: 340.32
A154: 6.21.8 | B154: FORNECIMENTO E INSTALAÇÃO DE PARAFUSO M16 EM ACO GALVANIZADO, COMPRIMENTO = 125 MM, DIAMETRO = 16 MM, ROSCA MAQUINA, CABECA QUADRADA | C154: UND | D154: 6 | E154: 6.73 | F154: 40.38
A155: 6.21.9 | B155: FORNECIMENTO E INSTALAÇÃO DE PARAFUSO M16 EM ACO GALVANIZADO, COMPRIMENTO = 200 MM, DIAMETRO = 16 MM, ROSCA MAQUINA, CABECA QUADRADA | C155: UND | D155: 2 | E155: 7.36 | F155: 14.72
A156: 6.21.10 | B156: FORNECIMENTO E INSTALAÇÃO DE PARAFUSO M16 EM ACO GALVANIZADO, COMPRIMENTO = 250 MM, DIAMETRO = 16 MM, ROSCA MAQUINA, CABECA QUADRADA | C156: UND | D156: 1 | E156: 8.81 | F156: 8.81
A157: 6.21.11 | B157: FORNECIMENTO E INSTALAÇÃO DE PARAFUSO M16 EM ACO GALVANIZADO, COMPRIMENTO = 300 MM, DIAMETRO = 16 MM ROSCA DUPLA | C157: UND | D157: 4 | E157: 12.93 | F157: 51.72
A158: 6.21.12 | B158: PARAFUSO M16 (ROSCA MÁQUINA D=16MM) X 500MM CABEÇA QUADRADA - ZINCAGEM A FOGO - FORNECIMENTO E INSTALAÇÃO | C158: UND | D158: 7 | E158: 23.93 | F158: 167.51
A159: 6.21.13 | B159: PARAFUSO FRANCÊS M16 (D=16MM) X 45MM CABEÇA ABAULADA - ZINCAGEM A FOGO - FORNECIMENTO E INSTALAÇÃO | C159: UND | D159: 4 | E159: 4.04 | F159: 16.16
A160: 6.21.14 | B160: FORNECIMENTO E INSTALAÇÃO DE GRAMPO LINHA VIVA DE LATAO ESTANHADO, DIAMETRO DO CONDUTOR PRINCIPAL DE 10 A 120 MM2, DIAMETRO DA DERIVACAO DE 10 A 70 MM2 | C160: UND | D160: 3 | E160: 62.35 | F160: 187.05
A161: 6.21.15 | B161: CONECTOR DERIVAÇÃO CUNHA TIPO ESTRIBO NORMAL 2/0 - FORNECIMENTO E INSTALAÇÃO | C161: UND | D161: 3 | E161: 27 | F161: 81
A162: 6.21.16 | B162: CONECTOR DERIVAÇÃO CUNHA TIPO - AMP - TIPO II OU SIMILAR - FORNECIMENTO E INSTALAÇÃO | C162: UND | D162: 2 | E162: 21.69 | F162: 43.38
A163: 6.21.17 | B163: CARTUCHO PARA CONECTOR CUNHA AZUL - FORNECIMENTO E INSTALAÇÃO | C163: UND | D163: 3 | E163: 5.9 | F163: 17.7
A164: 6.21.18 | B164: CABO DE COBRE COBERTO COM XLPE - 16MM² - 15KV - FORNECIMENTO E INSTALAÇÃO | C164: M | D164: 20 | E164: 36.28 | F164: 725.6
A165: 6.21.19 | B165: HASTE DE ATERRAMENTO 5/8 PARA SPDA - FORNECIMENTO E INSTALAÇÃO. AF_12/2017 | C165: UN | D165: 27 | E165: 73.45 | F165: 1983.15
A166: 6.21.20 | B166: CABO DE COBRE NU 25 MM2 MEIO-DURO | C166: M | D166: 150 | E166: 23.3 | F166: 3495
A167: 6.21.21 | B167: FORNECIMENTO E INSTALAÇÃO DE ARAME AÇO GALVANIZADO 12 BWG, 2,60M (48,00G/M) | C167: M | D167: 8 | E167: 3.36 | F167: =ROUND(D167*E167,2) -> 26.88
A168: 6.21.22 | B168: CABO DE COBRE FLEXÍVEL ISOLADO, 10 MM², ANTI-CHAMA 450/750 V, PARA CIRCUITOS TERMINAIS - FORNECIMENTO E INSTALAÇÃO. AF_12/2015 | C168: M | D168: 3 | E168: 16.62 | F168: 49.86
A169: 6.21.23 | B169: FORNECIMENTO E INSTALAÇÃO DE ARRUELA QUADRADA EM ACO GALVANIZADO, DIMENSAO = 38 MM, ESPESSURA = 3MM, UN 0,52 DIAMETRO DO FURO= 18 MM | C169: UND | D169: 28 | E169: 0.89 | F169: 24.92
A170: 6.21.24 | B170: FORNECIMENTO E INSTALAÇÃO DE CHAVE FUSIVEL PARA REDES DE DISTRIBUICAO, TENSAO DE 15,0 KV, CORRENTE NOMINAL | C170: UND | D170: 3 | E170: 582 | F170: 1746
A171: 6.21.25 | B171: PARA-RAIO TP VÁLVULA 15KV/5KA - FORNECIMENTO E INSTALAÇÃO | C171: UND | D171: 6 | E171: 382 | F171: 2292
A172: 6.21.26 | B172: PROTETOR DE BUCHA DE AT DE TRANSFORMADOR 15KV - FORNECIMENTO E INSTALAÇÃO | C172: UND | D172: 6 | E172: 37.54 | F172: 225.24
A173: 6.21.27 | B173: CABO DE COBRE UNIPOLAR 25MM² BLINDADO, ISOLAÇÃO 12/20KV EPR - COBERTURA EM PVC - FORNECIMENTO E INSTALAÇÃO | C173: M | D173: 352 | E173: 34.15 | F173: 12020.8
A174: 6.21.28 | B174: FORNECIMENTO E INSTALAÇÃO DE ELETRODUTO GALVANIZADO 4'' | C174: M | D174: 83 | E174: 169.78 | F174: 14091.74
A175: 6.21.29 | B175: MUFLA TERMINAL PRIMARIA UNIPOLAR USO EXTERNO PARA CABO 25/70MM2 ISOL, 3,6/6KV EM EPR - BORRACHA DE SILICONE | C175: UN | D175: 4 | E175: 311.4 | F175: 1245.6
A176: 6.21.30 | B176: SUPORTE PARA FIXAÇÃO DE MUFLAS TERMINAIS - FORNECIMENTO E INSTALAÇÃO | C176: UND | D176: 1 | E176: 150.15 | F176: 150.15
A177: 6.21.31 | B177: ELETRODUTO RÍGIDO ROSCÁVEL, PVC, DN 25 MM (3/4"), PARA CIRCUITOS TERMINAIS, INSTALADO EM PAREDE - FORNECIMENTO E INSTALAÇÃO. AF_12/2015 | C177: M | D177: 3 | E177: 13.84 | F177: 41.52
A178: 6.21.32 | B178: CAIXA DE PASSAGEM 30X30X40 COM TAMPA E DRENO BRITA | C178: UN | D178: 7 | E178: 280.86 | F178: 1966.02
A179: 6.21.33 | B179: TRANSFORMADOR DISTRIBUICAO 500KVA TRIFASICO 60HZ CLASSE 15KV IMERSO EM ÓLEO MINERAL FORNECIMENTO E INSTALACAO | C179: UN | D179: 1 | E179: 46605.87 | F179: 46605.87
A180: 6.21.34 | B180: MUFLA TERMINAL PRIMARIA UNIPOLAR USO INTERNO PARA CABO 35/120MM2 ISOLACAO 15/25KV EM EPR - BORRACHA DE SILICONE | C180: UN | D180: 4 | E180: 401.82 | F180: 1607.28
A181: 6.21.35 | B181: ISOLADOR DE PEDESTAL 15KV - FORNECIMENTO E INSTALAÇÃO | C181: UND | D181: 18 | E181: 131.24 | F181: 2362.32
A182: 6.21.36 | B182: SECCIONADOR TRIPOLAR 15KV/400A ACIONAMENTO SIMULTÂNEO PUNHO MANOBRA (COMANDO) - FORNECIMENTO E INSTALAÇÃO | C182: UND | D182: 2 | E182: 1879.74 | F182: 3759.48
A183: 6.21.37 | B183: VERGALHÃO DE COBRE 1/4" - FORNECIMENTO E INSTALAÇÃO | C183: M | D183: 48 | E183: 30.64 | F183: 1470.72
A184: 6.21.38 | B184: TRANSFORMADOR DE POTENCIAL PARA PROTEÇÃO CLASSE 15KV - RELAÇÃO 120:1 - FORNECIMENTO E INSTALAÇÃO | C184: UND | D184: 1 | E184: 2089.96 | F184: 2089.96
A185: 6.21.39 | B185: TRANSFORMADOR DE CORRENTE PARA PROTEÇÃO CLASSE 15KV - RELAÇÃO 20:5 - FORNECIMENTO E INSTALAÇÃO | C185: UND | D185: 3 | E185: 683.18 | F185: 2049.54
A186: 6.21.40 | B186: SUPORTE METÁLICO PARA FIXAÇÃO DE PARA-RAIOS E MUFLAS INTERNAS - FORNECIMENTO E INSTALAÇÃO | C186: UND | D186: 1
A187: 6.21.41 | B187: FORNECIMENTO E INSTALAÇÃO DE PAINEL DE PROTEÇÃO COM CONJUNTO DE COMANDO RELÉ URPE COMPLETO | C187: UND | D187: 1 | E187: 8154.05 | F187: =ROUND(D187*E187,2) -> 8154.05
A188: 6.21.42 | B188: DISJUNTOR TRIFÁSICO 630A/15KV A VÁCUO PARA INSTALAÇÃO ABRIGADA, COM RELÉ PRIMÁRIO, POTÊNCIA NOMINAL CURTO CIRCUITO - 350MVA - FORNECIMENTO E INSTALAÇÃO | C188: UND | D188: 1 | E188: 19753.95 | F188: 19753.95
A189: 6.21.43 | B189: CABO DE COBRE FLEXÍVEL ISOLADO, 240 MM², ANTI-CHAMA 450/750 V, PARA DISTRIBUIÇÃO - FORNECIMENTO E INSTALAÇÃO. AF_12/2015 | C189: M | D189: 77 | E189: 262.17 | F189: 20187.09
A190: 6.21.44 | B190: FORNECIMENTO E INSTALAÇÃO DE TERMINAL DE COMPRESSÃO 240MM² | C190: UND | D190: 12 | E190: 45.6 | F190: 547.2
A191: 6.21.45 | B191: TERMINAL A PRESSÃO DE BRONZE P/ CABO A BARRA, CABO 240MM² C/ 1 FURO P/ FIXAÇÃO - FORNECIMENTO E INSTALAÇÃO | C191: UND | D191: 36 | E191: 41.09 | F191: 1479.24
A192: 6.21.46 | B192: EXTINTOR DE CO2 6KG - FORNECIMENTO E INSTALACAO | C192: UN | D192: 1 | E192: 737.74 | F192: 737.74
A193: 6.21.47 | B193: PLACA DE ADVERTÊNCIA "PERIGO DE MORTE ALTA TENSÃO" - FORNECIMENTO E INSTALAÇÃO | C193: UND | D193: 7 | E193: 34.16 | F193: 239.12
A194: 6.21.48 | B194: PLACA DE ADVERTÊNCIA "ESTA CHAVE NÃO DEVE SER MANOBRADA COM CARGA" - FORNECIMENTO E INSTALAÇÃO | C194: UND | D194: 3 | E194: 46.4 | F194: 139.2
A195: 6.21.49 | B195: LUMINÁRIA ARANDELA TIPO TARTARUGA, COM GRADE, DE SOBREPOR, COM 1 LÂMPADA FLUORESCENTE DE 15 W, SEM REATOR - FORNECIMENTO E INSTALAÇÃO. AF_02/2020 | C195: UN | D195: 5 | E195: 110.67 | F195: 553.35
A196: 6.21.50 | B196: INTERRUPTOR SIMPLES (1 MÓDULO), 10A/250V, INCLUINDO SUPORTE E PLACA - FORNECIMENTO E INSTALAÇÃO. AF_12/2015 | C196: UN | D196: 2 | E196: 27.76 | F196: 55.52
A197: 6.21.51 | B197: ELETRODUTO RÍGIDO ROSCÁVEL, PVC, DN 25 MM (3/4"), PARA CIRCUITOS TERMINAIS, INSTALADO EM FORRO - FORNECIMENTO E INSTALAÇÃO. AF_12/2015 | C197: M | D197: 25 | E197: 12.55 | F197: 313.75
A198: 6.21.52 | B198: CABO DE COBRE FLEXÍVEL ISOLADO, 2,5 MM², ANTI-CHAMA 0,6/1,0 KV, PARA CIRCUITOS TERMINAIS - FORNECIMENTO E INSTALAÇÃO. AF_12/2015 | C198: M | D198: 50 | E198: 5.98 | F198: 299
A199: 6.21.53 | B199: SUPORTE DE FIXAÇÃO PARA ISOLADOR PEDESTAL - FORNECIMENTO E INSTALAÇÃO | C199: UND | D199: 5 | E199: 2349.12 | F199: 11745.6
A200: 6.21.54 | B200: SUPORTE DE FIXAÇÃO PARA TRANSFORMADOR DE POTENCIAL - FORNECIMENTO E INSTALAÇÃO | C200: UND | D200: 1 | E200: 211.57 | F200: 211.57
A201: 6.21.55 | B201: SUPORTE DE FIXAÇÃO PARA TRANSFORMADOR DE CORRENTE - FORNECIMENTO E INSTALAÇÃO | C201: UND | D201: 1 | E201: 211.57 | F201: 211.57
A202: 6.22 | B202: INSTALAÇÕES DE LÓGICA E TELEFONICA | F202: 0
A203: 6.23 | B203: CLIMATIZAÇÃO | F203: 0
A204: 6.24 | B204: INFRAESTRUTURA PARA INSTALAÇÃO DE ÁUDIO E VÍDEO | F204: 0
... 9 more rows

Sheet COMPOSIÇÃO DO BDI
A2: COMPOSIÇÃO DO BDI OBRAS DE ENGENHARIA
A6: DESCRIÇÃO | C6: %
A7: GRUPO A
A8: A1 | B8: (AC) ADMINISTRAÇÃO CENTRAL - VARIA CONFORME O PORTE DA NÚMERO DE OBRAS EM ANDAMENTO, VOLUME FINANCEIRO DAS OBRAS A INICIAREM, ETC, EM CADA EM CADA EMPRESA - (ACORDAO 2622/2013 - 3,0% A 5,5%) | C8: =ROUND(AVERAGE(3%,5.5%),4) -> 0.0425
B9: TOTAL DO GRUPO A = | C9: =SUM(C8) -> 0.0425
A11: GRUPO B
A12: B1 | B12: (DF) DESPESAS FINANCEIRAS - (ACORDAO 2622/2013 - 0,59% A 1,39%) | C12: =ROUND(AVERAGE(0.59%,1.39%),4) -> 0.0099
A13: B2 | B13: (S) SEGUROS - (ACORDAO 2622/2013 SEGURO + GARANTIA - 0,8% A 1,0%) | C13: =ROUND(AVERAGE(0.4%,0.5%),4) -> 0.0045
A14: B2 | B14: (G) GARANTIAS - (ACORDAO 2622/2013 SEGURO + GARANTIA - 0,8% A 1,0%) | C14: =ROUND(AVERAGE(0.4%,0.5%),4) -> 0.0045
A15: B3 | B15: (R) TAXA DE RISCO E IMPREVISTOS - (ACORDAO 2622/2013 0,97% A 1,27%) | C15: =ROUND(AVERAGE(0.97%,1.27%),4) -> 0.0112
A16: B4 | B16: (L) LUCRO (ACORDAO 2622/2013 6,16% A 8,96%) | C16: =ROUND(AVERAGE(6.16%,8.96%),4) -> 0.0756
B17: TOTAL DO GRUPO B = | C17: =SUM(C12:C16) -> 0.1057
A19: GRUPO C
A20: C1 | B20: ISS - (ISS% SOBRE 40% DE MÃO DE OBRA)
A21: C2 | B21: %MÃO DE OBRA | C21: 0.4
A22: C3 | B22: ISS DO MUNICÍPIO | C22: 0.05
A23: C4 | B23: SUBTOTAL ISS (C2 X C3) = | C23: =C22*C21 -> 0.02
A24: C5 | B24: PIS | C24: 0.0065
A25: C6 | B25: COFINS | C25: 0.03
B26: TOTAL DO GRUPO C = | C26: =SUM(C23:C25) -> 0.0565
A28: TOTAL BDI (FORMULA ACORDAO 2369/2011) | C28: =ROUND((1+C8+C13+C15+C14)*(1+C12)*(1+C16)/(1-C26)-1,4) -> 0.2235
A29: BDI = (1+AC+S+R+G)x(1+DF)X(1+L)) -1 1-I Onde: AC = taxa representativa das despesas de rateio da Administração Central; S = taxa representativa de Seguros; R = taxa representativa de Riscos; G = taxa representativa de Garantias; DF = taxa representativa das Despesas Financeiras; L = taxa representativa do Lucro; I = taxa representativa da incidência de Impostos. Observação: i) Composição do BDI, intervalos admissíveis e Fórmula de cálculo nos termos do Acórdão 2622/2013 do TCU.

Sheet COMPOSIÇÃO DO BDI EQUIPAMENTO
A2: COMPOSIÇÃO DO BDI REDUZIDO
A6: DESCRIÇÃO | C6: %
A7: GRUPO A
A8: A1 | B8: (AC) ADMINISTRAÇÃO CENTRAL - VARIA CONFORME O PORTE DA NÚMERO DE OBRAS EM ANDAMENTO, VOLUME FINANCEIRO DAS OBRAS A INICIAREM, ETC, EM CADA EM CADA EMPRESA - (ACORDAO 2622/2013 - 1,5% A 4,49%) | C8: =ROUND(AVERAGE(1.5%,4.49%),4) -> 0.03
B9: TOTAL DO GRUPO A = | C9: =SUM(C8) -> 0.03
A11: GRUPO B
A12: B1 | B12: (DF) DESPESAS FINANCEIRAS - (ACORDAO 2622/2013 - 0,85% A 1,11%) | C12: =ROUND(AVERAGE(0.85%,1.11%),4) -> 0.0098
A13: B2 | B13: (S) SEGUROS - (ACORDAO 2622/2013 SEGURO + GARANTIA - 0,3% A 0,82%) | C13: =ROUND(AVERAGE(0.3%/2,0.82%/2),4) -> 0.0028
A14: B2 | B14: (G) GARANTIAS - (ACORDAO 2622/2013 SEGURO + GARANTIA - 0,3% A 0,82%) | C14: =ROUND(AVERAGE(0.3%/2,0.82%/2),4) -> 0.0028
A15: B3 | B15: (R) TAXA DE RISCO E IMPREVISTOS - (ACORDAO 2622/2013 0,56% A 0,89%) | C15: =ROUND(AVERAGE(0.56%,0.89%),4) -> 0.0073
A16: B4 | B16: (L) LUCRO (ACORDAO 2622/2013 3,50% A 6,22%) | C16: =ROUND(AVERAGE(3.5%,6.22%),4) -> 0.0486
B17: TOTAL DO GRUPO B = | C17: =SUM(C12:C16) -> 0.0713
A19: GRUPO C
A20: C1 | B20: ISS - (ISS% SOBRE 40% DE MÃO DE OBRA)
A21: C2 | B21: %MÃO DE OBRA | C21: 0
A22: C3 | B22: ISS DO MUNICÍPIO | C22: 0.05
A23: C4 | B23: SUBTOTAL ISS (C2 X C3) = | C23: =C22*C21 -> 0
A24: C5 | B24: PIS | C24: 0.0065
A25: C6 | B25: COFINS | C25: 0.03
B26: TOTAL DO GRUPO C = | C26: =SUM(C23:C25) -> 0.0365
A28: TOTAL BDI (ACORDAO 2369/2011) | C28: =ROUND((1+C8+C13+C15+C14)*(1+C12)*(1+C16)/(1-C26)-1,4) -> 0.1461
A29: BDI = (1+AC+S+R+G)x(1+DF)X(1+L)) -1 1-I Onde: AC = taxa representativa das despesas de rateio da Administração Central; S = taxa representativa de Seguros; R = taxa representativa de Riscos; G = taxa representativa de Garantias; DF = taxa representativa das Despesas Financeiras; L = taxa representativa do Lucro; I = taxa representativa da incidência de Impostos. Observação: i) Composição do BDI, intervalos admissíveis e Fórmula de cálculo nos termos do Acórdão 2622/2013 do TCU.
